Workbook

Sheet selite
A1: VALTIOVARAINMINISTERIÖ/Kunta- ja aluehallinto-osasto/vjl | H1: 2021-06-10
A3: KUNTAKONSERNIN TALOUDEN SUUNNITTELUKEHIKKO
A5: Tämä ei ole kuntakohtainen ennuste, vaan apuväline kunnalle tulevan kehityksen
A6: ja kunnassa suoritettavien eri toimenpiteiden talousarviointiin
A8: Suunnittelukehikossa ei ole voitu ottaa koronan vaikutuksia täysimääräisesti valtionosuuksiin tai verotuloihin
A9: vuosien 2021 ja 2022 kohdalla, myöskään erilaisten tukipakettien lopullinen kunta-arvio ei ole selvillä
A11: Kehikon käyttötarkoitus:
A12: Vuorovaikutteinen kuntakonsernin talouden suunnittelun apuväline. Kehikon avulla voidaan suunnitella konsernin talouden
A13: kehitystä pidemmällä aikavälillä. Tarkastelun kohteena ovat konsernin tuloslaskelma, rahoituslaskelmasta rahavarat, antolainat ja
A14: investoinnit sekä taseesta lainat ja kertynyt yli-/alijäämä. Pohjatietoina kehikossa ovat 2 viimeksi
A15: valmistunutta tilinpäätöstä.
A16: Tulevan kehityksen osalta tuloslaskelman erien kasvuolettamukset pohjautuvat lähtökohtaisesti uusimman valtion
A17: kuntatalousohjelman (KTO) vuosien 2022-2025 (toukokuu 2021) mukaisiin makroarviolukuihin - ei kuntakohtaisiin ennusteisiin.
A18: Käyttäjä voi kuitenkin itse muokata em. kasvuolettamuksia sekä yleensä tuloslaskelman muita eriä.
A19: Myös tuloveroprosenttia, investointeja ja antolainasaamisten määrää voidaan muuttaa.
A20: Rahoituslaskelman ja taseen erät pohjautuvat jäljempänä selostettuihin olettamuksiin
A21: (pl. taseen kertynyt yli-/alijäämä = ed. tilikausien yli-/alijäämä + tilikauden yli-/alijäämä).
A23: Käyttäjä voi muokata vaaleansinisellä pohjalla olevia kohtia (soluja).
A25: Kehikon laskentapohja:
A26: Asukasluku:
A27: Kunnan asukaslukuina käytetään lähtökohtaisesti viimeisintä väestötietoa (tässä 31.12.2020). Tulevien vuosien
A28: osalta asukaslukutiedot perustuvat tilastokeskuksen viimeisimpään väestöennusteeseen (TK, 2019).
A29: Tuloveroprosentti:
A30: Tuloveroprosentti perustuu viimeksi vahvistettuun tietoon (tässä vuoden 2021 veroprosentti). Tulevien vuosien osalta
A31: tuloveroprosentti on lähtökohtaisesti sama kuin edellisvuonna, mutta sitä voidaan muuttaa kehikossa. Kehikko
A32: laskee automaattisesti veroprosentin muutoksen vaikutuksen kunnallisveron tuottoon (edellisvuoden
A33: veroprosenttiyksikön tuoton perusteella).
A34: Tuloslaskelma:
A35: Tuloslaskelman pohjana ovat kuntien tilinpäätökset kahdelta viimeiseltä vuodelta. Tässä tapauksessa vuodet
A36: 2019 ja 2020. Tuloslaskelman keskeisten erien tulevien vuosien kasvuprosentit perustuvat lähtökohtaisesti
A37: kuntatalousohjelman (KTO 2022-2025, VM, toukokuu 2021) mukaisiin makroennusteisiin eli kasvuprosentit
A38: ovat näin kaikilla kunnilla samat. Em. keskeiset tuloslaskelman erät ovat seuraavat:
B39: 1) toimintatuotot,
B40: 2) toimintamenot,
B41: 3) kunnallisverot (pl. veroprosentin noston vaikutus),
B42: 4) yhteisöverot,
B43: 5) kiinteistöverot ja
B44: 6) valtionosuudet.
A45: Käyttäjä voi muokata em. erien kasvuolettamuksia haluamikseen kirjoittamalla taulukkoon uudet kasvuprosentit.
A47: Verotuloissa on käytetty kunnan verotuloja, koska Tilastokeskus ei kerää konsernitasolla eri veromuotoja.
A48: TK:sta ilmoitettu yhteenlaskettu konsernitason verotulot saattaa poiketa perunkunnan yhteenlasketusta
A50: Korkokulujen kehitys perustuu edellisvuoden lainamäärään ja valittuun korkokantaan. Korkoprosentti (keskim.)
A51: voidaan siis valita halutun mukaiseksi. Korkoprosentti ei vaikuta korkotuottoihin, vaan sen perustuu ed. vuoden määrään.
A53: Muiden tuloslaskelman erien on oletettu edellisvuoden mukaisesti, mutta käyttäjä voi muokata niitä haluamikseen.
A54: Rahoituslaskelma ja tase:
A55: Kehikossa tuloslaskelma "päätyy" taseen kertyneeseen yli-/alijäämään, jolloin voidaan tarkastella esim. milloin kunnan mahdollinen
A56: taseen alijäämä tulisi katetuksi valituilla tuloslaskelman kasvuoletuksilla (vrt. kuntalaki ja alijäämän kattamisvelvollisuus).
A58: Investoinnit ja niihin liittyvät rahoitusosuudet sekä pysyvien vastaavien luovutustulot ovat lähtökohtaisesti viimeksi toteutuneen
A59: tilinpäätöksen mukaiset, mutta ne ovat myös muutettavissa.
A61: Kehikossa ns. bruttorahoitustarve katetaan joko lainanlisäyksellä tai/ja rahavarojen purulla. Käyttäjä voi valita prosenttiosuuden,
A62: jolla rahavaroja käytetään bruttorahoitustarpeen kattamiseen. Mikäli rahavaroja ei ole, tarve katetaan kaikkiaan lainanlisäyksellä.
A63: Bruttorahoitustarve voi olla myös positiivinen, jolloin "ylijäämä" lisää rahavaroja.
A65: Bruttorahoitustarve muodostuu seuraavista eristä = Vuosikate + tulorahoituksen korjauserät + satunnaiset erät, netto + investoinnit,
A66: netto + antolainasaamisten muutokset, netto + lainanlyhennykset. Bruttorahoitustarve voi olla myös positiivinen, jolloin "ylijäämä"
A68: Lainamäärää lyhennetään valitun keskimääräisen lyhennysajan (kuoletusaika) mukaan eli jos keskimääräinen lainanmaksuaika
A69: on esimerkiksi 8 vuotta, niin vuosittainen lainanlyhennys on 1/8 (12,5 %) edellisvuoden lainamäärästä. Lainanlyhennys
A70: tehdään aina, vaikka bruttorahoitustarve olisi negatiivinen.
A75: Lisätietoja: Neuvotteleva virkamies Vesa Lappalainen, puh. 02955 30389, etunimi.sukunimi@vm.fi

Sheet KEHIKKO
A1: Valtiovarainministeriö/Kunta- ja aluehallinto-osasto/vjl | H1: VALITSE KUNTA: | L1: 2021-06-10
A2: KUNTAKONSERNIN TALOUDEN SUUNNITTELUKEHIKKO | J2: Kunnat vuoden 2021 jaolla
A3: Muokkaa vaaleansinisellä olevia kohtia. | F3: 12.39
A4: =INDEX(pohjatiedot!$B$3:$B$296,KEHIKKO!$A$5) -> KOKO MAA (Manner-Suomi) | F4: %-vähennys
A5: 95 | B5: TP 2019 | C5: TP 2020 | D5: 2021 | E5: 2022 | F5: 2023 | G5: 2024 | H5: 2025 | I5: 2026 | J5: 2027 | K5: 2028 | L5: 2029 | M5: 2030
A6: TULOSLASKELMA | C6: =((C7/B7)-1)*100 -> 0.1502345231 | D6: =((D7/C7)-1)*100 -> 0.0494579611 | E6: 0.09781370213 | F6: 0.0896807778 | G6: 0.08060956566 | H6: 0.07014827676 | I6: 0.05876885848 | J6: 0.04679573148 | K6: 0 | L6: 0.05349973033 | M6: 0 | N6: Väestön muutos%
A7: Asukasluku 31.12. | B7: =VLOOKUP($A$4,pohjatiedot!$B$3:$CF$296,2) -> 5495408 | C7: =VLOOKUP($A$4,pohjatiedot!$B$3:$CF$296,42) -> 5503664 | D7: =VLOOKUP($A$4,väestöennuste!$A$7:$J$302,4) -> 5506386 | E7: =VLOOKUP($A$4,väestöennuste!$A$7:$J$302,5) -> 5511772 | F7: =VLOOKUP($A$4,väestöennuste!$A$7:$J$302,6) -> 5516715 | G7: =VLOOKUP($A$4,väestöennuste!$A$7:$J$302,7) -> 5521162 | H7: =VLOOKUP($A$4,väestöennuste!$A$7:$J$302,8) -> 5525035 | I7: =VLOOKUP($A$4,väestöennuste!$A$7:$J$302,9) -> 5528282 | J7: =VLOOKUP($A$4,väestöennuste!$A$7:$J$302,10) -> 5530869 | K7: =VLOOKUP($A$4,väestöennuste!$A$7:$J$302,10) -> 5530869 | L7: =VLOOKUP($A$4,väestöennuste!$A$7:$L$302,12) -> 5533828 | M7: =VLOOKUP($A$4,väestöennuste!$A$7:$M$302,13) -> 5533828 | N7: Väestöennuste TK 2019
A8: Veroprosentti | B8: =VLOOKUP($A$4,pohjatiedot!$B$3:$CF$296,3) -> 19.9 | C8: =VLOOKUP($A$4,pohjatiedot!$B$3:$CF$296,43) -> 19.96 | D8: =VLOOKUP($A$4,pohjatiedot!$B$3:$CI$296,83) -> 20.02 | E8: =D8 -> 20.02 | F8: =E8-$F$3 -> 7.63 | G8: =F8 -> 7.63 | H8: =G8 -> 7.63 | I8: =H8 -> 7.63 | J8: =I8 -> 7.63 | K8: =J8 -> 7.63 | L8: =K8 -> 7.63 | M8: =L8 -> 7.63
A9: vero-% yksikön tuotto | B9: =B15/B8 -> 937917.9899 | C9: =C15/C8 -> 1008219.689 | D9: =D15/D8 -> 1025359.424 | E9: =E15/E8 -> 1063297.723 | F9: 1291740.898 | G9: 1225862.112 | H9: 1249153.492 | I9: 1272887.408 | J9: 1297072.269 | K9: 1321716.642 | L9: 1346829.259 | M9: 1372419.014
A10: → noston vaikutus | D10: =(D8-C8)*C9 -> 60493.18136 | E10: =(E8-D8)*D9 -> 0 | F10: =(F8-E8)*E9 -> -13174258.79 | G10: =(G8-F8)*F9 -> 0 | H10: 0 | I10: 0 | J10: 0 | K10: 0 | L10: 0 | M10: 0
A11: Toimintatuotot (sis. valm. okäytt.) | B11: =VLOOKUP($A$4,pohjatiedot!$B$3:$CF$296,6) -> 26773679 | C11: =VLOOKUP($A$4,pohjatiedot!$B$3:$CF$296,46) -> 26450859 | D11: =C11*(1+D70/100) -> 30735898.16 | E11: =D11*(1+E70/100) -> 28184818.61 | F11: =E11*(1+F70/100) -> 19165676.66 | G11: =F11*(1+G70/100) -> 19395664.78 | H11: =G11*(1+H70/100) -> 19589621.42 | I11: 19785517.64 | J11: 19983372.81 | K11: 20183206.54 | L11: 20385038.61 | M11: 20588888.99 | O11: Näiden erien muutos-
A12: Toimintakulut | B12: =VLOOKUP($A$4,pohjatiedot!$B$3:$CF$296,7) -> 54871181 | C12: =VLOOKUP($A$4,pohjatiedot!$B$3:$CF$296,47) -> 55390857 | D12: =C12*(1+D71/100) -> 57994227.28 | E12: 59386088.73 | F12: =E12*(1+F71/100) -> 27080056.46 | G12: =F12*(1+G71/100) -> 27513337.37 | H12: 27953550.76 | I12: 28400807.58 | J12: 28855220.5 | K12: 29316904.03 | L12: 29785974.49 | M12: 30262550.08 | O12: prosentit syötetään
A13: Osuus osakk.yht. voitoista/tappioista | B13: =VLOOKUP($A$4,pohjatiedot!$B$3:$CF$296,8) -> 70720 | C13: =VLOOKUP($A$4,pohjatiedot!$B$3:$CF$296,48) -> 93462 | D13: =C13 -> 93462 | E13: =D13 -> 93462 | F13: =E13 -> 93462 | G13: 93462 | H13: 93462 | I13: 93462 | J13: 93462 | K13: 93462 | L13: 93462 | M13: 93462 | O13: alla olevaan taulukkoon
A14: Toimintakate | B14: =B11-B12+B13 -> -28026782 | C14: =C11-C12+C13 -> -28846536 | D14: =D11-D12+D13 -> -27164867.12 | E14: =E11-E12+E13 -> -31107808.12 | F14: -7820917.807 | G14: -8024210.591 | H14: -8270467.341 | I14: -8521827.939 | J14: -8778385.684 | K14: -9040235.483 | L14: -9307473.882 | M14: -9580199.088
A15: Kunnallisverot | B15: =VLOOKUP($A$4,pohjatiedot!$B$3:$CF$296,9) -> 18664568 | C15: =VLOOKUP($A$4,pohjatiedot!$B$3:$CF$296,49) -> 20124065 | D15: =(C15+D10)*(1+D72/100) -> 20527695.67 | E15: =(D15+E10)*(1+E72/100) -> 21287220.41 | F15: =E15*(1+F72/100) -> 9855983.05 | G15: =(F15+G10)*(1+G72/100) -> 9353327.914 | H15: 9531041.145 | I15: 9712130.927 | J15: 9896661.414 | K15: 10084697.98 | L15: 10276307.24 | M15: 10471557.08
A16: Yhteisöverot | B16: =VLOOKUP($A$4,pohjatiedot!$B$3:$CF$296,10) -> 1866127 | C16: =VLOOKUP($A$4,pohjatiedot!$B$3:$CF$296,50) -> 1956930 | D16: =C16*(1+D73/100) -> 2473559.52 | E16: =D16*(1+E73/100) -> 2077789.997 | F16: =E16*(1+F73/100) -> 1493931.008 | G16: 1384874.044 | H16: 1443038.754 | I16: 1503646.382 | J16: 1566799.53 | K16: 1632605.11 | L16: 1701174.525 | M16: 1772623.855
A17: Kiinteistöverot | B17: =VLOOKUP($A$4,pohjatiedot!$B$3:$CF$296,11) -> 1790525 | C17: =VLOOKUP($A$4,pohjatiedot!$B$3:$CF$296,51) -> 1744593 | D17: =C17*(1+D74/100) -> 2103979.158 | E17: =D17*(1+E74/100) -> 2030339.887 | F17: =E17*(1+F74/100) -> 2056734.306 | G17: 2083471.852 | H17: 2108473.514 | I17: 2133775.196 | J17: 2159380.499 | K17: 2185293.065 | L17: 2211516.581 | M17: 2238054.78
A18: Verotulot | B18: =VLOOKUP($A$4,pohjatiedot!$B$3:$CF$296,12) -> 22321220 | C18: =VLOOKUP($A$4,pohjatiedot!$B$3:$CF$296,52) -> 23825588 | D18: =SUM(D15:D17) -> 25105234.35 | E18: 25395350.29 | F18: 13406648.36 | G18: 12821673.81 | H18: 13082553.41 | I18: 13349552.5 | J18: 13622841.44 | K18: 13902596.16 | L18: 14188998.35 | M18: 14482235.72
A19: Valtionosuudet | B19: =VLOOKUP($A$4,pohjatiedot!$B$3:$CF$296,13) -> 9778488 | C19: =VLOOKUP($A$4,pohjatiedot!$B$3:$CF$296,53) -> 12215170 | D19: =C19*(1+D75/100) -> 11091374.36 | E19: =D19*(1+E75/100) -> 11668125.83 | F19: =E19*(1+F75/100) -> 3850481.523 | G19: =F19*(1+G75/100) -> 3950594.042 | H19: =G19*(1+H75/100) -> 4029605.923 | I19: 4110198.042 | J19: 4192402.003 | K19: 4276250.043 | L19: 4361775.043 | M19: 4449010.544
A21: Korkotuotot | B21: =VLOOKUP($A$4,pohjatiedot!$B$3:$CF$296,14) -> 78665 | C21: =VLOOKUP($A$4,pohjatiedot!$B$3:$CF$296,54) -> 65183 | D21: =C21 -> 65183 | E21: =D21 -> 65183 | F21: 65183 | G21: 65183 | H21: 65183 | I21: 65183 | J21: 65183 | K21: 65183 | L21: 65183 | M21: 65183
A22: Korkokulut | B22: =VLOOKUP($A$4,pohjatiedot!$B$3:$CF$296,15) -> 410649 | C22: =VLOOKUP($A$4,pohjatiedot!$B$3:$CF$296,55) -> 420489 | D22: =($H$78/100)*C61 -> 699932.262 | E22: =($H$78/100)*D61 -> 680688.3288 | F22: 708454.4386 | G22: 683045.969 | H22: 668095.1244 | I22: 651669.806 | J22: 633726.1684 | K22: 614218.5807 | L22: 593099.5516 | M22: 570319.6506
A23: Muut rahoitustuotot | B23: =VLOOKUP($A$4,pohjatiedot!$B$3:$CF$296,16) -> 279711 | C23: =VLOOKUP($A$4,pohjatiedot!$B$3:$CF$296,56) -> 213288 | D23: =C23 -> 213288 | E23: =D23 -> 213288 | F23: 213288 | G23: 213288 | H23: 213288 | I23: 213288 | J23: 213288 | K23: 213288 | L23: 213288 | M23: 213288
A24: Muut rahoituskulut | B24: =VLOOKUP($A$4,pohjatiedot!$B$3:$CF$296,17) -> 75103 | C24: =VLOOKUP($A$4,pohjatiedot!$B$3:$CF$296,57) -> 108538 | D24: =C24 -> 108538 | E24: =D24 -> 108538 | F24: 108538 | G24: 108538 | H24: 108538 | I24: 108538 | J24: 108538 | K24: 108538 | L24: 108538 | M24: 108538
A25: VUOSIKATE | B25: =VLOOKUP($A$4,pohjatiedot!$B$3:$CF$296,18) -> 4476884 | C25: =VLOOKUP($A$4,pohjatiedot!$B$3:$CF$296,58) -> 6894388 | D25: =D14+D18+D19+D21-D22+D23-D24 -> 8501742.325 | E25: =E14+E18+E19+E21-E22+E23-E24 -> 5444912.67 | F25: 8897690.641 | G25: 8234944.293 | H25: 8343529.871 | I25: 8456185.801 | J25: 8573064.593 | K25: 8694325.134 | L25: 8820132.958 | M25: 8950660.521
A26: €/asukas | B26: =1000*B25/B7 -> 814.6590754 | C26: =1000*C25/C7 -> 1252.690571 | D26: =1000*D25/D7 -> 1543.978632 | E26: =1000*E25/E7 -> 987.8697213 | F26: 1612.860306 | G26: 1491.523758 | H26: 1510.131587 | I26: 1529.622729 | J26: 1550.039351 | K26: 1571.96367 | L26: 1593.857445 | M26: 1617.444655
A27: Poistot ja arvonalent. | B27: =VLOOKUP($A$4,pohjatiedot!$B$3:$CF$296,20) -> 4468739 | C27: =VLOOKUP($A$4,pohjatiedot!$B$3:$CF$296,60) -> 4681442 | D27: =C27*$O$27 -> 4709530.652 | E27: =D27*$O$27 -> 4737787.836 | F27: 4766214.563 | G27: 4794811.85 | H27: 4823580.721 | I27: 4852522.206 | J27: 4881637.339 | K27: 4910927.163 | L27: 4940392.726 | M27: 4970035.082 | O27: 1.006 | P27: kasvuoletus
A28: Satunnaiset erät, netto | B28: =VLOOKUP($A$4,pohjatiedot!$B$3:$CF$296,21) -> 339728 | C28: =VLOOKUP($A$4,pohjatiedot!$B$3:$CF$296,61) -> 119640 | D28: 0 | E28: =D28 -> 0 | F28: 0 | G28: 0 | H28: 0 | I28: 0 | J28: 0 | K28: 0 | L28: 0 | M28: 0
A30: Tilikauden tulos | B30: =VLOOKUP($A$4,pohjatiedot!$B$3:$CF$296,23) -> 347873 | C30: =VLOOKUP($A$4,pohjatiedot!$B$3:$CF$296,63) -> 2332586 | D30: =D25-D27+D28-D29 -> 3792211.673 | E30: =E25-E27+E28-E29 -> 707124.8337 | F30: =F25-F27+F28-F29 -> 4131476.078 | G30: 3440132.443 | H30: 3519949.15 | I30: 3603663.596 | J30: 3691427.254 | K30: 3783397.971 | L30: 3879740.232 | M30: 3980625.438
A31: Tilinpäätössiirrot | B31: =VLOOKUP($A$4,pohjatiedot!$B$3:$CF$296,24) -> 24483 | C31: =VLOOKUP($A$4,pohjatiedot!$B$3:$CF$296,64) -> -58220 | D31: =C31 -> -58220 | E31: -58220 | F31: -58220 | G31: -58220 | H31: -58220 | I31: -58220 | J31: -58220 | K31: -58220 | L31: -58220 | M31: -58220
A32: Tilikauden verot | B32: =VLOOKUP($A$4,pohjatiedot!$B$3:$CF$296,25) -> 103368 | C32: =VLOOKUP($A$4,pohjatiedot!$B$3:$CF$296,65) -> 75433 | D32: =C32 -> 75433 | E32: 75433 | F32: 75433 | G32: 75433 | H32: 75433 | I32: 75433 | J32: 75433 | K32: 75433 | L32: 75433 | M32: 75433
A33: Laskennalliset verot | B33: =VLOOKUP($A$4,pohjatiedot!$B$3:$CF$296,26) -> -54303 | C33: =VLOOKUP($A$4,pohjatiedot!$B$3:$CF$296,66) -> -68982 | D33: -68982 | E33: -68982 | F33: -68982 | G33: -68982 | H33: -68982 | I33: -68982 | J33: -68982 | K33: -68982 | L33: -68982 | M33: -68982
A34: Vähemmistöosuudet | B34: =VLOOKUP($A$4,pohjatiedot!$B$3:$CF$296,27) -> -36500 | C34: =VLOOKUP($A$4,pohjatiedot!$B$3:$CF$296,67) -> -45422 | D34: -45422 | E34: -45422 | F34: -45422 | G34: -45422 | H34: -45422 | I34: -45422 | J34: -45422 | K34: -45422 | L34: -45422 | M34: -45422
A35: Tilikauden yli-/alijäämä | B35: =VLOOKUP($A$4,pohjatiedot!$B$3:$CF$296,29) -> 178184 | C35: =VLOOKUP($A$4,pohjatiedot!$B$3:$CF$296,68) -> 2084529 | D35: =D30+D31+D32+D33 -> 3740442.673 | E35: =E30+E31+E32+E33 -> 655355.8337 | F35: 4079707.078 | G35: 3388363.443 | H35: 3468180.15 | I35: 3551894.596 | J35: 3639658.254 | K35: 3731628.971 | L35: 3827971.232 | M35: 3928856.438
A36: TASEESTA
A37: Kertynyt yli-/alijäämä | B37: =VLOOKUP($A$4,pohjatiedot!$B$3:$CF$296,31) -> 12670810 | C37: =VLOOKUP($A$4,pohjatiedot!$B$3:$CF$296,70) -> 14696103 | D37: =C37+D35 -> 18436545.67 | E37: 19091901.51 | F37: 23171608.58 | G37: 26559972.03 | H37: 30028152.18 | I37: 33580046.77 | J37: 37219705.03 | K37: 40951334 | L37: 44779305.23 | M37: 48708161.67
A38: €/asukas | B38: =1000*B37/B7 -> 2305.708694 | C38: =1000*C37/C7 -> 2670.239862 | D38: 3348.211635 | E38: 3463.84094 | F38: 4200.254787 | G38: 4810.576474 | H38: 5434.925241 | I38: 6074.228264 | J38: 6729.449753 | K38: 7404.141013 | L38: 8091.922125 | M38: 8801.892952
A40: RAHOITUSLASKELMAN JA TASEEN TIETOJA (sisältäen rahoitusjäämän ja sen vajeen kattamisoletukset)
A41: Vuosikate | B41: =B25 -> 4476884 | C41: =C25 -> 6894388 | D41: =D25 -> 8501742.325 | E41: =E25 -> 5444912.67 | F41: 8897690.641 | G41: 8234944.293 | H41: 8343529.871 | I41: 8456185.801 | J41: 8573064.593 | K41: 8694325.134 | L41: 8820132.958 | M41: 8950660.521
A42: Tulorahoituksen korjauserät | C42: =VLOOKUP($A$4,pohjatiedot!$B$3:$CV$296,97) -> -565080 | D42: =C42 -> -565080 | E42: =D42 -> -565080 | F42: =E42 -> -565080 | G42: -565080 | H42: -565080 | I42: -565080 | J42: -565080 | K42: -565080 | L42: -565080 | M42: -565080
A43: Satunnaiset erät, netto | B43: =B28-B29 -> 339728 | C43: =C28-C29 -> 119640 | D43: =D28-D29 -> 0 | E43: =E28-E29 -> 0 | F43: 0 | G43: 0 | H43: 0 | I43: 0 | J43: 0 | K43: 0 | L43: 0 | M43: 0
A44: = 1. Tulorahoitus, netto | C44: =SUM(C41:C43) -> 6448948 | D44: =SUM(D41:D43) -> 7936662.325 | E44: 4879832.67 | F44: 8332610.641 | G44: 7669864.293 | H44: 7778449.871 | I44: 7891105.801 | J44: 8007984.593 | K44: 8129245.134 | L44: 8255052.958 | M44: 8385580.521
A45: Investointimenot | C45: =VLOOKUP($A$4,pohjatiedot!$B$3:$CW$296,98) -> -9180621 | D45: =C45 -> -9180621 | E45: =D45 -> -9180621 | F45: -9180621 | G45: -9180621 | H45: -9180621 | I45: -9180621 | J45: -9180621 | K45: -9180621 | L45: -9180621 | M45: -9180621
A46: Rahoitusosuudet investointeihin | C46: =VLOOKUP($A$4,pohjatiedot!$B$3:$CW$296,99) -> 203417 | D46: =C46 -> 203417 | E46: =D46 -> 203417 | F46: 203417 | G46: 203417 | H46: 203417 | I46: 203417 | J46: 203417 | K46: 203417 | L46: 203417 | M46: 203417
A47: Inv.hyödykkeiden luovutustulot | C47: =VLOOKUP($A$4,pohjatiedot!$B$3:$CW$296,100) -> 1711735 | D47: =C47 -> 1711735 | E47: =D47 -> 1711735 | F47: 1711735 | G47: 1711735 | H47: 1711735 | I47: 1711735 | J47: 1711735 | K47: 1711735 | L47: 1711735 | M47: 1711735
A48: = 2. Nettoinvestoinnit | B48: =VLOOKUP($A$4,pohjatiedot!$B$3:$CF$296,34) -> -6831446 | C48: =C47+C46+C45 -> -7265469 | D48: =D47+D46+D45 -> -7265469 | E48: =E47+E46+E45 -> -7265469 | F48: -7265469 | G48: -7265469 | H48: -7265469 | I48: -7265469 | J48: -7265469 | K48: -7265469 | L48: -7265469 | M48: -7265469
A49: €/asukas | B49: =1000*B48/B7 -> -1243.118982 | C49: -1320.114927 | D49: -1319.462348 | E49: -1318.172994 | F49: -1316.991906 | G49: -1315.931139 | H49: -1315.008683 | I49: -1314.236322 | J49: -1313.621603 | K49: -1313.621603 | L49: -1312.919194 | M49: -1312.919194
A50: Vuosikate-nettoinv. | B50: =B25+B48 -> -2354562 | C50: -371081 | D50: 1236273.325 | E50: -1820556.33 | F50: 1632221.641 | G50: 969475.2932 | H50: 1078060.871 | I50: 1190716.801 | J50: 1307595.593 | K50: 1428856.134 | L50: 1554663.958 | M50: 1685191.521
A51: €/asukas | B51: =1000*B50/B7 -> -428.4599069 | C51: -67.42435585 | D51: 224.5162844 | E51: -330.3032728 | F51: 295.8684001 | G51: 175.5926186 | H51: 195.1229035 | I51: 215.3864078 | J51: 236.4177479 | K51: 258.3420678 | L51: 280.9382507 | M51: 304.5254606
A52: = 3. Rahoitusjäämä
A53: (1. Tulorahoitus+ 2.Nettoinv.) | C53: =C44+C48 -> -816521 | D53: =D44+D48 -> 671193.3254 | E53: =E44+E48 -> -2385636.33 | F53: 1067141.641 | G53: 404395.2932 | H53: 512980.871 | I53: 625636.8015 | J53: 742515.5931 | K53: 863776.1341 | L53: 989583.9581 | M53: 1120111.521
A54: 4. Bruttorahoitustarve
A55: (= Rahoitusjäämä + antolainasaam.
A56: muutokset + lainanlyh.) | D56: =D53-D59-D57 -> -4460627.425 | E56: =E53-E59-E57 -> -7375957.572 | F56: -4127342.172 | G56: -4603261.538 | H56: -4384743.279 | I56: -4151312.949 | J56: -3902495.645 | K56: -3637796.959 | L56: -3356702.157 | M56: -3058675.322
A57: Antolainauksen muutokset | C57: =VLOOKUP($A$4,pohjatiedot!$B$3:$CX$296,101) -> -14740 | D57: =C57 -> -14740 | E57: =D57 -> -14740 | F57: -14740 | G57: -14740 | H57: -14740 | I57: -14740 | J57: -14740 | K57: -14740 | L57: -14740 | M57: -14740 | N57: Positiivinen arvo=nettolisäys.
A58: Lainamäärän muutos; | C58: =C61-B61 -> 2125830 | D58: =D60-D59 -> -1131996.068 | E58: =E60-E59 -> 1633300.573 | F58: -1494615.858 | G58: -879461.447 | H58: -966195.1989 | I58: -1055508.096 | J58: -1147505.158 | K58: -1242295.83 | L58: -1339994.174 | M58: -1440719.053
A59: Lainanlyhennykset | D59: =IF(C61>0,(C61*(1/$H$77)),IF(C61=0,0)) -> 5146560.75 | E59: =IF(D61>0,(D61*(1/$H$77)),IF(D61=0,0)) -> 5005061.242 | F59: 5209223.813 | G59: 5022396.831 | H59: 4912464.15 | I59: 4791689.75 | J59: 4659751.238 | K59: 4516313.093 | L59: 4361026.115 | M59: 4193526.843
A60: Lainanlisäystarve | D60: =-(D56+(C63-D63)) -> 4014564.682 | E60: =-(E56+(D63-E63)) -> 6638361.815 | F60: 3714607.955 | G60: 4142935.384 | H60: 3946268.951 | I60: 3736181.654 | J60: 3512246.081 | K60: 3274017.263 | L60: 3021031.941 | M60: 2752807.79
A61: Lainakanta | B61: =VLOOKUP($A$4,pohjatiedot!$B$3:$CF$296,39) -> 39046656 | C61: =VLOOKUP($A$4,pohjatiedot!$B$3:$CF$296,78) -> 41172486 | D61: =C61-D59+D60 -> 40040489.93 | E61: =D61-E59+E60 -> 41673790.51 | F61: 40179174.65 | G61: 39299713.2 | H61: 38333518 | I61: 37278009.91 | J61: 36130504.75 | K61: 34888208.92 | L61: 33548214.74 | M61: 32107495.69
A62: €/asukas | B62: =1000*B61/B7 -> 7105.3243 | C62: 7480.922891 | D62: =1000*D61/D7 -> 7271.646036 | E62: 7560.869808 | F62: 7283.170265 | G62: 7118.014867 | H62: 6938.149351 | I62: 6743.145503 | J62: 6532.518624 | K62: 6307.907296 | L62: 6062.388412 | M62: 5802.040774
A63: Rahavarat | B63: =VLOOKUP($A$4,pohjatiedot!$B$3:$CF$296,37) -> 7778386 | C63: =VLOOKUP($A$4,pohjatiedot!$B$3:$CF$296,76) -> 9259310 | D63: =IF(D56>0,(C63+D56),IF(C63+(D56*$H$79)<0,0,IF(C63+(D56*$H$79)>0,C63+(D56*$H$79)))) -> 8813247.258 | E63: =IF(E56>0,(D63+E56),IF(D63+(E56*$H$79)<0,0,IF(D63+(E56*$H$79)>0,D63+(E56*$H$79)))) -> 8075651.5 | F63: 7662917.283 | G63: 7202591.129 | H63: 6764116.801 | I63: 6348985.507 | J63: 5958735.942 | K63: 5594956.246 | L63: 5259286.03 | M63: 4953418.498
A64: €/asukas | B64: =1000*B63/B7 -> 1415.433759 | C64: 1682.390131 | D64: 1600.550208 | E64: 1465.164288 | F64: 1389.03628 | G64: 1304.542618 | H64: 1224.266779 | I64: 1148.455435 | J64: 1077.359804 | K64: 1011.587193 | L64: 950.3884166 | M64: 895.1160929
A65: Nettovelka (rahat-lainat) | B65: =B63-B61 -> -31268270 | C65: =C63-C61 -> -31913176 | D65: -31227242.67 | E65: -33598139 | F65: -32516257.36 | G65: -32097122.07 | H65: -31569401.2 | I65: -30929024.4 | J65: -30171768.81 | K65: -29293252.67 | L65: -28288928.71 | M65: -27154077.19
A66: €/asukas | B66: =1000*B65/B7 -> -5689.890541 | C66: -5798.532759 | D66: -5671.095828 | E66: -6095.70552 | F66: -5894.133984 | G66: -5813.472249 | H66: -5713.882573 | I66: -5594.690068 | J66: -5455.15882 | K66: -5296.320103 | L66: -5111.999996 | M66: -4906.924681
A68: TULOSLASKELMAN ERIEN KASVUPROSENTIT:
A69: Muutos ed. vuodesta, %: | C69: 2019/2020 | D69: SYÖTÄ HALUAMASI KASVUPROSENTIT! | I69: pääoletuksena samat arvot kuin v. 2025 > | O69: Syötä muutos-
A70: Toimintatuotot | C70: =((C11/B11)-1)*100 -> -1.205736425 | D70: 16.2 | E70: -8.3 | F70: -32 | G70: 1.2 | H70: 1 | I70: =H70 -> 1 | J70: =I70 -> 1 | K70: 1 | L70: 1 | M70: 1 | O70: prosentit
A71: Toimintakulut | C71: =((C12/B12)-1)*100 -> 0.9470836795 | D71: 4.7 | E71: 2.4 | F71: -54.4 | G71: 1.6 | H71: 1.6 | I71: 1.6 | J71: 1.6 | K71: 1.6 | L71: 1.6 | M71: 1.6 | O71: Vuosien 2021 - 2025
A72: Kunnallisverot | C72: =((C15/B15)-1)*100 -> 7.819613076 | D72: 1.7 | E72: 3.7 | F72: -53.7 | G72: -5.1 | H72: 1.9 | I72: 1.9 | J72: 1.9 | K72: 1.9 | L72: 1.9 | M72: 1.9 | O72: pohjana KTO:n touko/2021
A73: Yhteisöverot | C73: =((C16/B16)-1)*100 -> 4.865853181 | D73: 26.4 | E73: -16 | F73: -28.1 | G73: -7.3 | H73: 4.2 | I73: 4.2 | J73: 4.2 | K73: 4.2 | L73: 4.2 | M73: 4.2 | O73: arvioluvut koko maan
A74: Kiinteistöverot | C74: =((C17/B17)-1)*100 -> -2.565281133 | D74: 20.6 | E74: -3.5 | F74: 1.3 | G74: 1.3 | H74: 1.2 | I74: 1.2 | J74: 1.2 | K74: 1.2 | L74: 1.2 | M74: 1.2 | O74: kehityksestä
A75: Valtionosuudet (pl. hark.var.) | C75: =((C19/B19)-1)*100 -> 24.91880135 | D75: -9.2 | E75: 5.2 | F75: -67 | G75: 2.6 | H75: 2 | I75: 2 | J75: 2 | K75: 2 | L75: 2 | M75: 2
A76: TAUSTAMUUTTUJAT:
A77: VALITSE KESKIMÄÄR. LAINANLYHENNYSAIKA (VUODET): | H77: 8 | I77: Esim. lainanlyhennysaika 8 vuotta, jolloin vuosilyhennys = 1/8 eli 12,5 % * lainamäärä
A78: VALITSE KESKIMÄÄR. KORKOKANTA (KORKOPROSENTTI): | H78: 1.7 | I78: Vaikutus korkomenoihin, ei korkotuloihin
A79: MONTAKO % RAHAVAROISTA KÄYTETÄÄN (4.) BRUTTORAHOITUSTARPEEN KATTAMISEEN ? | H79: 0.1 | I79: Syötä prosenttiosuus, joka käytetään rahavaroista.
B85: =B5 -> TP 2019 | C85: =C5 -> TP 2020 | D85: =D5 -> 2021 | E85: 2022 | F85: 2023 | G85: 2024 | H85: 2025 | I85: 2026 | J85: 2027 | K85: 2028 | L85: 2029 | M85: 2030
A86: Vuosikate | B86: =B26 -> 814.6590754 | C86: =C26 -> 1252.690571 | D86: =D26 -> 1543.978632 | E86: 987.8697213 | F86: 1612.860306 | G86: 1491.523758 | H86: 1510.131587 | I86: 1529.622729 | J86: 1550.039351 | K86: 1571.96367 | L86: 1593.857445 | M86: 1617.444655
A87: Poistot ja arvonalent. | B87: =1000*B27/B7 -> 813.1769288 | C87: =1000*C27/C7 -> 850.6046154 | D87: =1000*D27/D7 -> 855.2852365 | E87: 859.5761646 | F87: 863.9588166 | G87: 868.4425218 | H87: 873.0407538 | I87: 877.763147 | J87: 882.6166989 | K87: 887.9123991 | L87: 892.7622481 | M87: 898.1188216
A88: Nettoinvestoinnit | B88: =-1000*B48/B7 -> 1243.118982 | C88: 1320.114927 | D88: =-1000*D48/D7 -> 1319.462348 | E88: 1318.172994 | F88: 1316.991906 | G88: 1315.931139 | H88: 1315.008683 | I88: 1314.236322 | J88: 1313.621603 | K88: 1313.621603 | L88: 1312.919194 | M88: 1312.919194
B115: =B5 -> TP 2019 | C115: =C5 -> TP 2020 | D115: =D5 -> 2021 | E115: 2022 | F115: 2023 | G115: 2024 | H115: 2025 | I115: 2026 | J115: 2027 | K115: 2028 | L115: 2029 | M115: 2030
A116: Rahavarat | B116: =B64 -> 1415.433759 | C116: 1682.390131 | D116: =D64 -> 1600.550208 | E116: 1465.164288 | F116: 1389.03628 | G116: 1304.542618 | H116: 1224.266779 | I116: 1148.455435 | J116: 1077.359804 | K116: 1011.587193 | L116: 950.3884166 | M116: 895.1160929
A117: Lainakanta | B117: =B62 -> 7105.3243 | C117: =C62 -> 7480.922891 | D117: =D62 -> 7271.646036 | E117: 7560.869808 | F117: 7283.170265 | G117: 7118.014867 | H117: 6938.149351 | I117: 6743.145503 | J117: 6532.518624 | K117: 6307.907296 | L117: 6062.388412 | M117: 5802.040774
A118: Nettovelka | B118: =B117-B116 -> 5689.890541 | C118: =C117-C116 -> 5798.532759 | D118: 5671.095828 | E118: 6095.70552 | F118: 5894.133984 | G118: 5813.472249 | H118: 5713.882573 | I118: 5594.690068 | J118: 5455.15882 | K118: 5296.320103 | L118: 5111.999996 | M118: 4906.924681

Sheet pohjatiedot
C1: 2019 | D1: 41 | E1: 42 | F1: 43 | G1: 44 | H1: 45 | I1: 46 | J1: 47 | K1: 48 | L1: 49 | M1: 50 | N1: 51 | O1: 52 | P1: 53 | Q1: 54 | R1: 55 | S1: 56 | T1: 57 | U1: 58 | V1: 59 | W1: 60 | X1: 61 | Y1: 62 | AB1: 63 | AC1: 64 | AD1: 65 | AE1: 66 | AF1: 67 | AG1: 68 | AH1: 69 | AI1: 70 | AJ1: 71 | AK1: 72 | AL1: 73 | AM1: 74 | AN1: 75 | AO1: 76 | AP1: 77 | AQ1: 2020 | AR1: 43 | AS1: 44 | AT1: 45 | AU1: 46 | AV1: 47 | AW1: 48 | AX1: 49 | AY1: 50 | AZ1: 51 | BA1: 52 | BB1: 53 | BC1: 54 | BD1: 55 | BE1: 56 | BF1: 57 | BG1: 58 | BH1: 59 | BI1: 60 | BJ1: 61 | BK1: 62 | BL1: 63 | BM1: 64 | BN1: 65 | BO1: 66 | BP1: 67 | BQ1: 68 | BR1: 69 | BS1: 70 | BT1: 71 | BU1: 72 | BV1: 73 | BW1: 74 | BX1: 75 | BY1: 76 | BZ1: 77 | CA1: 78 | CC1: 80 | CD1: 81 | CE1: 82 | CF1: vero-% | CG1: 84 | CH1: 85 | CI1: 86 | CJ1: 87 | CK1: 88 | CL1: 89 | CM1: 90 | CN1: 91 | CO1: 92 | CP1: 93 | CQ1: 94 | CR1: 95 | CS1: 96 | CT1: 2020, rivi 97 | CU1: 2020 | CV1: 99 | CW1: 100 | CX1: 101
A2: Kunta nro. | B2: Kunta | C2: Asukasluku | D2: Veroprosentti | G2: Toimintatuotot | H2: Toimintakulut | I2: Osuus osakkuusyhteisöjen voitoista/tappioista | J2: Kunnallisverot | K2: Yhteisöverot | L2: Kiinteistöverot | M2: Verotulot | N2: Valtionavut | O2: Korkotuotot | P2: Korkokulut | Q2: Muut rahoitustuotot | R2: Muut rahoituskulut | S2: VUOSIKATE | U2: Poistot ja arvonalent. | V2: Satunnaiset erät, netto | X2: Tlikauden tulos | Y2: Tilinpäätössiirrot | Z2: Tilikauden verot | AA2: Lask. verot | AB2: Vähemmintösiirrot | AD2: Tlikauden yli-/alijäämä | AF2: Kertynyt yli-/alijäämä | AI2: Nettoinv. 2019 | AJ2: Vuosikate-nettoinv. | AL2: Rahavarat | AN2: Lainakanta | AQ2: Asukasluku | AR2: Veroprosentti | AU2: Toimintatuotot | AV2: Toimintakulut | AW2: Osuus osakkuusyhteisöjen voitoista/tappioista | AX2: Kunnallisverot | AY2: Yhteisöverot | AZ2: Kiinteistöverot | BA2: Verotulot | BB2: Valtionavut | BC2: Korkotuotot | BD2: Korkokulut | BE2: Muut rahoitustuotot | BF2: Muut rahoituskulut | BG2: VUOSIKATE | BI2: Poistot ja arvonalent. | BJ2: Satunnaiset erät | BL2: Tlikauden tulos | BM2: Tilinpäätössiirrot | BN2: Tilikauden verot | BO2: Lask. verot | BP2: Vähemmistöosuudet | BQ2: Tlikauden yli-/alijäämä | BS2: Kertynyt yli-/alijäämä | BV2: Nettoinv. | BW2: Vuosikate-nettoinv. | BY2: Rahavarat | CA2: Lainakanta | CC2: Saamiset | CF2: 2021 | CS2: Kotikuntakorv+elatustuen palautus, netto | CT2: Tulorah.korjauserät | CU2: Investointimenot | CV2: Rahoitusos. inv.menoihin | CW2: Inv.hyödyk. luovutustulot | CX2: antolainauksen muutokset
A3: 20 | B3: Akaa | C3: 16475 | D3: 22.25 | G3: 64620 | H3: 153015 | I3: -4 | J3: 54693 | K3: 1613 | L3: 3319 | M3: 59625 | N3: 33974 | O3: 354 | P3: 434 | Q3: 422 | R3: 195 | S3: 8715 | U3: 8464 | V3: 0 | X3: 251 | Y3: 0 | Z3: 70 | AA3: -43 | AB3: -102 | AD3: 36 | AF3: -9892 | AI3: -9549 | AL3: 7089 | AN3: 73531 | AQ3: 16391 | AR3: 22.25 | AU3: 84365 | AV3: 170341 | AW3: 531 | AX3: 59104 | AY3: 1773 | AZ3: 3273 | BA3: 64150 | BB3: 39506 | BC3: 317 | BD3: 464 | BE3: 436 | BF3: 98 | BG3: 18402 | BI3: 8763 | BJ3: 0 | BL3: 9639 | BM3: 0 | BN3: 227 | BO3: -18 | BP3: -409 | BQ3: 8985 | BS3: -1092 | BY3: 13174 | CA3: 75779 | CF3: 22.25 | CT3: -2549 | CU3: -19500 | CV3: 115 | CW3: 4017 | CX3: -3
A4: 5 | B4: Alajärvi | C4: 9562 | D4: 21.75 | G4: 71516 | H4: 133738 | I4: 226 | J4: 24613 | K4: 2142 | L4: 2138 | M4: 28893 | N4: 36500 | O4: 16 | P4: 393 | Q4: 287 | R4: 123 | S4: 3803 | U4: 6114 | V4: 0 | X4: -2311 | Y4: -11 | Z4: 48 | AA4: -5 | AB4: 7 | AD4: -2368 | AF4: 4891 | AI4: -10556 | AL4: 7664 | AN4: 50397 | AQ4: 9419 | AR4: 21.75 | AU4: 70222 | AV4: 131111 | AW4: 113 | AX4: 25512 | AY4: 2144 | AZ4: 1927 | BA4: 29583 | BB4: 40681 | BC4: 6 | BD4: 379 | BE4: 337 | BF4: 64 | BG4: 9388 | BI4: 6287 | BJ4: 0 | BL4: 3101 | BM4: -21 | BN4: 64 | BO4: -15 | BP4: 29 | BQ4: 3030 | BS4: 7816 | BY4: 9622 | CA4: 51214 | CF4: 21.75 | CT4: -378 | CU4: -8822 | CV4: 275 | CW4: 28 | CX4: 7
A5: 9 | B5: Alavieska | C5: 2519 | D5: 22 | G5: 15791 | H5: 31650 | I5: 1 | J5: 6537 | K5: 259 | L5: 732 | M5: 7528 | N5: 9685 | O5: 0 | P5: 27 | Q5: 25 | R5: 11 | S5: 1774 | U5: 1068 | V5: 0 | X5: 706 | Y5: 0 | Z5: 1 | AA5: 0 | AB5: 0 | AD5: 705 | AF5: 1631 | AI5: -1629 | AL5: 3197 | AN5: 10120 | AQ5: 2517 | AR5: 22 | AU5: 16575 | AV5: 32888 | AW5: 1 | AX5: 6711 | AY5: 305 | AZ5: 700 | BA5: 7716 | BB5: 10928 | BC5: 0 | BD5: -10 | BE5: 24 | BF5: 12 | BG5: 2350 | BI5: 1045 | BJ5: 0 | BL5: 1305 | BM5: -3 | BN5: 0 | BO5: -1 | BP5: 0 | BQ5: 1301 | BS5: 2931 | BY5: 5398 | CA5: 11249 | CF5: 22 | CT5: 127 | CU5: -1856 | CV5: 13 | CW5: 559 | CX5: -693
A6: 10 | B6: Alavus | C6: 11468 | D6: 21.25 | G6: 72735 | H6: 141054 | I6: 562 | J6: 28747 | K6: 2398 | L6: 2756 | M6: 33901 | N6: 38072 | O6: 67 | P6: 569 | Q6: 361 | R6: 223 | S6: 4949 | U6: 7456 | V6: 9142 | X6: 6635 | Y6: 11 | Z6: 14 | AA6: -71 | AB6: 17 | AD6: 6578 | AF6: 25846 | AI6: -2931 | AL6: 18541 | AN6: 78561 | AQ6: 11332 | AR6: 21.25 | AU6: 73727 | AV6: 142464 | AW6: 488 | AX6: 29760 | AY6: 2810 | AZ6: 2502 | BA6: 35072 | BB6: 43125 | BC6: 38 | BD6: 572 | BE6: 832 | BF6: -74 | BG6: 10211 | BI6: 8085 | BJ6: 0 | BL6: 2126 | BM6: 29 | BN6: 21 | BO6: -64 | BP6: -5 | BQ6: 2065 | BS6: 28359 | BY6: 29350 | CA6: 80862 | CF6: 21.25 | CT6: -775 | CU6: -12011 | CV6: 591 | CW6: 297 | CX6: 204
A7: 16 | B7: Asikkala | C7: 8083 | D7: 20.75 | G7: 42608 | H7: 88825 | I7: 16 | J7: 24509 | K7: 1436 | L7: 2893 | M7: 28838 | N7: 20631 | O7: 11 | P7: 104 | Q7: 281 | R7: 157 | S7: 4206 | U7: 4111 | V7: -266 | X7: -171 | Y7: 0 | Z7: 3 | AA7: -28 | AB7: -2 | AD7: -204 | AF7: 10323 | AI7: -3897 | AL7: 3963 | AN7: 19437 | AQ7: 8059 | AR7: 20.75 | AU7: 42719 | AV7: 87980 | AW7: 7 | AX7: 27480 | AY7: 1731 | AZ7: 2672 | BA7: 31883 | BB7: 24269 | BC7: 9 | BD7: 139 | BE7: 296 | BF7: 295 | BG7: 10728 | BI7: 4146 | BJ7: 0 | BL7: 6582 | BM7: 0 | BN7: 1 | BO7: -57 | BP7: -2 | BQ7: 6522 | BS7: 16120 | BY7: 5585 | CA7: 13084 | CF7: 20.75 | CT7: -161 | CU7: -4516 | CV7: 25 | CW7: 360 | CX7: 28
A8: 18 | B8: Askola | C8: 4943 | D8: 21.5 | G8: 14287 | H8: 39474 | I8: 3 | J8: 16454 | K8: 949 | L8: 1144 | M8: 18547 | N8: 8303 | O8: 1 | P8: 275 | Q8: 343 | R8: 62 | S8: 2833 | U8: 2340 | V8: 2496 | X8: 2989 | Y8: 7 | Z8: 1 | AA8: 0 | AB8: -2 | AD8: 2993 | AF8: 1595 | AI8: -4349 | AL8: 6873 | AN8: 29815 | AQ8: 4878 | AR8: 21.5 | AU8: 17350 | AV8: 42794 | AW8: -1 | AX8: 18369 | AY8: 1008 | AZ8: 1079 | BA8: 20456 | BB8: 9951 | BC8: 6 | BD8: 225 | BE8: 389 | BF8: 59 | BG8: 5073 | BI8: 2989 | BJ8: 0 | BL8: 2084 | BM8: 6 | BN8: 11 | BO8: 0 | BP8: -1 | BQ8: 2078 | BS8: 3673 | BY8: 10480 | CA8: 32665 | CF8: 21.5 | CT8: -50 | CU8: -4429 | CV8: 132 | CW8: 128 | CX8: 0
A9: 19 | B9: Aura | C9: 3941 | D9: 21.75 | G9: 12253 | H9: 32020 | I9: 7 | J9: 12992 | K9: 571 | L9: 751 | M9: 14314 | N9: 6395 | O9: 0 | P9: 50 | Q9: 40 | R9: 25 | S9: 1307 | U9: 1309 | V9: -1 | X9: -3 | Y9: -107 | Z9: 0 | AA9: -26 | AB9: -46 | AD9: -182 | AF9: 1610 | AI9: -1210 | AL9: 2002 | AN9: 15560 | AQ9: 3959 | AR9: 21.5 | AU9: 12469 | AV9: 32750 | AW9: 9 | AX9: 14340 | AY9: 541 | AZ9: 714 | BA9: 15595 | BB9: 8550 | BC9: 1 | BD9: 64 | BE9: 35 | BF9: 14 | BG9: 3831 | BI9: 1367 | BJ9: 0 | BL9: 2464 | BM9: -66 | BN9: 0 | BO9: -15 | BP9: -32 | BQ9: 2351 | BS9: 3988 | BY9: 4162 | CA9: 14602 | CF9: 21.5 | CT9: 58 | CU9: -1397 | CV9: 20 | CW9: -118 | CX9: 0
A10: 46 | B10: Enonkoski | C10: 1361 | D10: 21 | G10: 10276 | H10: 19669 | I10: 0 | J10: 3379 | K10: 569 | L10: 533 | M10: 4481 | N10: 5745 | O10: 4 | P10: 10 | Q10: 99 | R10: 5 | S10: 1153 | U10: 877 | V10: 0 | X10: 276 | Y10: 0 | Z10: 0 | AA10: -4 | AB10: 0 | AD10: 272 | AF10: 6931 | AI10: -666 | AL10: 3555 | AN10: 804 | AQ10: 1369 | AR10: 21 | AU10: 10495 | AV10: 19664 | AW10: 0 | AX10: 3472 | AY10: 680 | AZ10: 490 | BA10: 4642 | BB10: 6330 | BC10: 0 | BD10: 9 | BE10: 118 | BF10: 3 | BG10: 1909 | BI10: 792 | BJ10: 6 | BL10: 1123 | BM10: 0 | BN10: 0 | BO10: 3 | BP10: 0 | BQ10: 1126 | BS10: 8046 | BY10: 5233 | CA10: 1129 | CF10: 21 | CT10: -85 | CU10: -771 | CV10: 1 | CW10: 134 | CX10: -6
A11: 47 | B11: Enontekiö | C11: 1838 | D11: 21.25 | G11: 8571 | H11: 22860 | I11: -7 | J11: 5155 | K11: 384 | L11: 823 | M11: 6362 | N11: 8789 | O11: 18 | P11: 95 | Q11: 619 | R11: 218 | S11: 1080 | U11: 1024 | V11: 0 | X11: 56 | Y11: 1 | Z11: 30 | AA11: -4 | AB11: 0 | AD11: 23 | AF11: 2110 | AI11: -1671 | AL11: 1978 | AN11: 9071 | AQ11: 1808 | AR11: 21.25 | AU11: 8457 | AV11: 22984 | AW11: -10 | AX11: 5173 | AY11: 456 | AZ11: 765 | BA11: 6394 | BB11: 9753 | BC11: 11 | BD11: 61 | BE11: 472 | BF11: 201 | BG11: 1831 | BI11: 1189 | BJ11: -1 | BL11: 641 | BM11: 0 | BN11: -11 | BO11: 5 | BP11: 0 | BQ11: 657 | BS11: 2797 | BY11: 2251 | CA11: 10084 | CF11: 21.25 | CT11: -160 | CU11: -2941 | CV11: 132 | CW11: 145 | CX11: -39
A12: 49 | B12: Espoo | C12: 289731 | D12: 18 | G12: 1171298 | H12: 2544378 | I12: -1283 | J12: 1259684 | K12: 125298 | L12: 117004 | M12: 1501986 | N12: 113469 | O12: 11572 | P12: 46261 | Q12: 48319 | R12: 3849 | S12: 270071 | U12: 323458 | V12: 0 | X12: -53387 | Y12: 15025 | Z12: 603 | AA12: 2899 | AB12: 3766 | AD12: -32300 | AF12: 551120 | AI12: -508527 | AL12: 979656 | AN12: 3802739 | AQ12: 292796 | AR12: 18 | AU12: 1178888 | AV12: 2601118 | AW12: 1586 | AX12: 1356824 | AY12: 136178 | AZ12: 112338 | BA12: 1605340 | BB12: 267013 | BC12: 11506 | BD12: 50960 | BE12: 34821 | BF12: 12336 | BG12: 434740 | BI12: 330694 | BJ12: 0 | BL12: 104046 | BM12: 15019 | BN12: 837 | BO12: 618 | BP12: 4334 | BQ12: 123180 | BS12: 665687 | BY12: 1249091 | CA12: 4285902 | CF12: 18 | CT12: -78969 | CU12: -784640 | CV12: 84956 | CW12: 91312 | CX12: 2749
A13: 50 | B13: Eura | C13: 11632 | D13: 20.5 | G13: 36328 | H13: 104526 | I13: 0 | J13: 38473 | K13: 1964 | L13: 3128 | M13: 43565 | N13: 26709 | O13: 3 | P13: 343 | Q13: 162 | R13: 140 | S13: 1480 | U13: 6065 | V13: 3 | X13: -4582 | Y13: 0 | Z13: 2 | AA13: 26 | AB13: 10 | AD13: -4548 | AF13: -3389 | AI13: -9291 | AL13: 4992 | AN13: 63193 | AQ13: 11483 | AR13: 21 | AU13: 37130 | AV13: 103474 | AW13: 0 | AX13: 40534 | AY13: 2487 | AZ13: 2814 | BA13: 45835 | BB13: 31571 | BC13: 4 | BD13: 413 | BE13: 150 | BF13: 13 | BG13: 10790 | BI13: 6675 | BJ13: 0 | BL13: 4115 | BM13: 0 | BN13: 2 | BO13: -20 | BP13: 16 | BQ13: 4109 | BS13: 683 | BY13: 6179 | CA13: 60326 | CF13: 21 | CT13: -17 | CU13: -7143 | CV13: 47 | CW13: 663 | CX13: -19
A14: 51 | B14: Eurajoki | C14: 9402 | D14: 18 | G14: 32393 | H14: 93103 | I14: 0 | J14: 28914 | K14: 2214 | L14: 19212 | M14: 50340 | N14: 11120 | O14: 0 | P14: 49 | Q14: 2163 | R14: 378 | S14: 4206 | U14: 5684 | V14: 0 | X14: -1478 | Y14: -49 | Z14: 13 | AA14: -14 | AB14: 0 | AD14: -1554 | AF14: 74437 | AI14: -4781 | AL14: 24367 | AN14: 14768 | AQ14: 9452 | AR14: 18 | AU14: 31423 | AV14: 92433 | AW14: 0 | AX14: 28776 | AY14: 2667 | AZ14: 19742 | BA14: 51185 | BB14: 14150 | BC14: 2 | BD14: 130 | BE14: 910 | BF14: 294 | BG14: 4813 | BI14: 5453 | BJ14: 86 | BL14: -554 | BM14: -24 | BN14: 1 | BO14: -6 | BP14: 0 | BQ14: -585 | BS14: 73724 | BY14: 24925 | CA14: 16034 | CF14: 18 | CT14: -189 | CU14: -8421 | CV14: 24 | CW14: 4070 | CX14: 211
A15: 52 | B15: Evijärvi | C15: 2425 | D15: 21.5 | G15: 7743 | H15: 25616 | I15: 1 | J15: 6586 | K15: 639 | L15: 750 | M15: 7975 | N15: 9272 | O15: 57 | P15: 33 | Q15: 722 | R15: 98 | S15: 94 | U15: 1115 | V15: 0 | X15: -1021 | Y15: -12 | Z15: 2 | AA15: 2 | AB15: 4 | AD15: -1029 | AF15: 1214 | AI15: -1945 | AL15: 7580 | AN15: 9505 | AQ15: 2408 | AR15: 21.5 | AU15: 7707 | AV15: 25330 | AW15: 2 | AX15: 6733 | AY15: 674 | AZ15: 693 | BA15: 8100 | BB15: 10208 | BC15: 68 | BD15: 33 | BE15: 734 | BF15: 503 | BG15: 953 | BI15: 1260 | BJ15: 0 | BL15: -307 | BM15: -5 | BN15: 5 | BO15: 0 | BP15: -1 | BQ15: -318 | BS15: 887 | BY15: 8419 | CA15: 13108 | CF15: 21.5 | CT15: -62 | CU15: -2299 | CV15: 61 | CW15: 7 | CX15: 14
A16: 61 | B16: Forssa | C16: 16901 | D16: 20.5 | G16: 75167 | H16: 172163 | I16: 0 | J16: 51271 | K16: 3659 | L16: 5309 | M16: 60239 | N16: 45460 | O16: 129 | P16: 643 | Q16: 132 | R16: 40 | S16: 8303 | U16: 9409 | V16: 0 | X16: -1106 | Y16: 4 | Z16: 11 | AA16: 200 | AB16: -11 | AD16: -924 | AF16: 22751 | AI16: -7846 | AL16: 27447 | AN16: 68965 | AQ16: 16800 | AR16: 20.5 | AU16: 75469 | AV16: 174682 | AW16: 0 | AX16: 52863 | AY16: 3955 | AZ16: 4744 | BA16: 61562 | BB16: 53410 | BC16: 43 | BD16: 710 | BE16: 79 | BF16: 12 | BG16: 14768 | BI16: 10822 | BJ16: 0 | BL16: 3946 | BM16: 1 | BN16: 38 | BO16: 0 | BP16: 13 | BQ16: 3922 | BS16: 26673 | BY16: 32654 | CA16: 67667 | CF16: 20.5 | CT16: -988 | CU16: -9940 | CV16: 135 | CW16: 183 | CX16: 179
A17: 69 | B17: Haapajärvi | C17: 7010 | D17: 22.5 | G17: 42245 | H17: 90080 | I17: 17 | J17: 19358 | K17: 1560 | L17: 2243 | M17: 23161 | N17: 25932 | O17: 31 | P17: 392 | Q17: 2058 | R17: 233 | S17: 3058 | U17: 4278 | V17: 0 | X17: -1220 | Y17: -1 | Z17: 206 | AA17: 28 | AB17: -192 | AD17: -1591 | AF17: 3187 | AI17: -11723 | AL17: 22673 | AN17: 51953 | AQ17: 6896 | AR17: 22.5 | AU17: 43245 | AV17: 89699 | AW17: 54 | AX17: 20221 | AY17: 1388 | AZ17: 2015 | BA17: 23624 | BB17: 30447 | BC17: 25 | BD17: 376 | BE17: 1043 | BF17: 631 | BG17: 7639 | BI17: 4983 | BJ17: 0 | BL17: 2656 | BM17: -15 | BN17: 13 | BO17: 8 | BP17: -14 | BQ17: 2622 | BS17: 5920 | BY17: 24136 | CA17: 63333 | CF17: 22.5 | CT17: -563 | CU17: -17193 | CV17: 55 | CW17: 1468 | CX17: -11
A18: 71 | B18: Haapavesi | C18: 6758 | D18: 22 | G18: 33053 | H18: 77883 | I18: 2 | J18: 17246 | K18: 1309 | L18: 1664 | M18: 20219 | N18: 27134 | O18: 29 | P18: 374 | Q18: 693 | R18: 243 | S18: 3653 | U18: 3661 | V18: 0 | X18: -8 | Y18: -1 | Z18: 91 | AA18: -1 | AB18: 25 | AD18: -76 | AF18: -249 | AI18: -3500 | AL18: 13882 | AN18: 37478 | AQ18: 6667 | AR18: 22 | AU18: 37213 | AV18: 78944 | AW18: 4 | AX18: 18864 | AY18: 1224 | AZ18: 1488 | BA18: 21576 | BB18: 26831 | BC18: 22 | BD18: 331 | BE18: 1343 | BF18: 1373 | BG18: 6226 | BI18: 3718 | BJ18: 0 | BL18: 2508 | BM18: -15 | BN18: 103 | BO18: 2 | BP18: 21 | BQ18: 2413 | BS18: 2279 | BY18: 16524 | CA18: 43083 | CF18: 22 | CT18: -616 | CU18: -11443 | CV18: 205 | CW18: 908 | CX18: -32
A19: 72 | B19: Hailuoto | C19: 959 | D19: 20.5 | G19: 5157 | H19: 12141 | I19: 1 | J19: 3032 | K19: 98 | L19: 339 | M19: 3469 | N19: 3713 | O19: 6 | P19: 19 | Q19: 4 | R19: 4 | S19: 308 | U19: 692 | V19: 0 | X19: -384 | Y19: -1 | Z19: 1 | AA19: 0 | AB19: 0 | AD19: -386 | AF19: 6414 | AI19: -2468 | AL19: 1115 | AN19: 3581 | AQ19: 949 | AR19: 20.5 | AU19: 5273 | AV19: 12083 | AW19: 1 | AX19: 3176 | AY19: 121 | AZ19: 308 | BA19: 3605 | BB19: 4142 | BC19: 5 | BD19: 20 | BE19: 5 | BF19: 5 | BG19: 923 | BI19: 816 | BJ19: 0 | BL19: 107 | BM19: 2 | BN19: 0 | BO19: -1 | BP19: 0 | BQ19: 108 | BS19: 6520 | BY19: 1167 | CA19: 3968 | CF19: 20.5 | CT19: -32 | CU19: -1436 | CV19: 42 | CW19: 50 | CX19: -3
A20: 74 | B20: Halsua | C20: 1127 | D20: 22 | G20: 9293 | H20: 17331 | I20: 53 | J20: 2623 | K20: 432 | L20: 356 | M20: 3411 | N20: 4788 | O20: 7 | P20: 132 | Q20: 26 | R20: 1 | S20: 555 | U20: 841 | V20: 0 | X20: -286 | Y20: -3 | Z20: 6 | AA20: 0 | AB20: -2 | AD20: -297 | AF20: 1778 | AI20: -699 | AL20: 2342 | AN20: 14435 | AQ20: 1103 | AR20: 23.5 | AU20: 9046 | AV20: 16539 | AW20: 53 | AX20: 3206 | AY20: 440 | AZ20: 354 | BA20: 4000 | BB20: 5567 | BC20: 4 | BD20: 101 | BE20: 24 | BF20: 0 | BG20: 2054 | BI20: 1216 | BJ20: 0 | BL20: 838 | BM20: -16 | BN20: 8 | BO20: 0 | BP20: -2 | BQ20: 812 | BS20: 2594 | BY20: 2538 | CA20: 13689 | CF20: 23.5 | CT20: -39 | CU20: -744 | CV20: 9 | CW20: 24 | CX20: 42
A21: 75 | B21: Hamina | C21: 20111 | D21: 21 | G21: 118933 | H21: 232851 | I21: 859 | J21: 69190 | K21: 5404 | L21: 6608 | M21: 81202 | N21: 45626 | O21: 56 | P21: 1738 | Q21: 1266 | R21: 39 | S21: 17300 | U21: 17437 | V21: 0 | X21: -137 | Y21: 0 | Z21: 0 | AA21: -139 | AB21: 41 | AD21: -235 | AF21: 22890 | AI21: -25070 | AL21: 17730 | AN21: 158807 | AQ21: 19877 | AR21: 21 | AU21: 120573 | AV21: 233718 | AW21: 354 | AX21: 74460 | AY21: 8528 | AZ21: 6211 | BA21: 89199 | BB21: 54776 | BC21: 94 | BD21: 1607 | BE21: 1426 | BF21: 1174 | BG21: 29649 | BI21: 20772 | BJ21: 0 | BL21: 8877 | BM21: 0 | BN21: 0 | BO21: -122 | BP21: 38 | BQ21: 8793 | BS21: 31165 | BY21: 20029 | CA21: 169472 | CF21: 21 | CT21: -936 | CU21: -35362 | CV21: 72 | CW21: 3324 | CX21: -117
A22: 77 | B22: Hankasalmi | C22: 4875 | D22: 22 | G22: 14039 | H22: 48849 | I22: 0 | J22: 12406 | K22: 873 | L22: 1307 | M22: 14586 | N22: 19794 | O22: 81 | P22: 97 | Q22: 185 | R22: 13 | S22: 485 | U22: 2389 | V22: 0 | X22: -1904 | Y22: 0 | Z22: 0 | AA22: 12 | AB22: 0 | AD22: -1892 | AF22: -2962 | AI22: -5172 | AL22: 3019 | AN22: 25356 | AQ22: 4782 | AR22: 22 | AU22: 14477 | AV22: 46862 | AW22: 0 | AX22: 13086 | AY22: 1057 | AZ22: 1281 | BA22: 15424 | BB22: 22009 | BC22: 80 | BD22: 93 | BE22: 193 | BF22: 11 | BG22: 5151 | BI22: 3550 | BJ22: 645 | BL22: 2246 | BM22: -2 | BN22: 0 | BO22: 12 | BP22: -8 | BQ22: 2248 | BS22: -714 | BY22: 2369 | CA22: 19663 | CF22: 22 | CT22: -869 | CU22: -4878 | CV22: 505 | CW22: 4148 | CX22: 0
A23: 78 | B23: Hanko | C23: 8199 | D23: 21.75 | G23: 58826 | H23: 98522 | I23: 6 | J23: 33003 | K23: 2734 | L23: 2943 | M23: 38680 | N23: 12613 | O23: 31 | P23: 881 | Q23: 311 | R23: 116 | S23: 11521 | U23: 6330 | V23: 0 | X23: 5191 | Y23: 2 | Z23: 935 | AA23: -110 | AB23: -2 | AD23: 4146 | AF23: 11659 | AI23: -15254 | AL23: 5910 | AN23: 77806 | AQ23: 8042 | AR23: 21.75 | AU23: 56099 | AV23: 97520 | AW23: -2 | AX23: 34419 | AY23: 3162 | AZ23: 2581 | BA23: 40162 | BB23: 15883 | BC23: 18 | BD23: 808 | BE23: 209 | BF23: 99 | BG23: 13756 | BI23: 6632 | BJ23: 0 | BL23: 7124 | BM23: -5 | BN23: 83 | BO23: -31 | BP23: 26 | BQ23: 7031 | BS23: 19797 | BY23: 9887 | CA23: 76185 | CF23: 21.75 | CT23: -1947 | CU23: -8943 | CV23: 129 | CW23: 1920 | CX23: 81
A24: 79 | B24: Harjavalta | C24: 6931 | D24: 21.5 | G24: 27182 | H24: 73761 | I24: -49 | J24: 24048 | K24: 7408 | L24: 1893 | M24: 33349 | N24: 12330 | O24: 4 | P24: 134 | Q24: 82 | R24: 14 | S24: -137 | U24: 3400 | V24: 0 | X24: -3537 | Y24: 0 | Z24: 14 | AA24: -23 | AB24: -12 | AD24: -3586 | AF24: 2086 | AI24: -3855 | AL24: 3993 | AN24: 28217 | AQ24: 6869 | AR24: 21.5 | AU24: 28433 | AV24: 73592 | AW24: 5 | AX24: 24952 | AY24: 7229 | AZ24: 2573 | BA24: 34754 | BB24: 15709 | BC24: 0 | BD24: 106 | BE24: 84 | BF24: 14 | BG24: 5273 | BI24: 3753 | BJ24: 67 | BL24: 1587 | BM24: 0 | BN24: 13 | BO24: -22 | BP24: -8 | BQ24: 1544 | BS24: 3547 | BY24: 4047 | CA24: 26248 | CF24: 21.5 | CT24: -169 | CU24: -5505 | CV24: 84 | CW24: 1609 | CX24: 0
A25: 81 | B25: Hartola | C25: 2697 | D25: 21.5 | G25: 20524 | H25: 37663 | I25: 6 | J25: 7218 | K25: 1260 | L25: 1318 | M25: 9796 | N25: 8632 | O25: 17 | P25: 236 | Q25: 84 | R25: 26 | S25: 693 | U25: 1929 | V25: -21 | X25: -1257 | Y25: 9 | Z25: 0 | AA25: 0 | AB25: -38 | AD25: -1286 | AF25: -52 | AI25: 2813 | AL25: 2478 | AN25: 26820 | AQ25: 2655 | AR25: 21.5 | AU25: 19937 | AV25: 36440 | AW25: 1 | AX25: 7580 | AY25: 1467 | AZ25: 1216 | BA25: 10263 | BB25: 10534 | BC25: 19 | BD25: 182 | BE25: 209 | BF25: 10 | BG25: 4331 | BI25: 2354 | BJ25: 60 | BL25: 2037 | BM25: 105 | BN25: 0 | BO25: 0 | BP25: -38 | BQ25: 2104 | BS25: 1958 | BY25: 4574 | CA25: 26176 | CF25: 21.5 | CT25: -58 | CU25: -2535 | CV25: 17 | CW25: 88 | CX25: 368
A26: 82 | B26: Hattula | C26: 9422 | D26: 20.5 | G26: 24788 | H26: 72510 | I26: 0 | J26: 34059 | K26: 1307 | L26: 2308 | M26: 37674 | N26: 12228 | O26: 202 | P26: 213 | Q26: 101 | R26: 25 | S26: 1414 | U26: 3746 | V26: 84 | X26: -2248 | Y26: 3 | Z26: 1 | AA26: 37 | AB26: -1 | AD26: -2210 | AF26: 5538 | AI26: -6218 | AL26: 2375 | AN26: 50441 | AQ26: 9389 | AR26: 20.75 | AU26: 25209 | AV26: 73629 | AW26: 0 | AX26: 35704 | AY26: 1266 | AZ26: 2308 | BA26: 39278 | BB26: 16802 | BC26: 209 | BD26: 226 | BE26: 83 | BF26: 118 | BG26: 7557 | BI26: 4056 | BJ26: 0 | BL26: 3501 | BM26: 2 | BN26: 97 | BO26: 49 | BP26: 0 | BQ26: 3455 | BS26: 8993 | BY26: 3384 | CA26: 47081 | CF26: 20.75 | CT26: -192 | CU26: -4949 | CV26: 117 | CW26: 841 | CX26: 5
A27: 86 | B27: Hausjärvi | C27: 8260 | D27: 21.5 | G27: 23063 | H27: 65993 | I27: 4 | J27: 28947 | K27: 1665 | L27: 1078 | M27: 31690 | N27: 13454 | O27: 6 | P27: 230 | Q27: 34 | R27: 3 | S27: 2986 | U27: 2929 | V27: 0 | X27: 57 | Y27: 2 | Z27: 11 | AA27: 0 | AB27: -1 | AD27: 47 | AF27: 5463 | AI27: -2731 | AL27: 4845 | AN27: 26350 | AQ27: 8175 | AR27: 21.5 | AU27: 23470 | AV27: 66919 | AW27: 0 | AX27: 30132 | AY27: 1174 | AZ27: 1548 | BA27: 32854 | BB27: 16696 | BC27: 17 | BD27: 182 | BE27: 48 | BF27: 13 | BG27: 5969 | BI27: 2928 | BJ27: 0 | BL27: 3041 | BM27: 1 | BN27: 17 | BO27: 0 | BP27: 0 | BQ27: 3025 | BS27: 8278 | BY27: 10299 | CA27: 32830 | CF27: 21.5 | CT27: -193 | CU27: -7973 | CV27: 516 | CW27: 243 | CX27: 17
A28: 111 | B28: Heinola | C28: 18667 | D28: 20.5 | G28: 103929 | H28: 207906 | I28: -1 | J28: 59686 | K28: 2988 | L28: 6243 | M28: 68917 | N28: 43449 | O28: 68 | P28: 702 | Q28: 4709 | R28: 450 | S28: 11500 | U28: 9163 | V28: -203 | X28: 2134 | Y28: 81 | Z28: 1 | AA28: -15 | AB28: -1 | AD28: 2198 | AF28: 31760 | AI28: -23605 | AL28: 88148 | AN28: 96615 | AQ28: 18497 | AR28: 20.5 | AU28: 104668 | AV28: 208423 | AW28: 350 | AX28: 63745 | AY28: 3729 | AZ28: 5523 | BA28: 72997 | BB28: 52020 | BC28: 60 | BD28: 684 | BE28: 7912 | BF28: 4865 | BG28: 24035 | BI28: 12027 | BJ28: 9325 | BL28: 21333 | BM28: -1 | BN28: 3 | BO28: 32 | BP28: -3 | BQ28: 21358 | BS28: 52919 | BY28: 108919 | CA28: 115900 | CF28: 20.5 | CT28: -1562 | CU28: -36097 | CV28: 622 | CW28: 1294 | CX28: 66
A29: 90 | B29: Heinävesi | C29: 3254 | D29: 21 | G29: 16696 | H29: 40621 | I29: 0 | J29: 8128 | K29: 2051 | L29: 1336 | M29: 11515 | N29: 13570 | O29: 156 | P29: 38 | Q29: 323 | R29: 6 | S29: 2034 | U29: 2240 | V29: 0 | X29: -206 | Y29: 47 | Z29: 0 | AA29: 1 | AB29: 0 | AD29: -158 | AF29: 1821 | AI29: -1098 | AL29: 6956 | AN29: 20052 | AQ29: 3196 | AR29: 21 | AU29: 16400 | AV29: 40562 | AW29: 0 | AX29: 8430 | AY29: 2534 | AZ29: 1230 | BA29: 12194 | BB29: 14537 | BC29: 158 | BD29: 50 | BE29: 324 | BF29: 9 | BG29: 2991 | BI29: 2002 | BJ29: 232 | BL29: 1221 | BM29: 25 | BN29: 0 | BO29: 0 | BP29: 0 | BQ29: 1246 | BS29: 3046 | BY29: 6113 | CA29: 17929 | CF29: 21 | CT29: -320 | CU29: -2502 | CV29: 2 | CW29: 1062 | CX29: -11
A30: 91 | B30: Helsinki | C30: 653835 | D30: 18 | G30: 3739674 | H30: 6076785 | I30: 16817 | J30: 2580483 | K30: 574753 | L30: 261346 | M30: 3416582 | N30: 233329 | O30: 22908 | P30: 60129 | Q30: 8984 | R30: 1480 | S30: 1377050 | U30: 834836 | V30: -50 | X30: 542164 | Y30: 1522 | Z30: 24319 | AA30: -15729 | AB30: 95 | AD30: 503733 | AF30: 5724455 | AI30: -1548805 | AL30: 1495297 | AN30: 5171263 | AQ30: 656920 | AR30: 18 | AU30: 3803496 | AV30: 6402147 | AW30: 32706 | AX30: 2791940 | AY30: 519324 | AZ30: 254334 | BA30: 3565598 | BB30: 480135 | BC30: 13263 | BD30: 57520 | BE30: 10211 | BF30: 7303 | BG30: 1438439 | BI30: 843312 | BJ30: 10330 | BL30: 605457 | BM30: 1035 | BN30: 12127 | BO30: -28734 | BP30: 3253 | BQ30: 568884 | BS30: 6237774 | BY30: 1628634 | CA30: 5552119 | CF30: 18 | CT30: -94871 | CU30: -2273959 | CV30: 16735 | CW30: 646667 | CX30: -10198
A31: 97 | B31: Hirvensalmi | C31: 2136 | D31: 20 | G31: 16178 | H31: 29763 | I31: 9 | J31: 5457 | K31: 882 | L31: 1289 | M31: 7628 | N31: 6866 | O31: 4 | P31: 77 | Q31: 342 | R31: 1 | S31: 1367 | U31: 1203 | V31: 953 | X31: 1117 | Y31: 0 | Z31: 0 | AA31: -5 | AB31: 0 | AD31: 1112 | AF31: 5377 | AI31: -293 | AL31: 12637 | AN31: 8444 | AQ31: 2156 | AR31: 20 | AU31: 16711 | AV31: 30360 | AW31: 5 | AX31: 5595 | AY31: 1068 | AZ31: 1200 | BA31: 7863 | BB31: 7444 | BC31: 5 | BD31: 75 | BE31: 423 | BF31: 6 | BG31: 1998 | BI31: 1419 | BJ31: 0 | BL31: 579 | BM31: 0 | BN31: 0 | BO31: -2 | BP31: 0 | BQ31: 577 | BS31: 5944 | BY31: 12275 | CA31: 7860 | CF31: 20 | CT31: -7 | CU31: -2122 | CV31: 278 | CW31: 32 | CX31: -8
A32: 98 | B32: Hollola | C32: 23410 | D32: 21 | G32: 98475 | H32: 222567 | I32: 40 | J32: 81565 | K32: 2799 | L32: 5376 | M32: 89740 | N32: 43056 | O32: 11 | P32: 829 | Q32: 1353 | R32: 29 | S32: 11818 | U32: 12065 | V32: 585 | X32: 338 | Y32: 0 | Z32: 12 | AA32: -43 | AB32: -28 | AD32: 255 | AF32: 23013 | AI32: -11292 | AL32: 15672 | AN32: 59118 | AQ32: 23251 | AR32: 21 | AU32: 98244 | AV32: 223563 | AW32: 4 | AX32: 89541 | AY32: 3406 | AZ32: 5284 | BA32: 98231 | BB32: 53936 | BC32: 8 | BD32: 508 | BE32: 1326 | BF32: 23 | BG32: 27309 | BI32: 12511 | BJ32: 289 | BL32: 15087 | BM32: 0 | BN32: 14 | BO32: -53 | BP32: -74 | BQ32: 14946 | BS32: 37959 | BY32: 29387 | CA32: 62377 | CF32: 21 | CT32: -474 | CU32: -23581 | CV32: 106 | CW32: 1140 | CX32: -36
A33: 102 | B33: Huittinen | C33: 10044 | D33: 21 | G33: 24003 | H33: 85796 | I33: -1 | J33: 28530 | K33: 1921 | L33: 2214 | M33: 32665 | N33: 29950 | O33: 2 | P33: 224 | Q33: 114 | R33: 66 | S33: 1604 | U33: 5325 | V33: -2 | X33: -3723 | Y33: 24 | Z33: 19 | AA33: 0 | AB33: -12 | AD33: -3730 | AF33: 3817 | AI33: -3800 | AL33: 6681 | AN33: 32748 | AQ33: 9937 | AR33: 21 | AU33: 23497 | AV33: 84677 | AW33: 94 | AX33: 31147 | AY33: 2209 | AZ33: 2614 | BA33: 35970 | BB33: 34354 | BC33: 5 | BD33: 236 | BE33: 106 | BF33: 14 | BG33: 9099 | BI33: 4746 | BJ33: -1 | BL33: 4352 | BM33: 0 | BN33: 0 | BO33: 90 | BP33: 9 | BQ33: 4451 | BS33: 8301 | BY33: 12456 | CA33: 33609 | CF33: 21 | CT33: -394 | CU33: -5446 | CV33: 175 | CW33: 535 | CX33: -2
A34: 103 | B34: Humppila | C34: 2184 | D34: 22 | G34: 8521 | H34: 21730 | I34: 0 | J34: 6326 | K34: 379 | L34: 547 | M34: 7252 | N34: 6317 | O34: 3 | P34: 56 | Q34: 5 | R34: 8 | S34: 820 | U34: 826 | V34: 2 | X34: -4 | Y34: 1 | Z34: 21 | AA34: 5 | AB34: 0 | AD34: -19 | AF34: -350 | AI34: 513 | AL34: 1383 | AN34: 8090 | AQ34: 2174 | AR34: 22 | AU34: 8735 | AV34: 21878 | AW34: 0 | AX34: 6564 | AY34: 458 | AZ34: 561 | BA34: 7583 | BB34: 6913 | BC34: 6 | BD34: 52 | BE34: 6 | BF34: 8 | BG34: 1305 | BI34: 927 | BJ34: 0 | BL34: 378 | BM34: 0 | BN34: 10 | BO34: 0 | BP34: 0 | BQ34: 368 | BS34: 16 | BY34: 1262 | CA34: 7245 | CF34: 22 | CT34: -27 | CU34: -460 | CV34: 23 | CW34: 29 | CX34: 12
A35: 105 | B35: Hyrynsalmi | C35: 2271 | D35: 21.75 | G35: 17700 | H35: 34833 | I35: 0 | J35: 5826 | K35: 701 | L35: 1190 | M35: 7717 | N35: 11004 | O35: 2 | P35: 59 | Q35: 33 | R35: 43 | S35: 1890 | U35: 1259 | V35: 0 | X35: 631 | Y35: 5 | Z35: 0 | AA35: -13 | AB35: -6 | AD35: 617 | AF35: -1019 | AI35: -2573 | AL35: 3504 | AN35: 11678 | AQ35: 2199 | AR35: 21.75 | AU35: 18876 | AV35: 35743 | AW35: 0 | AX35: 6147 | AY35: 845 | AZ35: 1059 | BA35: 8051 | BB35: 11034 | BC35: 7 | BD35: 57 | BE35: 17 | BF35: 124 | BG35: 2003 | BI35: 1475 | BJ35: 0 | BL35: 528 | BM35: 1 | BN35: 0 | BO35: -5 | BP35: -5 | BQ35: 519 | BS35: -500 | BY35: 4722 | CA35: 11940 | CF35: 21.75 | CT35: 7 | CU35: -1685 | CV35: 180 | CW35: 8 | CX35: 0
A36: 106 | B36: Hyvinkää | C36: 46470 | D36: 19.75 | G36: 289935 | H36: 522902 | I36: 124 | J36: 174257 | K36: 13476 | L36: 11764 | M36: 199497 | N36: 52983 | O36: 22 | P36: 3315 | Q36: 482 | R36: 570 | S36: 15043 | U36: 32570 | V36: 0 | X36: -17527 | Y36: 0 | Z36: 407 | AA36: -238 | AB36: -643 | AD36: -18815 | AF36: 35601 | AI36: -53690 | AL36: 61133 | AN36: 301476 | AQ36: 46576 | AR36: 19.75 | AU36: 292088 | AV36: 534798 | AW36: 65 | AX36: 183623 | AY36: 14846 | AZ36: 12519 | BA36: 210988 | BB36: 73265 | BC36: 28 | BD36: 3359 | BE36: 498 | BF36: 533 | BG36: 37515 | BI36: 34992 | BJ36: 0 | BL36: 2523 | BM36: 0 | BN36: 604 | BO36: -163 | BP36: -207 | BQ36: 1549 | BS36: 37151 | BY36: 60640 | CA36: 319350 | CF36: 19.75 | CT36: 2241 | CU36: -65184 | CV36: 449 | CW36: 3681 | CX36: 32
A37: 108 | B37: Hämeenkyrö | C37: 10404 | D37: 22 | G37: 37807 | H37: 93335 | I37: 30 | J37: 33656 | K37: 1656 | L37: 2107 | M37: 37419 | N37: 23976 | O37: 25 | P37: 404 | Q37: 367 | R37: 197 | S37: 6081 | U37: 7207 | V37: 0 | X37: -1126 | Y37: 0 | Z37: 58 | AA37: -53 | AB37: -78 | AD37: -1315 | AF37: 4926 | AI37: -6035 | AL37: 12439 | AN37: 67088 | AQ37: 10344 | AR37: 22 | AU37: 39065 | AV37: 96609 | AW37: 65 | AX37: 35286 | AY37: 1779 | AZ37: 1947 | BA37: 39012 | BB37: 27816 | BC37: 13 | BD37: 492 | BE37: 335 | BF37: 100 | BG37: 9046 | BI37: 7178 | BJ37: 0 | BL37: 1868 | BM37: 309 | BN37: 142 | BO37: -1 | BP37: -225 | BQ37: 1809 | BS37: 6507 | BY37: 15457 | CA37: 65727 | CF37: 22 | CT37: -188 | CU37: -4631 | CV37: 265 | CW37: 146 | CX37: 38
A38: 109 | B38: Hämeenlinna | C38: 67633 | D38: 20.75 | G38: 226363 | H38: 588799 | I38: 885 | J38: 237794 | K38: 15868 | L38: 27569 | M38: 281231 | N38: 113162 | O38: 648 | P38: 9622 | Q38: 7081 | R38: 188 | S38: 30593 | U38: 45777 | V38: 0 | X38: -15184 | Y38: -204 | Z38: 230 | AA38: 94 | AB38: -466 | AD38: -15990 | AF38: -14769 | AI38: -60264 | AL38: 133793 | AN38: 471602 | AQ38: 67848 | AR38: 21 | AU38: 216472 | AV38: 592943 | AW38: 368 | AX38: 255175 | AY38: 18457 | AZ38: 25347 | BA38: 298979 | BB38: 147428 | BC38: 449 | BD38: 9421 | BE38: 3724 | BF38: 1195 | BG38: 62362 | BI38: 47611 | BJ38: 0 | BL38: 14751 | BM38: 2786 | BN38: 333 | BO38: 256 | BP38: -275 | BQ38: 17185 | BS38: 2390 | BY38: 178916 | CA38: 509504 | CF38: 21 | CT38: -1072 | CU38: -68345 | CV38: 1002 | CW38: 7314 | CX38: -98
A39: 139 | B39: Ii | C39: 9844 | D39: 21.25 | G39: 64618 | H39: 124010 | I39: 4 | J39: 26489 | K39: 1373 | L39: 4228 | M39: 32090 | N39: 30435 | O39: 38 | P39: 519 | Q39: 212 | R39: 69 | S39: 4595 | U39: 6895 | V39: 0 | X39: -2300 | Y39: -6 | Z39: 5 | AA39: -59 | AB39: -6 | AD39: -2376 | AF39: 11308 | AI39: -10641 | AL39: 7615 | AN39: 62913 | AQ39: 9848 | AR39: 21.25 | AU39: 64481 | AV39: 125354 | AW39: -28 | AX39: 28922 | AY39: 1521 | AZ39: 3996 | BA39: 34439 | BB39: 36647 | BC39: 15 | BD39: 496 | BE39: 180 | BF39: 51 | BG39: 9833 | BI39: 7612 | BJ39: 0 | BL39: 2221 | BM39: 34 | BN39: 2 | BO39: -114 | BP39: -9 | BQ39: 2130 | BS39: 13476 | BY39: 15451 | CA39: 69295 | CF39: 21.25 | CT39: 71 | CU39: -11471 | CV39: 149 | CW39: 235 | CX39: 581
A40: 140 | B40: Iisalmi | C40: 21368 | D40: 20.5 | G40: 117005 | H40: 246335 | I40: 719 | J40: 63744 | K40: 5766 | L40: 5737 | M40: 75247 | N40: 66025 | O40: 98 | P40: 804 | Q40: 2023 | R40: 450 | S40: 14768 | U40: 13421 | V40: 0 | X40: 1347 | Y40: -21 | Z40: 15 | AA40: -180 | AB40: -33 | AD40: 1098 | AF40: 36877 | AI40: -15223 | AL40: 37480 | AN40: 101054 | AQ40: 21124 | AR40: 20.5 | AU40: 117978 | AV40: 247082 | AW40: 1827 | AX40: 66202 | AY40: 5504 | AZ40: 5321 | BA40: 77027 | BB40: 76116 | BC40: 82 | BD40: 741 | BE40: 1156 | BF40: 199 | BG40: 25391 | BI40: 15969 | BJ40: -10 | BL40: 9412 | BM40: -2644 | BN40: 72 | BO40: -272 | BP40: -20 | BQ40: 6404 | BS40: 43467 | BY40: 47793 | CA40: 110210 | CF40: 20.5 | CT40: -2511 | CU40: -26396 | CV40: 758 | CW40: 2690 | CX40: -54
A41: 142 | B41: Iitti | C41: 6711 | D41: 20.75 | G41: 29147 | H41: 68597 | I41: 9 | J41: 19362 | K41: 1421 | L41: 2453 | M41: 23236 | N41: 15231 | O41: 13 | P41: 162 | Q41: 91 | R41: 15 | S41: 28 | U41: 2732 | V41: 0 | X41: -2704 | Y41: 0 | Z41: 0 | AA41: 0 | AB41: -1 | AD41: -2705 | AF41: -2995 | AI41: -2037 | AL41: 7360 | AN41: 19499 | AQ41: 6625 | AR41: 21.25 | AU41: 28707 | AV41: 65802 | AW41: 2 | AX41: 21217 | AY41: 1433 | AZ41: 2733 | BA41: 25383 | BB41: 19607 | BC41: 6 | BD41: 136 | BE41: 184 | BF41: 324 | BG41: 7626 | BI41: 2879 | BJ41: 31 | BL41: 4778 | BM41: 0 | BN41: 0 | BO41: 0 | BP41: -1 | BQ41: 4777 | BS41: 1782 | BY41: 6146 | CA41: 17473 | CF41: 21.25 | CT41: -32 | CU41: -2743 | CV41: 109 | CW41: 48 | CX41: 6
A42: 143 | B42: Ikaalinen | C42: 6942 | D42: 21.75 | G42: 34218 | H42: 80609 | I42: 32 | J42: 20257 | K42: 1663 | L42: 2907 | M42: 24827 | N42: 25285 | O42: 8 | P42: 370 | Q42: 265 | R42: 112 | S42: 3044 | U42: 4118 | V42: 0 | X42: -1074 | Y42: 0 | Z42: 58 | AA42: -26 | AB42: -103 | AD42: -1261 | AF42: 1450 | AI42: -4414 | AL42: 8430 | AN42: 47691 | AQ42: 6866 | AR42: 22 | AU42: 35281 | AV42: 80396 | AW42: 64 | AX42: 21116 | AY42: 1945 | AZ42: 2644 | BA42: 25705 | BB42: 29141 | BC42: 7 | BD42: 359 | BE42: 293 | BF42: 75 | BG42: 9558 | BI42: 4863 | BJ42: 0 | BL42: 4695 | BM42: -15 | BN42: 133 | BO42: -37 | BP42: -262 | BQ42: 4248 | BS42: 5376 | BY42: 9464 | CA42: 43209 | CF42: 22 | CT42: -242 | CU42: -4202 | CV42: 159 | CW42: 201 | CX42: 72
A43: 145 | B43: Ilmajoki | C43: 12269 | D43: 20.75 | G43: 64587 | H43: 133705 | I43: 5 | J43: 35062 | K43: 1571 | L43: 2516 | M43: 39149 | N43: 29288 | O43: 3 | P43: 574 | Q43: 302 | R43: 56 | S43: 754 | U43: 5497 | V43: 0 | X43: -4743 | Y43: 0 | Z43: 1 | AA43: 9 | AB43: 24 | AD43: -4711 | AF43: 2282 | AI43: -7070 | AL43: 7123 | AN43: 74986 | AQ43: 12294 | AR43: 21 | AU43: 65951 | AV43: 135228 | AW43: 7 | AX43: 39060 | AY43: 1764 | AZ43: 2440 | BA43: 43264 | BB43: 34908 | BC43: 4 | BD43: 609 | BE43: 301 | BF43: 115 | BG43: 8483 | BI43: 5812 | BJ43: 0 | BL43: 2671 | BM43: -124 | BN43: 2 | BO43: 0 | BP43: -5 | BQ43: 2540 | BS43: 4697 | BY43: 8925 | CA43: 83035 | CF43: 21 | CT43: -1962 | CU43: -14026 | CV43: 43 | CW43: 721 | CX43: 195
A44: 146 | B44: Ilomantsi | C44: 4857 | D44: 21 | G44: 33862 | H44: 71178 | I44: -6 | J44: 12588 | K44: 3121 | L44: 1351 | M44: 17060 | N44: 21552 | O44: 62 | P44: 235 | Q44: 360 | R44: 17 | S44: 1689 | U44: 3214 | V44: 0 | X44: -1525 | Y44: -3 | Z44: 41 | AA44: -18 | AB44: 31 | AD44: -1556 | AF44: -775 | AI44: -828 | AL44: 4702 | AN44: 19230 | AQ44: 4749 | AR44: 21 | AU44: 33655 | AV44: 68214 | AW44: -6 | AX44: 12966 | AY44: 3160 | AZ44: 1336 | BA44: 17462 | BB44: 22633 | BC44: 33 | BD44: 231 | BE44: 397 | BF44: 36 | BG44: 5693 | BI44: 2955 | BJ44: 0 | BL44: 2738 | BM44: -496 | BN44: 32 | BO44: 6 | BP44: 24 | BQ44: 2240 | BS44: 1281 | BY44: 9289 | CA44: 20596 | CF44: 21 | CT44: -92 | CU44: -1838 | CV44: 35 | CW44: 218 | CX44: -2
A45: 153 | B45: Imatra | C45: 26508 | D45: 20 | G45: 150394 | H45: 298368 | I45: 141 | J45: 89509 | K45: 3740 | L45: 9785 | M45: 103034 | N45: 67692 | O45: 129 | P45: 2299 | Q45: 273 | R45: 210 | S45: 23727 | U45: 25761 | V45: 1683 | X45: -351 | Y45: 1350 | Z45: 493 | AA45: 1 | AB45: 24 | AD45: 531 | AF45: 49021 | AI45: -42579 | AL45: 20019 | AN45: 238414 | AQ45: 26075 | AR45: 20 | AU45: 152427 | AV45: 312907 | AW45: 165 | AX45: 90701 | AY45: 3804 | AZ45: 11241 | BA45: 105746 | BB45: 81235 | BC45: 95 | BD45: 2532 | BE45: 184 | BF45: 726 | BG45: 23686 | BI45: 25651 | BJ45: 217 | BL45: -1748 | BM45: 116 | BN45: 450 | BO45: 264 | BP45: -17 | BQ45: -1835 | BS45: 47386 | BY45: 23252 | CA45: 246701 | CF45: 20 | CT45: 3926 | CU45: -50408 | CV45: 629 | CW45: 13451 | CX45: -13
A46: 148 | B46: Inari | C46: 6907 | D46: 19 | G46: 38486 | H46: 80608 | I46: 1 | J46: 21115 | K46: 2487 | L46: 4390 | M46: 27992 | N46: 23367 | O46: 122 | P46: 568 | Q46: 122 | R46: 14 | S46: 8561 | U46: 5760 | V46: 0 | X46: 2801 | Y46: 8 | Z46: 529 | AA46: -49 | AB46: -225 | AD46: 2006 | AF46: 27685 | AI46: -17066 | AL46: 10845 | AN46: 45618 | AQ46: 6862 | AR46: 19 | AU46: 37411 | AV46: 81321 | AW46: 0 | AX46: 20976 | AY46: 3041 | AZ46: 4228 | BA46: 28245 | BB46: 27129 | BC46: 52 | BD46: 520 | BE46: 268 | BF46: 40 | BG46: 11224 | BI46: 7659 | BJ46: -2 | BL46: 3563 | BM46: -85 | BN46: 227 | BO46: -123 | BP46: -154 | BQ46: 2974 | BS46: 30131 | BY46: 10643 | CA46: 45720 | CF46: 19 | CT46: -871 | CU46: -12037 | CV46: 359 | CW46: 1122 | CX46: -215
A47: 149 | B47: Inkoo | C47: 5386 | D47: 20.75 | G47: 15921 | H47: 47765 | I47: 3 | J47: 21994 | K47: 1042 | L47: 2939 | M47: 25975 | N47: 7040 | O47: 1 | P47: 117 | Q47: 66 | R47: 55 | S47: 1047 | U47: 2095 | V47: 0 | X47: -1048 | Y47: 0 | Z47: 0 | AA47: 0 | AB47: 0 | AD47: -1048 | AF47: 7381 | AI47: -2861 | AL47: 2264 | AN47: 17991 | AQ47: 5321 | AR47: 20.75 | AU47: 17254 | AV47: 47736 | AW47: -1 | AX47: 22802 | AY47: 1306 | AZ47: 2651 | BA47: 26759 | BB47: 9379 | BC47: 0 | BD47: 99 | BE47: 59 | BF47: 53 | BG47: 5562 | BI47: 2190 | BJ47: 0 | BL47: 3372 | BM47: 6 | BN47: 0 | BO47: 0 | BP47: 0 | BQ47: 3378 | BS47: 11182 | BY47: 2082 | CA47: 16609 | CF47: 20.75 | CT47: -417 | CU47: -4640 | CV47: 35 | CW47: 1298 | CX47: -18
A48: 151 | B48: Isojoki | C48: 1951 | D48: 22 | G48: 16586 | H48: 30841 | I48: 180 | J48: 5099 | K48: 619 | L48: 454 | M48: 6172 | N48: 8567 | O48: 0 | P48: 51 | Q48: 31 | R48: 21 | S48: 550 | U48: 853 | V48: -21 | X48: -324 | Y48: 0 | Z48: 0 | AA48: 2 | AB48: 3 | AD48: -319 | AF48: 930 | AI48: -1033 | AL48: 2470 | AN48: 4258 | AQ48: 1925 | AR48: 22 | AU48: 16477 | AV48: 29996 | AW48: 7 | AX48: 5528 | AY48: 805 | AZ48: 581 | BA48: 6914 | BB48: 8886 | BC48: 0 | BD48: 49 | BE48: 37 | BF48: 19 | BG48: 2257 | BI48: 887 | BJ48: 0 | BL48: 1370 | BM48: 0 | BN48: 0 | BO48: 0 | BP48: 0 | BQ48: 1370 | BS48: 2030 | BY48: 3255 | CA48: 4241 | CF48: 22 | CT48: -60 | CU48: -963 | CV48: 34 | CW48: 15 | CX48: 18
A49: 152 | B49: Isokyrö | C49: 4522 | D49: 21.5 | G49: 13035 | H49: 39748 | I49: 1 | J49: 13175 | K49: 574 | L49: 895 | M49: 14644 | N49: 13636 | O49: 5 | P49: 142 | Q49: 111 | R49: 18 | S49: 2094 | U49: 2213 | V49: 0 | X49: -119 | Y49: 6 | Z49: 0 | AA49: 0 | AB49: 7 | AD49: -106 | AF49: 13465 | AI49: -6273 | AL49: 4352 | AN49: 12005 | AQ49: 4471 | AR49: 21.5 | AU49: 12785 | AV49: 39475 | AW49: 60 | AX49: 13852 | AY49: 676 | AZ49: 835 | BA49: 15363 | BB49: 15440 | BC49: 7 | BD49: 138 | BE49: 124 | BF49: 28 | BG49: 4138 | BI49: 2537 | BJ49: 0 | BL49: 1601 | BM49: -1 | BN49: 1 | BO49: 0 | BP49: 0 | BQ49: 1599 | BS49: 15092 | BY49: 5678 | CA49: 12757 | CF49: 21.5 | CT49: -41 | CU49: -3308 | CV49: 154 | CW49: 123 | CX49: 12
A50: 165 | B50: Janakkala | C50: 16413 | D50: 21 | G50: 45775 | H50: 131246 | I50: 0 | J50: 57504 | K50: 2130 | L50: 3658 | M50: 63292 | N50: 27857 | O50: 13 | P50: 591 | Q50: 187 | R50: 89 | S50: 4528 | U50: 9143 | V50: 128 | X50: -4487 | Y50: 5 | Z50: 28 | AA50: 99 | AB50: -2 | AD50: -4413 | AF50: 1744 | AI50: -9785 | AL50: 9839 | AN50: 73332 | AQ50: 16237 | AR50: 21 | AU50: 46034 | AV50: 133632 | AW50: 0 | AX50: 60799 | AY50: 2485 | AZ50: 3421 | BA50: 66705 | BB50: 35578 | BC50: 11 | BD50: 565 | BE50: 194 | BF50: 128 | BG50: 13973 | BI50: 9372 | BJ50: 0 | BL50: 4601 | BM50: 3 | BN50: 55 | BO50: -108 | BP50: -5 | BQ50: 4436 | BS50: 6180 | BY50: 14350 | CA50: 76981 | CF50: 21 | CT50: -646 | CU50: -15369 | CV50: 534 | CW50: 1082 | CX50: 8
A51: 167 | B51: Joensuu | C51: 76850 | D51: 20.5 | G51: 359679 | H51: 768676 | I51: 78 | J51: 218368 | K51: 21169 | L51: 21099 | M51: 260636 | N51: 194788 | O51: 447 | P51: 4596 | Q51: 4848 | R51: 420 | S51: 54713 | U51: 66092 | V51: 0 | X51: -11379 | Y51: 244 | Z51: 326 | AA51: 748 | AB51: 105 | AD51: -10608 | AF51: 50015 | AI51: -91635 | AL51: 146523 | AN51: 551390 | AQ51: 76935 | AR51: 20.5 | AU51: 352194 | AV51: 761458 | AW51: -158 | AX51: 231975 | AY51: 22082 | AZ51: 19937 | BA51: 273994 | BB51: 225083 | BC51: 677 | BD51: 4757 | BE51: 4291 | BF51: 842 | BG51: 89024 | BI51: 71765 | BJ51: 0 | BL51: 17259 | BM51: 185 | BN51: 550 | BO51: -148 | BP51: -103 | BQ51: 16643 | BS51: 68132 | BY51: 154447 | CA51: 548153 | CF51: 20.5 | CT51: -4761 | CU51: -82471 | CV51: 1575 | CW51: 5247 | CX51: 198
A52: 169 | B52: Jokioinen | C52: 5133 | D52: 21.25 | G52: 25120 | H52: 52729 | I52: -3 | J52: 16786 | K52: 1021 | L52: 986 | M52: 18793 | N52: 11074 | O52: 0 | P52: 182 | Q52: 88 | R52: 50 | S52: 2412 | U52: 2395 | V52: -33 | X52: -16 | Y52: 1 | Z52: 1 | AA52: 0 | AB52: 1 | AD52: -15 | AF52: 6528 | AI52: -1418 | AL52: 1292 | AN52: 19217 | AQ52: 5061 | AR52: 21.25 | AU52: 25227 | AV52: 53692 | AW52: -3 | AX52: 18058 | AY52: 1348 | AZ52: 902 | BA52: 20308 | BB52: 12973 | BC52: 8 | BD52: 164 | BE52: 64 | BF52: -3 | BG52: 4724 | BI52: 2329 | BJ52: 24 | BL52: 2419 | BM52: 0 | BN52: 1 | BO52: 0 | BP52: -14 | BQ52: 2404 | BS52: 8925 | BY52: 1048 | CA52: 15079 | CF52: 21.25 | CT52: -149 | CU52: -1554 | CV52: 30 | CW52: 117 | CX52: -44
A53: 171 | B53: Joroinen | C53: 4767 | D53: 21.25 | G53: 25692 | H53: 53934 | I53: 19 | J53: 13705 | K53: 1385 | L53: 1125 | M53: 16215 | N53: 12353 | O53: 146 | P53: 239 | Q53: 261 | R53: 48 | S53: 1190 | U53: 1611 | V53: 0 | X53: -421 | Y53: 5 | Z53: 0 | AA53: 0 | AB53: 0 | AD53: -416 | AF53: -1766 | AI53: -7034 | AL53: 12126 | AN53: 34394 | AQ53: 4689 | AR53: 21.25 | AU53: 26796 | AV53: 54259 | AW53: 5 | AX53: 15027 | AY53: 1736 | AZ53: 1007 | BA53: 17770 | BB53: 13852 | BC53: 97 | BD53: 211 | BE53: 200 | BF53: 132 | BG53: 4075 | BI53: 1917 | BJ53: 0 | BL53: 2158 | BM53: 0 | BN53: 0 | BO53: 0 | BP53: 0 | BQ53: 2158 | BS53: 348 | BY53: 15692 | CA53: 34177 | CF53: 21.25 | CT53: -93 | CU53: -1863 | CV53: 56 | CW53: 288 | CX53: 297
A54: 172 | B54: Joutsa | C54: 4377 | D54: 21 | G54: 13110 | H54: 43624 | I54: 109 | J54: 11668 | K54: 1476 | L54: 1754 | M54: 14898 | N54: 16212 | O54: 4 | P54: 150 | Q54: 198 | R54: 19 | S54: 1342 | U54: 2166 | V54: 0 | X54: -824 | Y54: 0 | Z54: 3 | AA54: 4 | AB54: 40 | AD54: -783 | AF54: 1506 | AI54: -4629 | AL54: 2864 | AN54: 26163 | AQ54: 4297 | AR54: 21 | AU54: 13260 | AV54: 44512 | AW54: 18 | AX54: 11730 | AY54: 1766 | AZ54: 1566 | BA54: 15062 | BB54: 17594 | BC54: 28 | BD54: 144 | BE54: 208 | BF54: 20 | BG54: 1432 | BI54: 2078 | BJ54: -70 | BL54: -716 | BM54: -1 | BN54: 9 | BO54: 5 | BP54: 19 | BQ54: -702 | BS54: 566 | BY54: 3400 | CA54: 31289 | CF54: 21 | CT54: -36 | CU54: -6314 | CV54: 0 | CW54: 216 | CX54: 77
A55: 176 | B55: Juuka | C55: 4606 | D55: 20.75 | G55: 36206 | H55: 68085 | I55: 0 | J55: 10804 | K55: 1646 | L55: 1204 | M55: 13654 | N55: 20319 | O55: 59 | P55: 82 | Q55: 483 | R55: 2 | S55: 2776 | U55: 2755 | V55: -165 | X55: -144 | Y55: 251 | Z55: 21 | AA55: -3 | AB55: -3 | AD55: 80 | AF55: 10927 | AI55: -3214 | AL55: 8981 | AN55: 10866 | AQ55: 4527 | AR55: 20.75 | AU55: 36482 | AV55: 67959 | AW55: 0 | AX55: 10958 | AY55: 1933 | AZ55: 1130 | BA55: 14021 | BB55: 21659 | BC55: 80 | BD55: 81 | BE55: 367 | BF55: 7 | BG55: 4563 | BI55: 3641 | BJ55: 0 | BL55: 922 | BM55: 2 | BN55: 0 | BO55: -1 | BP55: 0 | BQ55: 923 | BS55: 11832 | BY55: 10035 | CA55: 14312 | CF55: 20.75 | CT55: 338 | CU55: -6458 | CV55: 22 | CW55: 118 | CX55: 17
A56: 177 | B56: Juupajoki | C56: 1844 | D56: 21 | G56: 7775 | H56: 18029 | I56: 31 | J56: 5424 | K56: 1003 | L56: 484 | M56: 6911 | N56: 4413 | O56: 7 | P56: 67 | Q56: 75 | R56: 76 | S56: 1288 | U56: 825 | V56: 0 | X56: 463 | Y56: 10 | Z56: 9 | AA56: -1 | AB56: 72 | AD56: 535 | AF56: 3124 | AI56: -1309 | AL56: 1517 | AN56: 6763 | AQ56: 1800 | AR56: 21 | AU56: 8169 | AV56: 18617 | AW56: -68 | AX56: 5452 | AY56: 1196 | AZ56: 487 | BA56: 7135 | BB56: 4977 | BC56: 2 | BD56: 76 | BE56: 78 | BF56: 22 | BG56: 1578 | BI56: 948 | BJ56: 0 | BL56: 630 | BM56: 11 | BN56: 30 | BO56: 0 | BP56: 31 | BQ56: 642 | BS56: 2932 | BY56: 2570 | CA56: 7116 | CF56: 21 | CT56: 60 | CU56: -649 | CV56: 1 | CW56: 1 | CX56: 5
A57: 178 | B57: Juva | C57: 6116 | D57: 20.75 | G57: 32631 | H57: 72191 | I57: 67 | J57: 15564 | K57: 2405 | L57: 1513 | M57: 19482 | N57: 21196 | O57: 5 | P57: 240 | Q57: 698 | R57: 11 | S57: 1910 | U57: 2896 | V57: 11 | X57: -975 | Y57: 4 | Z57: 0 | AA57: 0 | AB57: 0 | AD57: -971 | AF57: 2863 | AI57: -5109 | AL57: 1843 | AN57: 34413 | AQ57: 5932 | AR57: 20.75 | AU57: 33749 | AV57: 71913 | AW57: -314 | AX57: 15868 | AY57: 2957 | AZ57: 1392 | BA57: 20217 | BB57: 24634 | BC57: 6 | BD57: 181 | BE57: 707 | BF57: 58 | BG57: 6790 | BI57: 5936 | BJ57: 0 | BL57: 854 | BM57: 0 | BN57: 0 | BO57: -10 | BP57: 0 | BQ57: 844 | BS57: 3693 | BY57: 4320 | CA57: 34757 | CF57: 20.75 | CT57: 353 | CU57: -5748 | CV57: 529 | CW57: 230 | CX57: -5
A58: 179 | B58: Jyväskylä | C58: 142400 | D58: 20 | G58: 525287 | H58: 1202071 | I58: -659 | J58: 438821 | K58: 25942 | L58: 48998 | M58: 513761 | N58: 265546 | O58: 736 | P58: 15370 | Q58: 734 | R58: 1366 | S58: 91059 | U58: 115464 | V58: 0 | X58: -24405 | Y58: 80 | Z58: 3207 | AA58: -904 | AB58: -424 | AD58: -28860 | AF58: 4247 | AI58: -204876 | AL58: 47030 | AN58: 1215954 | AQ58: 143420 | AR58: 20 | AU58: 504671 | AV58: 1219554 | AW58: -217 | AX58: 472627 | AY58: 29183 | AZ58: 47316 | BA58: 549126 | BB58: 328765 | BC58: 749 | BD58: 15426 | BE58: 560 | BF58: 1369 | BG58: 140970 | BI58: 120904 | BJ58: 0 | BL58: 20066 | BM58: -66 | BN58: 1534 | BO58: -1792 | BP58: -494 | BQ58: 16180 | BS58: 20930 | BY58: 39865 | CA58: 1226586 | CF58: 20 | CT58: -8320 | CU58: -181507 | CV58: 1559 | CW58: 17775 | CX58: 300
A59: 181 | B59: Jämijärvi | C59: 1739 | D59: 22.5 | G59: 9675 | H59: 20707 | I59: 0 | J59: 4775 | K59: 274 | L59: 721 | M59: 5770 | N59: 5686 | O59: 0 | P59: 41 | Q59: 8 | R59: 15 | S59: 766 | U59: 565 | V59: 0 | X59: 201 | Y59: -14 | Z59: 0 | AA59: 0 | AB59: 0 | AD59: 187 | AF59: -1813 | AI59: 226 | AL59: 1677 | AN59: 6612 | AQ59: 1707 | AR59: 22.5 | AU59: 9315 | AV59: 19817 | AW59: 0 | AX59: 5108 | AY59: 306 | AZ59: 660 | BA59: 6074 | BB59: 6077 | BC59: 0 | BD59: 37 | BE59: 10 | BF59: -14 | BG59: 1628 | BI59: 567 | BJ59: 0 | BL59: 1061 | BM59: 0 | BN59: 0 | BO59: 0 | BP59: 0 | BQ59: 1061 | BS59: -739 | BY59: 1713 | CA59: 6213 | CF59: 22.5 | CT59: -59 | CU59: -434 | CV59: 5 | CW59: 64 | CX59: 14
A60: 182 | B60: Jämsä | C60: 20182 | D60: 21 | G60: 67520 | H60: 198223 | I60: 189 | J60: 69472 | K60: 8479 | L60: 6087 | M60: 84038 | N60: 57017 | O60: 19 | P60: 666 | Q60: 239 | R60: 153 | S60: 10805 | U60: 13054 | V60: 0 | X60: -2249 | Y60: 1 | Z60: 21 | AA60: -3 | AB60: -37 | AD60: -2309 | AF60: 8867 | AI60: -11180 | AL60: 12971 | AN60: 64271 | AQ60: 19887 | AR60: 21 | AU60: 66519 | AV60: 201702 | AW60: 74 | AX60: 70253 | AY60: 11485 | AZ60: 5634 | BA60: 87372 | BB60: 66820 | BC60: 15 | BD60: 595 | BE60: 259 | BF60: 106 | BG60: 18656 | BI60: 13791 | BJ60: 0 | BL60: 4865 | BM60: -84 | BN60: 70 | BO60: -1 | BP60: -114 | BQ60: 4596 | BS60: 13651 | BY60: 22663 | CA60: 60858 | CF60: 21 | CT60: 177 | CU60: -10877 | CV60: 143 | CW60: 1075 | CX60: 13
A61: 186 | B61: Järvenpää | C61: 43711 | D61: 19.75 | G61: 234340 | H61: 460857 | I61: -1224 | J61: 168830 | K61: 5198 | L61: 13788 | M61: 187816 | N61: 41563 | O61: 180 | P61: 2575 | Q61: 422 | R61: 1277 | S61: 3261 | U61: 33838 | V61: 0 | X61: -30577 | Y61: 0 | Z61: 167 | AA61: -286 | AB61: 15 | AD61: -31015 | AF61: -6112 | AI61: -53267 | AL61: 13011 | AN61: 399104 | AQ61: 44455 | AR61: 19.75 | AU61: 244375 | AV61: 471375 | AW61: 29 | AX61: 182979 | AY61: 4673 | AZ61: 13798 | BA61: 201450 | BB61: 64536 | BC61: 44 | BD61: 2587 | BE61: 416 | BF61: 608 | BG61: 35079 | BI61: 33932 | BJ61: 0 | BL61: 1147 | BM61: 0 | BN61: 131 | BO61: -418 | BP61: -5 | BQ61: 593 | BS61: -5518 | BY61: 38311 | CA61: 433317 | CF61: 19.75 | CT61: -9001 | CU61: -52405 | CV61: 400 | CW61: 12992 | CX61: 0
A62: 202 | B62: Kaarina | C62: 33937 | D62: 19.75 | G62: 92043 | H62: 258564 | I62: 43 | J62: 127265 | K62: 4896 | L62: 7185 | M62: 139346 | N62: 28275 | O62: 151 | P62: 2887 | Q62: 1796 | R62: 26 | S62: 6121 | U62: 16111 | V62: 0 | X62: -9990 | Y62: 0 | Z62: 0 | AA62: -4 | AB62: 12 | AD62: -9982 | AF62: 15092 | AI62: -12589 | AL62: 23669 | AN62: 133537 | AQ62: 34667 | AR62: 19.75 | AU62: 84427 | AV62: 258343 | AW62: 54 | AX62: 137875 | AY62: 5762 | AZ62: 6973 | BA62: 150610 | BB62: 48034 | BC62: 134 | BD62: 2570 | BE62: 825 | BF62: 39 | BG62: 23132 | BI62: 13924 | BJ62: 0 | BL62: 9208 | BM62: 0 | BN62: 0 | BO62: -114 | BP62: -2 | BQ62: 9092 | BS62: 24681 | BY62: 30093 | CA62: 134632 | CF62: 19.75 | CT62: -2719 | CU62: -21336 | CV62: 239 | CW62: 3666 | CX62: 1620
A63: 204 | B63: Kaavi | C63: 2893 | D63: 22 | G63: 14061 | H63: 35004 | I63: 46 | J63: 7148 | K63: 967 | L63: 1104 | M63: 9219 | N63: 13121 | O63: 8 | P63: 237 | Q63: 191 | R63: 4 | S63: 1597 | U63: 1746 | V63: 0 | X63: -149 | Y63: 3 | Z63: 5 | AA63: -3 | AB63: -14 | AD63: -168 | AF63: -104 | AI63: -970 | AL63: 2205 | AN63: 16683 | AQ63: 2807 | AR63: 22 | AU63: 14331 | AV63: 34698 | AW63: 120 | AX63: 7458 | AY63: 1304 | AZ63: 1071 | BA63: 9833 | BB63: 13872 | BC63: 7 | BD63: 217 | BE63: 182 | BF63: 16 | BG63: 3387 | BI63: 1653 | BJ63: 10 | BL63: 1744 | BM63: 2 | BN63: 3 | BO63: -3 | BP63: -6 | BQ63: 1734 | BS63: 1625 | BY63: 4588 | CA63: 16577 | CF63: 22 | CT63: -273 | CU63: -2524 | CV63: 11 | CW63: 791 | CX63: 32
A64: 205 | B64: Kajaani | C64: 36709 | D64: 21 | G64: 312784 | H64: 537316 | I64: 398 | J64: 120067 | K64: 5397 | L64: 10142 | M64: 135606 | N64: 116706 | O64: 175 | P64: 2544 | Q64: 462 | R64: 15394 | S64: 12917 | U64: 45208 | V64: 115597 | X64: 83306 | Y64: 125 | Z64: 672 | AA64: -1290 | AB64: 2428 | AD64: 83897 | AF64: 131446 | AI64: 53527 | AL64: 254791 | AN64: 599164 | AQ64: 36567 | AR64: 21 | AU64: 333340 | AV64: 565516 | AW64: 229 | AX64: 125951 | AY64: 5821 | AZ64: 9650 | BA64: 141422 | BB64: 137958 | BC64: 467 | BD64: 2845 | BE64: 2884 | BF64: 11566 | BG64: 35339 | BI64: 48046 | BJ64: 0 | BL64: -12707 | BM64: 19 | BN64: 575 | BO64: -3596 | BP64: -57 | BQ64: -16916 | BS64: 108435 | BY64: 243011 | CA64: 663865 | CF64: 21 | CT64: -1799 | CU64: -132204 | CV64: 491 | CW64: 11710 | CX64: -121
A65: 208 | B65: Kalajoki | C65: 12373 | D65: 21 | G65: 40244 | H65: 109189 | I65: 113 | J65: 31797 | K65: 2129 | L65: 5079 | M65: 39005 | N65: 35914 | O65: 84 | P65: 369 | Q65: 732 | R65: 87 | S65: 8854 | U65: 8802 | V65: 0 | X65: 52 | Y65: 17 | Z65: 27 | AA65: 68 | AB65: -105 | AD65: 5 | AF65: 22405 | AI65: -12956 | AL65: 27076 | AN65: 70809 | AQ65: 12400 | AR65: 21 | AU65: 38128 | AV65: 110509 | AW65: 259 | AX65: 36015 | AY65: 2079 | AZ65: 4876 | BA65: 42970 | BB65: 35699 | BC65: 83 | BD65: 377 | BE65: 452 | BF65: 70 | BG65: 12969 | BI65: 9105 | BJ65: 0 | BL65: 3864 | BM65: -16 | BN65: -11 | BO65: -8 | BP65: -40 | BQ65: 3811 | BS65: 26209 | BY65: 28153 | CA65: 66331 | CF65: 21 | CT65: -614 | CU65: -9791 | CV65: 555 | CW65: 714 | CX65: 974
A66: 211 | B66: Kangasala | C66: 31868 | D66: 21 | G66: 119381 | H66: 269358 | I66: 138 | J66: 114129 | K66: 4094 | L66: 7148 | M66: 125371 | N66: 38622 | O66: 100 | P66: 1240 | Q66: 2436 | R66: 290 | S66: 21230 | U66: 18767 | V66: 0 | X66: 2463 | Y66: 0 | Z66: 324 | AA66: -121 | AB66: -141 | AD66: 1877 | AF66: 69100 | AI66: -40138 | AL66: 61409 | AN66: 137589 | AQ66: 32214 | AR66: 21 | AU66: 124217 | AV66: 274709 | AW66: 210 | AX66: 126025 | AY66: 4922 | AZ66: 6731 | BA66: 137678 | BB66: 51593 | BC66: 136 | BD66: 1323 | BE66: 2790 | BF66: 483 | BG66: 39910 | BI66: 20821 | BJ66: 0 | BL66: 19089 | BM66: 1 | BN66: 580 | BO66: -68 | BP66: -563 | BQ66: 17879 | BS66: 86979 | BY66: 78459 | CA66: 150003 | CF66: 21 | CT66: -1493 | CU66: -47631 | CV66: 679 | CW66: 11634 | CX66: 99
A67: 213 | B67: Kangasniemi | C67: 5356 | D67: 20.75 | G67: 26002 | H67: 61757 | I67: 17 | J67: 13689 | K67: 2568 | L67: 1807 | M67: 18064 | N67: 18372 | O67: 25 | P67: 216 | Q67: 250 | R67: 5 | S67: 1202 | U67: 2691 | V67: 0 | X67: -1489 | Y67: 0 | Z67: 0 | AA67: 0 | AB67: 19 | AD67: -1470 | AF67: -2417 | AI67: -2714 | AL67: 3101 | AN67: 30813 | AQ67: 5312 | AR67: 21.5 | AU67: 26821 | AV67: 61319 | AW67: 7 | AX67: 14676 | AY67: 2981 | AZ67: 1780 | BA67: 19437 | BB67: 20038 | BC67: 23 | BD67: 190 | BE67: 303 | BF67: 11 | BG67: 5109 | BI67: 2654 | BJ67: 0 | BL67: 2455 | BM67: 0 | BN67: 0 | BO67: 0 | BP67: 7 | BQ67: 2462 | BS67: -28 | BY67: 2979 | CA67: 27831 | CF67: 21.5 | CT67: -326 | CU67: -2042 | CV67: 16 | CW67: 2065 | CX67: 11
A68: 214 | B68: Kankaanpää | C68: 11286 | D68: 21.5 | G68: 66892 | H68: 129802 | I68: -57 | J68: 33790 | K68: 2546 | L68: 3442 | M68: 39778 | N68: 28733 | O68: 29 | P68: 403 | Q68: 526 | R68: 26 | S68: 5318 | U68: 8985 | V68: 0 | X68: -3667 | Y68: 2 | Z68: 17 | AA68: -82 | AB68: -541 | AD68: -4305 | AF68: 1132 | AI68: -11181 | AL68: 5916 | AN68: 78249 | AQ68: 11163 | AR68: 21.75 | AU68: 71156 | AV68: 126380 | AW68: 101 | AX68: 34526 | AY68: 2728 | AZ68: 3214 | BA68: 40468 | BB68: 33329 | BC68: 732 | BD68: 395 | BE68: 1088 | BF68: 266 | BG68: 19737 | BI68: 8913 | BJ68: 0 | BL68: 10824 | BM68: 0 | BN68: 12 | BO68: -48 | BP68: -3274 | BQ68: 7490 | BS68: 9686 | BY68: 9434 | CA68: 79892 | CF68: 21.75 | CT68: -414 | CU68: -15884 | CV68: 227 | CW68: 1800 | CX68: 0
A69: 216 | B69: Kannonkoski | C69: 1339 | D69: 21 | G69: 16283 | H69: 25702 | I69: -1 | J69: 3034 | K69: 574 | L69: 441 | M69: 4049 | N69: 5729 | O69: 9 | P69: 16 | Q69: 57 | R69: 2432 | S69: -1769 | U69: 1341 | V69: -134 | X69: -3244 | Y69: 1 | Z69: 0 | AA69: 0 | AB69: 10 | AD69: -3233 | AF69: 8567 | AI69: -2055 | AL69: 5398 | AN69: 13258 | AQ69: 1323 | AR69: 21 | AU69: 15291 | AV69: 24659 | AW69: 0 | AX69: 3187 | AY69: 709 | AZ69: 418 | BA69: 4314 | BB69: 6333 | BC69: 8 | BD69: 16 | BE69: 117 | BF69: 626 | BG69: 762 | BI69: 1284 | BJ69: 0 | BL69: -522 | BM69: 0 | BN69: 0 | BO69: 0 | BP69: 10 | BQ69: -512 | BS69: 8026 | BY69: 5134 | CA69: 15737 | CF69: 21 | CT69: -1763 | CU69: -1688 | CV69: 0 | CW69: 75 | CX69: 0
A70: 217 | B70: Kannus | C70: 5464 | D70: 21.5 | G70: 37672 | H70: 66838 | I70: 232 | J70: 15347 | K70: 1153 | L70: 1279 | M70: 17779 | N70: 13702 | O70: 27 | P70: 152 | Q70: 39 | R70: 18 | S70: 2466 | U70: 3204 | V70: 0 | X70: -738 | Y70: -10 | Z70: 31 | AA70: 0 | AB70: -33 | AD70: -812 | AF70: 12038 | AI70: -3357 | AL70: 8411 | AN70: 29127 | AQ70: 5426 | AR70: 21.5 | AU70: 30543 | AV70: 62726 | AW70: 216 | AX70: 16616 | AY70: 1091 | AZ70: 1639 | BA70: 19346 | BB70: 18680 | BC70: 18 | BD70: 142 | BE70: 36 | BF70: 12 | BG70: 5903 | BI70: 3377 | BJ70: 0 | BL70: 2526 | BM70: -48 | BN70: 6 | BO70: -64 | BP70: -65 | BQ70: 2343 | BS70: 14381 | BY70: 10230 | CA70: 28025 | CF70: 21.5 | CT70: -312 | CU70: -5973 | CV70: 36 | CW70: 837 | CX70: 0
A71: 218 | B71: Karijoki | C71: 1245 | D71: 22 | G71: 9957 | H71: 19143 | I71: 0 | J71: 3509 | K71: 281 | L71: 243 | M71: 4033 | N71: 5096 | O71: 0 | P71: 36 | Q71: 12 | R71: 4 | S71: -280 | U71: 496 | V71: -4 | X71: -780 | Y71: 0 | Z71: 0 | AA71: 1 | AB71: 2 | AD71: -777 | AF71: 451 | AI71: -791 | AL71: 1134 | AN71: 3396 | AQ71: 1207 | AR71: 22 | AU71: 9884 | AV71: 18031 | AW71: 1 | AX71: 3557 | AY71: 329 | AZ71: 259 | BA71: 4145 | BB71: 6107 | BC71: 1 | BD71: 34 | BE71: 16 | BF71: 5 | BG71: 2083 | BI71: 581 | BJ71: 0 | BL71: 1502 | BM71: 0 | BN71: 0 | BO71: 0 | BP71: 0 | BQ71: 1502 | BS71: 1926 | BY71: 2896 | CA71: 4161 | CF71: 22 | CT71: -21 | CU71: -551 | CV71: 5 | CW71: 6 | CX71: 0
A72: 224 | B72: Karkkila | C72: 8714 | D72: 20.75 | G72: 56672 | H72: 106822 | I72: 7 | J72: 27267 | K72: 1193 | L72: 2260 | M72: 30720 | N72: 20509 | O72: 6 | P72: 514 | Q72: 151 | R72: 134 | S72: 650 | U72: 4068 | V72: 0 | X72: -3418 | Y72: 0 | Z72: 1 | AA72: -1 | AB72: 29 | AD72: -3391 | AF72: -1524 | AI72: -4824 | AL72: 6879 | AN72: 65888 | AQ72: 8696 | AR72: 20.75 | AU72: 55275 | AV72: 106252 | AW72: -2 | AX72: 28608 | AY72: 1287 | AZ72: 2074 | BA72: 31969 | BB72: 25715 | BC72: 12 | BD72: 435 | BE72: 144 | BF72: 90 | BG72: 6332 | BI72: 4511 | BJ72: 0 | BL72: 1821 | BM72: 0 | BN72: 1 | BO72: 0 | BP72: -73 | BQ72: 1747 | BS72: 223 | BY72: 11024 | CA72: 66330 | CF72: 20.75 | CT72: -464 | CU72: -4581 | CV72: 73 | CW72: 366 | CX72: 0
A73: 226 | B73: Karstula | C73: 3949 | D73: 21.5 | G73: 34343 | H73: 64933 | I73: 0 | J73: 9626 | K73: 1298 | L73: 1089 | M73: 12013 | N73: 15320 | O73: 70 | P73: 54 | Q73: 29 | R73: 32 | S73: -2719 | U73: 2628 | V73: 0 | X73: -5347 | Y73: 0 | Z73: 24 | AA73: 5 | AB73: -10 | AD73: -5376 | AF73: -1854 | AI73: -4049 | AL73: 12818 | AN73: 26490 | AQ73: 3858 | AR73: 21.5 | AU73: 34039 | AV73: 58983 | AW73: 0 | AX73: 10149 | AY73: 1524 | AZ73: 990 | BA73: 12663 | BB73: 17276 | BC73: 62 | BD73: 52 | BE73: 30 | BF73: 35 | BG73: 5000 | BI73: 2787 | BJ73: 0 | BL73: 2213 | BM73: -1 | BN73: 46 | BO73: -5 | BP73: -49 | BQ73: 2112 | BS73: 327 | BY73: 12847 | CA73: 27790 | CF73: 21.5 | CT73: -4197 | CU73: -3372 | CV73: 273 | CW73: 238 | CX73: 27
A74: 230 | B74: Karvia | C74: 2342 | D74: 20.5 | G74: 21505 | H74: 35107 | I74: -11 | J74: 5092 | K74: 615 | L74: 704 | M74: 6411 | N74: 8255 | O74: 12 | P74: 92 | Q74: 48 | R74: 7 | S74: 1402 | U74: 2563 | V74: 0 | X74: -1161 | Y74: 0 | Z74: 12 | AA74: -29 | AB74: -225 | AD74: -1427 | AF74: 11183 | AI74: -1724 | AL74: 2315 | AN74: 8706 | AQ74: 2322 | AR74: 20.5 | AU74: 22804 | AV74: 33096 | AW74: 26 | AX74: 5551 | AY74: 689 | AZ74: 667 | BA74: 6907 | BB74: 9542 | BC74: 299 | BD74: 79 | BE74: 20 | BF74: 106 | BG74: 6302 | BI74: 2478 | BJ74: 0 | BL74: 3824 | BM74: 0 | BN74: 4 | BO74: -32 | BP74: -1349 | BQ74: 2439 | BS74: 14085 | BY74: 3184 | CA74: 8052 | CF74: 20.5 | CT74: -62 | CU74: -3452 | CV74: 7 | CW74: 85 | CX74: -2
A75: 231 | B75: Kaskinen | C75: 1246 | D75: 22 | G75: 7441 | H75: 16081 | I75: 0 | J75: 4970 | K75: 1082 | L75: 610 | M75: 6662 | N75: 1832 | O75: 1 | P75: 75 | Q75: 6 | R75: 6 | S75: -522 | U75: 1397 | V75: -3 | X75: -1922 | Y75: 0 | Z75: 35 | AA75: 6 | AB75: 0 | AD75: -1951 | AF75: 4763 | AI75: -1146 | AL75: 395 | AN75: 7840 | AQ75: 1278 | AR75: 22 | AU75: 8018 | AV75: 16271 | AW75: -1 | AX75: 4907 | AY75: 814 | AZ75: 675 | BA75: 6396 | BB75: 2685 | BC75: 2 | BD75: 67 | BE75: 14 | BF75: 5 | BG75: 771 | BI75: 1625 | BJ75: 22 | BL75: -832 | BM75: 0 | BN75: 28 | BO75: -4 | BP75: 0 | BQ75: -864 | BS75: 5055 | BY75: 1211 | CA75: 9194 | CF75: 22 | CT75: -31 | CU75: -1264 | CV75: 0 | CW75: 184 | CX75: 1
A76: 232 | B76: Kauhajoki | C76: 13184 | D76: 22 | G76: 87691 | H76: 171610 | I76: 192 | J76: 37191 | K76: 3479 | L76: 3850 | M76: 44520 | N76: 44951 | O76: 7 | P76: 1006 | Q76: 10157 | R76: 173 | S76: 15007 | U76: 8843 | V76: -80 | X76: 6084 | Y76: -65 | Z76: 0 | AA76: 47 | AB76: 2 | AD76: 6068 | AF76: 3425 | AI76: -18500 | AL76: 35757 | AN76: 108445 | AQ76: 13007 | AR76: 22 | AU76: 85698 | AV76: 171231 | AW76: 187 | AX76: 38875 | AY76: 4009 | AZ76: 3272 | BA76: 46156 | BB76: 50131 | BC76: 3 | BD76: 1078 | BE76: 1525 | BF76: 576 | BG76: 10815 | BI76: 9204 | BJ76: 0 | BL76: 1611 | BM76: 0 | BN76: 0 | BO76: -9 | BP76: -17 | BQ76: 1585 | BS76: 4778 | BY76: 35794 | CA76: 111062 | CF76: 22 | CT76: -402 | CU76: -14696 | CV76: 0 | CW76: 269 | CX76: 76
A77: 233 | B77: Kauhava | C77: 15726 | D77: 21.75 | G77: 82398 | H77: 187279 | I77: 34 | J77: 44637 | K77: 3319 | L77: 4089 | M77: 52045 | N77: 57614 | O77: 115 | P77: 936 | Q77: 317 | R77: 406 | S77: 5455 | U77: 14478 | V77: 0 | X77: -9023 | Y77: 1888 | Z77: 130 | AA77: 17 | AB77: 148 | AD77: -7100 | AF77: 10841 | AI77: -16814 | AL77: 28018 | AN77: 132962 | AQ77: 15514 | AR77: 21.75 | AU77: 78880 | AV77: 177728 | AW77: 24 | AX77: 47212 | AY77: 3490 | AZ77: 3670 | BA77: 54372 | BB77: 65000 | BC77: 156 | BD77: 1034 | BE77: 274 | BF77: 230 | BG77: 19713 | BI77: 12861 | BJ77: 0 | BL77: 6852 | BM77: 240 | BN77: 206 | BO77: 0 | BP77: 210 | BQ77: 7096 | BS77: 17658 | BY77: 37274 | CA77: 143576 | CF77: 21.75 | CT77: -440 | CU77: -19579 | CV77: 183 | CW77: 278 | CX77: 2723
A78: 235 | B78: Kauniainen | C78: 9797 | D78: 17 | G78: 44611 | H78: 101214 | I78: 6 | J78: 62301 | K78: 1997 | L78: 4851 | M78: 69149 | N78: -1864 | O78: 237 | P78: 322 | Q78: 153 | R78: 100 | S78: 8500 | U78: 9705 | V78: 0 | X78: -1205 | Y78: -286 | Z78: 8 | AA78: -72 | AB78: -3 | AD78: -1574 | AF78: 50406 | AI78: -11306 | AL78: 10105 | AN78: 22681 | AQ78: 10178 | AR78: 17 | AU78: 43479 | AV78: 105166 | AW78: -1 | AX78: 63838 | AY78: 1060 | AZ78: 4317 | BA78: 69215 | BB78: 4325 | BC78: 238 | BD78: 308 | BE78: 68 | BF78: 101 | BG78: 11749 | BI78: 10709 | BJ78: 0 | BL78: 1040 | BM78: 130 | BN78: 13 | BO78: 32 | BP78: -2 | BQ78: 1187 | BS78: 51476 | BY78: 17482 | CA78: 26115 | CF78: 17 | CT78: -1492 | CU78: -8910 | CV78: 58 | CW78: 1578 | CX78: 96
A79: 236 | B79: Kaustinen | C79: 4261 | D79: 21.5 | G79: 28529 | H79: 53879 | I79: 121 | J79: 12180 | K79: 1031 | L79: 957 | M79: 14168 | N79: 13164 | O79: 28 | P79: 377 | Q79: 23 | R79: 15 | S79: 1445 | U79: 3318 | V79: 0 | X79: -1873 | Y79: 4 | Z79: 0 | AA79: 0 | AB79: -21 | AD79: -1890 | AF79: 2487 | AI79: -4147 | AL79: 5625 | AN79: 50818 | AQ79: 4228 | AR79: 22 | AU79: 27057 | AV79: 52117 | AW79: 120 | AX79: 12879 | AY79: 796 | AZ79: 871 | BA79: 14546 | BB79: 16502 | BC79: 22 | BD79: 357 | BE79: 66 | BF79: 51 | BG79: 5788 | BI79: 3656 | BJ79: 0 | BL79: 2132 | BM79: -39 | BN79: 1 | BO79: 0 | BP79: -7 | BQ79: 2085 | BS79: 4624 | BY79: 7673 | CA79: 51854 | CF79: 22 | CT79: -17 | CU79: -4260 | CV79: 25 | CW79: 93 | CX79: -2
A80: 239 | B80: Keitele | C80: 2202 | D80: 20.5 | G80: 9713 | H80: 23896 | I80: 16 | J80: 5713 | K80: 618 | L80: 542 | M80: 6873 | N80: 8692 | O80: 7 | P80: 113 | Q80: 251 | R80: 42 | S80: 1762 | U80: 1192 | V80: -181 | X80: 389 | Y80: 1 | Z80: 3 | AA80: -8 | AB80: -9 | AD80: 370 | AF80: -1014 | AI80: -1873 | AL80: 1878 | AN80: 19909 | AQ80: 2155 | AR80: 20.5 | AU80: 9861 | AV80: 24955 | AW80: 43 | AX80: 5811 | AY80: 1186 | AZ80: 472 | BA80: 7469 | BB80: 9331 | BC80: 5 | BD80: 99 | BE80: 215 | BF80: 25 | BG80: 1845 | BI80: 1181 | BJ80: -1 | BL80: 663 | BM80: 0 | BN80: 2 | BO80: -4 | BP80: -3 | BQ80: 654 | BS80: -106 | BY80: 2529 | CA80: 19405 | CF80: 20.5 | CT80: -152 | CU80: -1434 | CV80: 100 | CW80: 219 | CX80: -1
A81: 240 | B81: Kemi | C81: 20707 | D81: 21.75 | G81: 107533 | H81: 233851 | I81: 67 | J81: 72619 | K81: 7185 | L81: 6556 | M81: 86360 | N81: 44093 | O81: 127 | P81: 1245 | Q81: 6500 | R81: 10 | S81: 9314 | U81: 12453 | V81: 0 | X81: -3139 | Y81: 3014 | Z81: 613 | AA81: 12 | AB81: -6 | AD81: -732 | AF81: -2970 | AI81: -19641 | AL81: 20079 | AN81: 149221 | AQ81: 20437 | AR81: 21.75 | AU81: 102685 | AV81: 229737 | AW81: 97 | AX81: 76160 | AY81: 5946 | AZ81: 6364 | BA81: 88470 | BB81: 55903 | BC81: 84 | BD81: 978 | BE81: 104 | BF81: 166 | BG81: 15766 | BI81: 14798 | BJ81: -10 | BL81: 958 | BM81: -119 | BN81: 27 | BO81: -379 | BP81: -35 | BQ81: 398 | BS81: -2208 | BY81: 21392 | CA81: 160801 | CF81: 21.75 | CT81: -1414 | CU81: -22596 | CV81: 319 | CW81: 312 | CX81: 1573
A82: 320 | B82: Kemijärvi | C82: 7274 | D82: 21.5 | G82: 53104 | H82: 103613 | I82: 0 | J82: 23822 | K82: 1298 | L82: 4326 | M82: 29446 | N82: 28503 | O82: 170 | P82: 800 | Q82: 1751 | R82: 379 | S82: 7233 | U82: 7196 | V82: 0 | X82: 37 | Y82: 24 | Z82: 0 | AA82: -491 | AB82: -373 | AD82: -803 | AF82: 6836 | AI82: -7939 | AL82: 10332 | AN82: 67127 | AQ82: 7191 | AR82: 21.5 | AU82: 55744 | AV82: 106752 | AW82: 0 | AX82: 24214 | AY82: 1377 | AZ82: 3998 | BA82: 29589 | BB82: 33217 | BC82: 233 | BD82: 859 | BE82: 1318 | BF82: 429 | BG82: 12061 | BI82: 7370 | BJ82: -3 | BL82: 4688 | BM82: -72 | BN82: 54 | BO82: -252 | BP82: -354 | BQ82: 3956 | BS82: 10424 | BY82: 15641 | CA82: 75135 | CF82: 21.5 | CT82: -363 | CU82: -16147 | CV82: 502 | CW82: 1172 | CX82: 1273
A83: 241 | B83: Keminmaa | C83: 8079 | D83: 21.25 | G83: 30254 | H83: 74348 | I83: 0 | J83: 30057 | K83: 1033 | L83: 3765 | M83: 34855 | N83: 13114 | O83: 3 | P83: 275 | Q83: 123 | R83: 3 | S83: 4672 | U83: 3826 | V83: 3 | X83: 849 | Y83: -67 | Z83: 0 | AA83: -276 | AB83: 0 | AD83: 506 | AF83: 5338 | AI83: -5542 | AL83: 12432 | AN83: 27666 | AQ83: 7984 | AR83: 21.25 | AU83: 26881 | AV83: 71816 | AW83: 0 | AX83: 31240 | AY83: 1399 | AZ83: 3581 | BA83: 36220 | BB83: 16196 | BC83: 5 | BD83: 238 | BE83: 47 | BF83: 11 | BG83: 7226 | BI83: 3879 | BJ83: 37 | BL83: 3384 | BM83: 4 | BN83: 0 | BO83: -144 | BP83: 0 | BQ83: 3244 | BS83: 8583 | BY83: 9573 | CA83: 23980 | CF83: 21.25 | CT83: -323 | CU83: -7050 | CV83: 105 | CW83: 303 | CX83: 243
A84: 322 | B84: Kemiönsaari | C84: 6640 | D84: 19.75 | G84: 27481 | H84: 68792 | I84: 16 | J84: 17833 | K84: 1070 | L84: 3359 | M84: 22262 | N84: 21601 | O84: 0 | P84: 366 | Q84: 134 | R84: 95 | S84: 2636 | U84: 5154 | V84: 0 | X84: -2518 | Y84: 211 | Z84: 45 | AA84: -54 | AB84: -6 | AD84: -2412 | AF84: 14770 | AI84: -2100 | AL84: 4728 | AN84: 32081 | AQ84: 6609 | AR84: 19.75 | AU84: 27341 | AV84: 66520 | AW84: 20 | AX84: 18994 | AY84: 1237 | AZ84: 3069 | BA84: 23300 | BB84: 24342 | BC84: 5 | BD84: 329 | BE84: 143 | BF84: 95 | BG84: 8207 | BI84: 6833 | BJ84: 0 | BL84: 1374 | BM84: 393 | BN84: 24 | BO84: -22 | BP84: -6 | BQ84: 1715 | BS84: 16313 | BY84: 3826 | CA84: 25694 | CF84: 19.75 | CT84: -139 | CU84: -2633 | CV84: 456 | CW84: 344 | CX84: 28
A85: 244 | B85: Kempele | C85: 18355 | D85: 20.5 | G85: 37179 | H85: 132292 | I85: 23 | J85: 61290 | K85: 3686 | L85: 3688 | M85: 68664 | N85: 29370 | O85: 14 | P85: 766 | Q85: 54 | R85: 37 | S85: 4733 | U85: 7698 | V85: 0 | X85: -2965 | Y85: -3 | Z85: 6 | AA85: -59 | AB85: -1 | AD85: -3034 | AF85: 20727 | AI85: -15811 | AL85: 11447 | AN85: 80493 | AQ85: 18796 | AR85: 20.5 | AU85: 36658 | AV85: 138065 | AW85: 6 | AX85: 67226 | AY85: 3917 | AZ85: 3599 | BA85: 74742 | BB85: 38064 | BC85: 62 | BD85: 738 | BE85: 46 | BF85: 9 | BG85: 10689 | BI85: 9565 | BJ85: 0 | BL85: 1124 | BM85: 83 | BN85: 2 | BO85: -85 | BP85: -2 | BQ85: 1118 | BS85: 21836 | BY85: 13058 | CA85: 82951 | CF85: 20.5 | CT85: -2550 | CU85: -14552 | CV85: 655 | CW85: 3577 | CX85: -13
A86: 245 | B86: Kerava | C86: 36756 | D86: 19.25 | G86: 189064 | H86: 357082 | I86: 330 | J86: 132745 | K86: 9562 | L86: 10224 | M86: 152531 | N86: 37655 | O86: 134 | P86: 1680 | Q86: 1213 | R86: 385 | S86: 26070 | U86: 34923 | V86: 14166 | X86: 5313 | Y86: -1 | Z86: 19 | AA86: -274 | AB86: 28 | AD86: 5047 | AF86: 144477 | AI86: -53988 | AL86: 25585 | AN86: 191426 | AQ86: 37105 | AR86: 19.25 | AU86: 187045 | AV86: 370258 | AW86: 274 | AX86: 145530 | AY86: 7538 | AZ86: 9917 | BA86: 162985 | BB86: 56169 | BC86: 118 | BD86: 1649 | BE86: 987 | BF86: 941 | BG86: 34157 | BI86: 36146 | BJ86: 2695 | BL86: 706 | BM86: 0 | BN86: 12 | BO86: -99 | BP86: 71 | BQ86: 666 | BS86: 145143 | BY86: 25669 | CA86: 205883 | CF86: 19.25 | CT86: -7300 | CU86: -75163 | CV86: 211 | CW86: 15336 | CX86: -24
A87: 249 | B87: Keuruu | C87: 9605 | D87: 21.5 | G87: 53344 | H87: 111365 | I87: 252 | J87: 29644 | K87: 2473 | L87: 2156 | M87: 34273 | N87: 31090 | O87: 48 | P87: 627 | Q87: 148 | R87: 41 | S87: 6456 | U87: 10045 | V87: 0 | X87: -3589 | Y87: 1 | Z87: 6 | AA87: -9 | AB87: -93 | AD87: -3696 | AF87: 10512 | AI87: -16564 | AL87: 5760 | AN87: 110156 | AQ87: 9486 | AR87: 21.5 | AU87: 52208 | AV87: 110749 | AW87: 274 | AX87: 30187 | AY87: 3056 | AZ87: 2188 | BA87: 35431 | BB87: 34914 | BC87: 46 | BD87: 569 | BE87: 127 | BF87: 32 | BG87: 11576 | BI87: 9827 | BJ87: 0 | BL87: 1749 | BM87: 67 | BN87: 20 | BO87: 65 | BP87: 71 | BQ87: 1932 | BS87: 12151 | BY87: 6278 | CA87: 110651 | CF87: 21.5 | CT87: -158 | CU87: -13932 | CV87: 2 | CW87: 1786 | CX87: 0
A88: 250 | B88: Kihniö | C88: 1865 | D88: 21.5 | G88: 6765 | H88: 19285 | I88: -3 | J88: 4554 | K88: 664 | L88: 560 | M88: 5778 | N88: 7646 | O88: 3 | P88: 141 | Q88: -17 | R88: 25 | S88: 656 | U88: 873 | V88: 0 | X88: -217 | Y88: 0 | Z88: 9 | AA88: -1 | AB88: -15 | AD88: -242 | AF88: -666 | AI88: -1414 | AL88: 1872 | AN88: 10285 | AQ88: 1822 | AR88: 21.5 | AU88: 7805 | AV88: 19577 | AW88: 15 | AX88: 4586 | AY88: 780 | AZ88: 494 | BA88: 5860 | BB88: 7643 | BC88: 3 | BD88: 139 | BE88: 47 | BF88: 14 | BG88: 1639 | BI88: 949 | BJ88: 0 | BL88: 690 | BM88: 0 | BN88: 29 | BO88: -3 | BP88: -53 | BQ88: 605 | BS88: -61 | BY88: 2749 | CA88: 10562 | CF88: 21.5 | CT88: -100 | CU88: -909 | CV88: 14 | CW88: 641 | CX88: -365
A89: 256 | B89: Kinnula | C89: 1620 | D89: 21 | G89: 6148 | H89: 17942 | I89: -25 | J89: 3669 | K89: 569 | L89: 365 | M89: 4603 | N89: 6967 | O89: 65 | P89: 7 | Q89: 41 | R89: 1 | S89: -322 | U89: 1078 | V89: 0 | X89: -1400 | Y89: 0 | Z89: 0 | AA89: 0 | AB89: -5 | AD89: -1405 | AF89: 3240 | AI89: -1976 | AL89: 2014 | AN89: 10388 | AQ89: 1597 | AR89: 21 | AU89: 5807 | AV89: 17979 | AW89: -25 | AX89: 3872 | AY89: 707 | AZ89: 382 | BA89: 4961 | BB89: 7852 | BC89: 71 | BD89: 8 | BE89: 23 | BF89: 4 | BG89: 695 | BI89: 1052 | BJ89: 0 | BL89: -357 | BM89: 0 | BN89: 0 | BO89: 0 | BP89: -3 | BQ89: -360 | BS89: 3109 | BY89: 1843 | CA89: 11095 | CF89: 21 | CT89: 204 | CU89: -2477 | CV89: 0 | CW89: 269 | CX89: 0
A90: 257 | B90: Kirkkonummi | C90: 39586 | D90: 19.75 | G90: 126520 | H90: 342125 | I90: -487 | J90: 171177 | K90: 6599 | L90: 11571 | M90: 189347 | N90: 29487 | O90: 67 | P90: 1802 | Q90: 647 | R90: 469 | S90: 1763 | U90: 23685 | V90: 0 | X90: -21922 | Y90: -23 | Z90: 3 | AA90: 5 | AB90: 53 | AD90: -21890 | AF90: 405 | AI90: -60773 | AL90: 27449 | AN90: 233982 | AQ90: 40082 | AR90: 19.75 | AU90: 122591 | AV90: 344421 | AW90: -3 | AX90: 185022 | AY90: 6124 | AZ90: 10889 | BA90: 202035 | BB90: 50657 | BC90: 97 | BD90: 1881 | BE90: 587 | BF90: 531 | BG90: 29131 | BI90: 24791 | BJ90: 400 | BL90: 4740 | BM90: 20 | BN90: 18 | BO90: 38 | BP90: 53 | BQ90: 4833 | BS90: 5237 | BY90: 44045 | CA90: 287534 | CF90: 19.75 | CT90: -2078 | CU90: -73534 | CV90: 2688 | CW90: 3662 | CX90: 190
A91: 260 | B91: Kitee | C91: 10136 | D91: 21 | G91: 63022 | H91: 129044 | I91: 0 | J91: 27147 | K91: 2167 | L91: 2845 | M91: 32159 | N91: 39712 | O91: 41 | P91: 207 | Q91: 445 | R91: 2 | S91: 6085 | U91: 5601 | V91: 0 | X91: 484 | Y91: -6 | Z91: 54 | AA91: 82 | AB91: -29 | AD91: 477 | AF91: 23529 | AI91: -4486 | AL91: 13549 | AN91: 19544 | AQ91: 9933 | AR91: 21 | AU91: 63332 | AV91: 130955 | AW91: 0 | AX91: 27559 | AY91: 2464 | AZ91: 2649 | BA91: 32672 | BB91: 44888 | BC91: 81 | BD91: 228 | BE91: 417 | BF91: 2 | BG91: 10089 | BI91: 5839 | BJ91: 0 | BL91: 4250 | BM91: 6 | BN91: 57 | BO91: 29 | BP91: -24 | BQ91: 4204 | BS91: 27927 | BY91: 17208 | CA91: 20956 | CF91: 21 | CT91: -833 | CU91: -5457 | CV91: 209 | CW91: 313 | CX91: -144
A92: 261 | B92: Kittilä | C92: 6453 | D92: 20.25 | G92: 50433 | H92: 91942 | I92: 1199 | J92: 19614 | K92: 1926 | L92: 7040 | M92: 28580 | N92: 25830 | O92: 8 | P92: 766 | Q92: 869 | R92: 978 | S92: 15206 | U92: 8606 | V92: 0 | X92: 6600 | Y92: 911 | Z92: 504 | AA92: -30 | AB92: -827 | AD92: 6150 | AF92: 52782 | AI92: -19613 | AL92: 8943 | AN92: 49841 | AQ92: 6436 | AR92: 20.25 | AU92: 46698 | AV92: 91440 | AW92: 1022 | AX92: 22001 | AY92: 2733 | AZ92: 6606 | BA92: 31340 | BB92: 28456 | BC92: 7 | BD92: 448 | BE92: 845 | BF92: 1535 | BG92: 14945 | BI92: 10714 | BJ92: 0 | BL92: 4231 | BM92: 1431 | BN92: 0 | BO92: -180 | BP92: -293 | BQ92: 5189 | BS92: 57426 | BY92: 12481 | CA92: 52293 | CF92: 20.25 | CT92: -821 | CU92: -13816 | CV92: 119 | CW92: 630 | CX92: -44
A93: 263 | B93: Kiuruvesi | C93: 7998 | D93: 20.75 | G93: 47223 | H93: 101847 | I93: 166 | J93: 19533 | K93: 1814 | L93: 1708 | M93: 23055 | N93: 33942 | O93: 14 | P93: 503 | Q93: 1256 | R93: 198 | S93: 3466 | U93: 5705 | V93: 419 | X93: -1820 | Y93: 6 | Z93: 9 | AA93: -67 | AB93: -23 | AD93: -1913 | AF93: -812 | AI93: -5093 | AL93: 11787 | AN93: 57614 | AQ93: 7854 | AR93: 21.75 | AU93: 48661 | AV93: 101594 | AW93: 69 | AX93: 20758 | AY93: 2225 | AZ93: 1563 | BA93: 24546 | BB93: 39263 | BC93: 13 | BD93: 456 | BE93: 1054 | BF93: 247 | BG93: 11174 | BI93: 6736 | BJ93: -10 | BL93: 4428 | BM93: 3 | BN93: 7 | BO93: -71 | BP93: -7 | BQ93: 4346 | BS93: 3524 | BY93: 14295 | CA93: 55735 | CF93: 21.75 | CT93: -739 | CU93: -8044 | CV93: 442 | CW93: 1111 | CX93: 24
A94: 265 | B94: Kivijärvi | C94: 1096 | D94: 21.5 | G94: 10550 | H94: 18983 | I94: 0 | J94: 2441 | K94: 609 | L94: 439 | M94: 3489 | N94: 4938 | O94: 6 | P94: 39 | Q94: 8 | R94: 1713 | S94: -1662 | U94: 924 | V94: 0 | X94: -2586 | Y94: 0 | Z94: 0 | AA94: -2 | AB94: 0 | AD94: -2588 | AF94: -1007 | AI94: -1513 | AL94: 2067 | AN94: 9332 | AQ94: 1107 | AR94: 21.75 | AU94: 10608 | AV94: 18452 | AW94: 0 | AX94: 2680 | AY94: 753 | AZ94: 461 | BA94: 3894 | BB94: 5474 | BC94: 4 | BD94: 44 | BE94: 6 | BF94: 9 | BG94: 1481 | BI94: 1004 | BJ94: 0 | BL94: 477 | BM94: 0 | BN94: 0 | BO94: -3 | BP94: 0 | BQ94: 474 | BS94: -494 | BY94: 2845 | CA94: 11401 | CF94: 21.75 | CT94: -1755 | CU94: -1545 | CV94: 273 | CW94: 107 | CX94: -42
A95: 271 | B95: Kokemäki | C95: 7103 | D95: 21.75 | G95: 33369 | H95: 77264 | I95: -7 | J95: 22047 | K95: 1229 | L95: 2525 | M95: 25801 | N95: 20978 | O95: 12 | P95: 184 | Q95: 55 | R95: 151 | S95: 2622 | U95: 3785 | V95: 93 | X95: -1070 | Y95: 5 | Z95: 82 | AA95: 0 | AB95: 0 | AD95: -1147 | AF95: 212 | AI95: -3967 | AL95: 2683 | AN95: 34360 | AQ95: 7013 | AR95: 21.75 | AU95: 37431 | AV95: 76992 | AW95: -4 | AX95: 22895 | AY95: 1302 | AZ95: 2393 | BA95: 26590 | BB95: 21327 | BC95: 8 | BD95: 174 | BE95: 59 | BF95: 33 | BG95: 8163 | BI95: 4446 | BJ95: 73 | BL95: 3790 | BM95: 5 | BN95: 34 | BO95: 0 | BP95: 1 | BQ95: 3762 | BS95: 4192 | BY95: 5408 | CA95: 35748 | CF95: 21.75 | CT95: -60 | CU95: -6297 | CV95: 37 | CW95: 393 | CX95: -95
A96: 272 | B96: Kokkola | C96: 47681 | D96: 21.75 | G96: 352361 | H96: 592247 | I96: 659 | J96: 156967 | K96: 15715 | L96: 15332 | M96: 188014 | N96: 89006 | O96: 385 | P96: 4673 | Q96: 1802 | R96: 2984 | S96: 38141 | U96: 40763 | V96: -347 | X96: -2969 | Y96: -175 | Z96: 1946 | AA96: -129 | AB96: -212 | AD96: -5431 | AF96: 94512 | AI96: -56090 | AL96: 68027 | AN96: 422894 | AQ96: 47772 | AR96: 21.5 | AU96: 338852 | AV96: 589493 | AW96: 1145 | AX96: 168285 | AY96: 19140 | AZ96: 14499 | BA96: 201924 | BB96: 109533 | BC96: 419 | BD96: 4948 | BE96: 1079 | BF96: 715 | BG96: 56431 | BI96: 44948 | BJ96: 9 | BL96: 11492 | BM96: -985 | BN96: 703 | BO96: -224 | BP96: -164 | BQ96: 9416 | BS96: 103057 | BY96: 78374 | CA96: 454124 | CF96: 21.5 | CT96: -3965 | CU96: -76266 | CV96: 1198 | CW96: 6735 | CX96: -61
B97: KOKO MAA (Manner-Suomi) | C97: 5495408 | D97: 19.9 | G97: 26773679 | H97: 54871181 | I97: 70720 | J97: 18664568 | K97: 1866127 | L97: 1790525 | M97: 22321220 | N97: 9778488 | O97: 78665 | P97: 410649 | Q97: 279711 | R97: 75103 | S97: 4476884 | U97: 4468739 | V97: 339728 | X97: 347873 | Y97: 24483 | Z97: 103368 | AA97: -54303 | AB97: -36500 | AD97: 178184 | AF97: 12670810 | AI97: -6831446 | AL97: 7778386 | AN97: 39046656 | AQ97: 5503664 | AR97: 19.96 | AU97: 26450859 | AV97: 55390857 | AW97: 93462 | AX97: 20124065 | AY97: 1956930 | AZ97: 1744593 | BA97: 23825588 | BB97: 12215170 | BC97: 65183 | BD97: 420489 | BE97: 213288 | BF97: 108538 | BG97: 6894388 | BI97: 4681442 | BJ97: 119640 | BL97: 2332586 | BM97: -58220 | BN97: 75433 | BO97: -68982 | BP97: -45422 | BQ97: 2084529 | BS97: 14696103 | BY97: 9259310 | CA97: 41172486 | CF97: 20.02 | CT97: -565080 | CU97: -9180621 | CV97: 203417 | CW97: 1711735 | CX97: -14740
A98: 273 | B98: Kolari | C98: 3846 | D98: 20 | G98: 15744 | H98: 41059 | I98: 0 | J98: 10418 | K98: 762 | L98: 3676 | M98: 14856 | N98: 14674 | O98: 4 | P98: 83 | Q98: 25 | R98: 16 | S98: 4353 | U98: 2931 | V98: 0 | X98: 1422 | Y98: 1 | Z98: 10 | AA98: -48 | AB98: -19 | AD98: 1346 | AF98: 19733 | AI98: -1867 | AL98: 13809 | AN98: 14340 | AQ98: 3925 | AR98: 20 | AU98: 14855 | AV98: 42127 | AW98: 0 | AX98: 10750 | AY98: 943 | AZ98: 3421 | BA98: 15114 | BB98: 16635 | BC98: 6 | BD98: 115 | BE98: 25 | BF98: 11 | BG98: 4342 | BI98: 2958 | BJ98: 1 | BL98: 1385 | BM98: 0 | BN98: 13 | BO98: -34 | BP98: -19 | BQ98: 1319 | BS98: 21071 | BY98: 11244 | CA98: 14387 | CF98: 20 | CT98: -114 | CU98: -7722 | CV98: 165 | CW98: 166 | CX98: -195
A99: 275 | B99: Konnevesi | C99: 2627 | D99: 22 | G99: 8378 | H99: 30037 | I99: 0 | J99: 7329 | K99: 806 | L99: 782 | M99: 8917 | N99: 9047 | O99: 39 | P99: 234 | Q99: 215 | R99: 57 | S99: -3843 | U99: 1715 | V99: 0 | X99: -5558 | Y99: 0 | Z99: 27 | AA99: 4 | AB99: 0 | AD99: -5581 | AF99: -4283 | AI99: -1726 | AL99: 2611 | AN99: 29208 | AQ99: 2593 | AR99: 22 | AU99: 9093 | AV99: 25606 | AW99: 0 | AX99: 7034 | AY99: 940 | AZ99: 730 | BA99: 8704 | BB99: 11091 | BC99: 237 | BD99: 213 | BE99: 4 | BF99: 265 | BG99: 3028 | BI99: 1931 | BJ99: 0 | BL99: 1097 | BM99: -1 | BN99: 24 | BO99: 3 | BP99: 0 | BQ99: 1075 | BS99: -5076 | BY99: 2934 | CA99: 32817 | CF99: 22 | CT99: -3629 | CU99: -1500 | CV99: 3 | CW99: 123 | CX99: 0
A100: 276 | B100: Kontiolahti | C100: 14821 | D100: 20.5 | G100: 53386 | H100: 124254 | I100: 16 | J100: 45058 | K100: 1444 | L100: 2812 | M100: 49314 | N100: 26053 | O100: 43 | P100: 798 | Q100: 312 | R100: 8 | S100: 7454 | U100: 7684 | V100: 0 | X100: -230 | Y100: 168 | Z100: 7 | AA100: 9 | AB100: -6 | AD100: -66 | AF100: 21496 | AI100: -11142 | AL100: 7891 | AN100: 71664 | AQ100: 14857 | AR100: 20.5 | AU100: 53548 | AV100: 125470 | AW100: -12 | AX100: 49067 | AY100: 2340 | AZ100: 2612 | BA100: 54019 | BB100: 31635 | BC100: 54 | BD100: 733 | BE100: 280 | BF100: 43 | BG100: 13278 | BI100: 7076 | BJ100: 0 | BL100: 6202 | BM100: 5 | BN100: 56 | BO100: -12 | BP100: 2 | BQ100: 6141 | BS100: 27868 | BY100: 15653 | CA100: 71459 | CF100: 20.5 | CT100: 775 | CU100: -10275 | CV100: 26 | CW100: 5777 | CX100: 3
A101: 280 | B101: Korsnäs | C101: 2077 | D101: 21.5 | G101: 7834 | H101: 20861 | I101: -3 | J101: 5066 | K101: 852 | L101: 721 | M101: 6639 | N101: 6995 | O101: 0 | P101: 46 | Q101: 17 | R101: 10 | S101: 843 | U101: 1585 | V101: 0 | X101: -742 | Y101: 0 | Z101: 0 | AA101: 0 | AB101: 0 | AD101: -742 | AF101: 7946 | AI101: -1328 | AL101: 1517 | AN101: 5069 | AQ101: 2068 | AR101: 21.5 | AU101: 7893 | AV101: 21306 | AW101: -4 | AX101: 5300 | AY101: 648 | AZ101: 658 | BA101: 6606 | BB101: 7540 | BC101: 3 | BD101: 42 | BE101: 40 | BF101: 10 | BG101: 720 | BI101: 1725 | BJ101: 51 | BL101: -954 | BM101: 0 | BN101: 0 | BO101: 0 | BP101: 0 | BQ101: -954 | BS101: 6991 | BY101: 1139 | CA101: 6441 | CF101: 21.5 | CT101: -8 | CU101: -2774 | CV101: 1 | CW101: 10 | CX101: 12
A102: 284 | B102: Koski tl | C102: 2308 | D102: 19.5 | G102: 10108 | H102: 23783 | I102: 5 | J102: 5587 | K102: 599 | L102: 526 | M102: 6712 | N102: 7581 | O102: 0 | P102: 24 | Q102: 23 | R102: 3 | S102: 873 | U102: 1147 | V102: 0 | X102: -274 | Y102: 75 | Z102: 0 | AA102: 0 | AB102: 0 | AD102: -199 | AF102: 4358 | AI102: -1303 | AL102: 1350 | AN102: 1362 | AQ102: 2292 | AR102: 20 | AU102: 10152 | AV102: 23730 | AW102: 24 | AX102: 6366 | AY102: 704 | AZ102: 465 | BA102: 7535 | BB102: 8485 | BC102: 0 | BD102: 26 | BE102: 33 | BF102: 6 | BG102: 2467 | BI102: 1124 | BJ102: 0 | BL102: 1343 | BM102: 1 | BN102: 0 | BO102: 0 | BP102: -2 | BQ102: 1342 | BS102: 5717 | BY102: 3080 | CA102: 1704 | CF102: 20 | CT102: 1 | CU102: -2285 | CV102: 317 | CW102: 91 | CX102: 1
A103: 285 | B103: Kotka | C103: 52126 | D103: 21.5 | G103: 404715 | H103: 665464 | I103: 97 | J103: 187770 | K103: 9500 | L103: 15212 | M103: 212482 | N103: 128852 | O103: 132 | P103: 4647 | Q103: 202 | R103: 3364 | S103: 77186 | U103: 62966 | V103: 568 | X103: 14788 | Y103: 0 | Z103: 3551 | AA103: -194 | AB103: -4320 | AD103: 6723 | AF103: 50093 | AI103: -81721 | AL103: 93829 | AN103: 545353 | AQ103: 51668 | AR103: 21.5 | AU103: 395201 | AV103: 667341 | AW103: 420 | AX103: 200183 | AY103: 10994 | AZ103: 14085 | BA103: 225262 | BB103: 153150 | BC103: 135 | BD103: 6333 | BE103: 185 | BF103: 1337 | BG103: 97290 | BI103: 81822 | BJ103: 0 | BL103: 15468 | BM103: 0 | BN103: 2975 | BO103: 40 | BP103: -3567 | BQ103: 8966 | BS103: 59060 | BY103: 94234 | CA103: 508970 | CF103: 21.5 | CT103: -4310 | CU103: -65503 | CV103: 835 | CW103: 6641 | CX103: -10
A104: 286 | B104: Kouvola | C104: 82113 | D104: 20.75 | G104: 452012 | H104: 937026 | I104: 4946 | J104: 283094 | K104: 27768 | L104: 20213 | M104: 331075 | N104: 173241 | O104: 378 | P104: 5044 | Q104: 2864 | R104: 92 | S104: 27795 | U104: 40721 | V104: 0 | X104: -12926 | Y104: 92 | Z104: 2944 | AA104: 131 | AB104: -100 | AD104: -15747 | AF104: 40119 | AI104: -80279 | AL104: 104160 | AN104: 489089 | AQ104: 81187 | AR104: 21.25 | AU104: 450343 | AV104: 942895 | AW104: 5986 | AX104: 302676 | AY104: 25999 | AZ104: 26068 | BA104: 354743 | BB104: 214969 | BC104: 367 | BD104: 5146 | BE104: 2267 | BF104: 979 | BG104: 78103 | BI104: 45810 | BJ104: 0 | BL104: 32293 | BM104: 0 | BN104: 3304 | BO104: -13 | BP104: -103 | BQ104: 28873 | BS104: 68991 | BY104: 76348 | CA104: 482000 | CF104: 21.25 | CT104: -4562 | CU104: -110372 | CV104: 2311 | CW104: 19455 | CX104: -9
A105: 287 | B105: Kristiinankaupunki | C105: 6486 | D105: 21.5 | G105: 24309 | H105: 67543 | I105: -5 | J105: 19548 | K105: 1369 | L105: 2552 | M105: 23469 | N105: 20714 | O105: 1 | P105: 467 | Q105: 128 | R105: 58 | S105: 1728 | U105: 3931 | V105: -6 | X105: -2209 | Y105: 5 | Z105: 11 | AA105: -16 | AB105: -2 | AD105: -2233 | AF105: 8569 | AI105: -8034 | AL105: 4355 | AN105: 38045 | AQ105: 6404 | AR105: 21.5 | AU105: 24967 | AV105: 67872 | AW105: -8 | AX105: 20980 | AY105: 1486 | AZ105: 2653 | BA105: 25119 | BB105: 23002 | BC105: 2 | BD105: 419 | BE105: 130 | BF105: 248 | BG105: 4672 | BI105: 4510 | BJ105: 127 | BL105: 289 | BM105: 0 | BN105: 3 | BO105: -26 | BP105: 2 | BQ105: 262 | BS105: 8445 | BY105: 7883 | CA105: 42179 | CF105: 21.5 | CT105: -920 | CU105: -7398 | CV105: 62 | CW105: 1690 | CX105: 26
A106: 288 | B106: Kruunupyy | C106: 6428 | D106: 22 | G106: 26781 | H106: 63636 | I106: 16 | J106: 19461 | K106: 2316 | L106: 1807 | M106: 23584 | N106: 15950 | O106: 9 | P106: 316 | Q106: 188 | R106: 13 | S106: 3108 | U106: 2537 | V106: 0 | X106: 571 | Y106: -20 | Z106: 48 | AA106: -27 | AB106: 0 | AD106: 476 | AF106: 9174 | AI106: -5061 | AL106: 4678 | AN106: 28618 | AQ106: 6416 | AR106: 22 | AU106: 25987 | AV106: 63402 | AW106: -3 | AX106: 20637 | AY106: 2259 | AZ106: 1694 | BA106: 24590 | BB106: 18836 | BC106: 8 | BD106: 283 | BE106: 169 | BF106: 4 | BG106: 5898 | BI106: 2859 | BJ106: 0 | BL106: 3039 | BM106: -13 | BN106: 0 | BO106: 38 | BP106: 0 | BQ106: 3064 | BS106: 12003 | BY106: 5988 | CA106: 30091 | CF106: 22 | CT106: -17 | CU106: -6719 | CV106: 152 | CW106: 152 | CX106: 60
A107: 290 | B107: Kuhmo | C107: 8190 | D107: 21.5 | G107: 51830 | H107: 107746 | I107: 0 | J107: 22756 | K107: 2888 | L107: 2144 | M107: 27788 | N107: 32092 | O107: 15 | P107: 281 | Q107: 2160 | R107: 987 | S107: 5341 | U107: 5515 | V107: 0 | X107: -174 | Y107: 16 | Z107: 0 | AA107: -161 | AB107: -200 | AD107: -519 | AF107: 5639 | AI107: -9189 | AL107: 32886 | AN107: 62329 | AQ107: 8042 | AR107: 22 | AU107: 54750 | AV107: 112148 | AW107: 0 | AX107: 23643 | AY107: 3356 | AZ107: 1988 | BA107: 28987 | BB107: 35025 | BC107: 37 | BD107: 279 | BE107: 1291 | BF107: 1258 | BG107: 6304 | BI107: 6474 | BJ107: 0 | BL107: -170 | BM107: 2 | BN107: 59 | BO107: -416 | BP107: -150 | BQ107: -793 | BS107: 4846 | BY107: 35516 | CA107: 63601 | CF107: 22 | CT107: 286 | CU107: -5621 | CV107: 41 | CW107: 232 | CX107: 0
A108: 291 | B108: Kuhmoinen | C108: 2206 | D108: 20.75 | G108: 5279 | H108: 21729 | I108: 2 | J108: 5685 | K108: 1013 | L108: 1342 | M108: 8040 | N108: 9394 | O108: 65 | P108: 18 | Q108: 212 | R108: 56 | S108: 1288 | U108: 1677 | V108: -5 | X108: -394 | Y108: 47 | Z108: 3 | AA108: -11 | AB108: -4 | AD108: -365 | AF108: 5122 | AI108: -1844 | AL108: 4067 | AN108: 8310 | AQ108: 2161 | AR108: 21.75 | AU108: 5135 | AV108: 21876 | AW108: 4 | AX108: 6141 | AY108: 1227 | AZ108: 1389 | BA108: 8757 | BB108: 10483 | BC108: 48 | BD108: 27 | BE108: 46 | BF108: 71 | BG108: 2499 | BI108: 2146 | BJ108: 3 | BL108: 356 | BM108: 44 | BN108: 0 | BO108: -19 | BP108: -8 | BQ108: 373 | BS108: 5452 | BY108: 5714 | CA108: 8690 | CF108: 21.75 | CT108: -141 | CU108: -1534 | CV108: 12 | CW108: 673 | CX108: -230
A109: 297 | B109: Kuopio | C109: 119282 | D109: 20.5 | G109: 683752 | H109: 1281632 | I109: 333 | J109: 378301 | K109: 24219 | L109: 38754 | M109: 441274 | N109: 265495 | O109: 685 | P109: 11672 | Q109: 3805 | R109: 47 | S109: 124719 | U109: 116077 | V109: 0 | X109: 8642 | Y109: -95 | Z109: 3003 | AA109: -4420 | AB109: -2694 | AD109: -1570 | AF109: 10746 | AI109: -179249 | AL109: 217752 | AN109: 1075929 | AQ109: 120210 | AR109: 20.75 | AU109: 588201 | AV109: 1212592 | AW109: 2504 | AX109: 421596 | AY109: 27485 | AZ109: 37106 | BA109: 486187 | BB109: 314359 | BC109: 485 | BD109: 12983 | BE109: 2934 | BF109: 209 | BG109: 168886 | BI109: 117094 | BJ109: 610 | BL109: 52402 | BM109: 368 | BN109: 2770 | BO109: -1585 | BP109: -2707 | BQ109: 45708 | BS109: 54399 | BY109: 296917 | CA109: 1167789 | CF109: 20.75 | CT109: -11178 | CU109: -236447 | CV109: 2949 | CW109: 49211 | CX109: 99
A110: 300 | B110: Kuortane | C110: 3551 | D110: 21 | G110: 31490 | H110: 54906 | I110: -13 | J110: 9230 | K110: 707 | L110: 839 | M110: 10776 | N110: 14076 | O110: 28 | P110: 169 | Q110: 48 | R110: 25 | S110: 1642 | U110: 2158 | V110: 0 | X110: -516 | Y110: 41 | Z110: 0 | AA110: 0 | AB110: 7 | AD110: -468 | AF110: 3068 | AI110: -5666 | AL110: 3492 | AN110: 18597 | AQ110: 3534 | AR110: 21 | AU110: 32497 | AV110: 55581 | AW110: -21 | AX110: 9895 | AY110: 826 | AZ110: 825 | BA110: 11546 | BB110: 15567 | BC110: 18 | BD110: 154 | BE110: 67 | BF110: 19 | BG110: 3920 | BI110: 2369 | BJ110: 0 | BL110: 1551 | BM110: 17 | BN110: 0 | BO110: -27 | BP110: -2 | BQ110: 1539 | BS110: 4630 | BY110: 3150 | CA110: 20346 | CF110: 21 | CT110: -109 | CU110: -5386 | CV110: 207 | CW110: 77 | CX110: 28
A111: 301 | B111: Kurikka | C111: 20678 | D111: 21 | G111: 93292 | H111: 224243 | I111: 17 | J111: 55377 | K111: 4019 | L111: 4376 | M111: 63772 | N111: 67318 | O111: 176 | P111: 1217 | Q111: 10997 | R111: 180 | S111: 11070 | U111: 23222 | V111: -6 | X111: -12158 | Y111: -280 | Z111: 171 | AA111: 47 | AB111: 309 | AD111: -12253 | AF111: 10327 | AI111: -12734 | AL111: 54491 | AN111: 137265 | AQ111: 20456 | AR111: 21 | AU111: 79340 | AV111: 213843 | AW111: 3 | AX111: 59870 | AY111: 3868 | AZ111: 4151 | BA111: 67889 | BB111: 76018 | BC111: 210 | BD111: 926 | BE111: 12352 | BF111: 116 | BG111: 20927 | BI111: 15583 | BJ111: 0 | BL111: 5344 | BM111: 0 | BN111: 132 | BO111: -45 | BP111: -12 | BQ111: 5155 | BS111: 15370 | BY111: 57815 | CA111: 131971 | CF111: 21 | CT111: -701 | CU111: -14990 | CV111: 133 | CW111: 1619 | CX111: 28
A112: 304 | B112: Kustavi | C112: 949 | D112: 18.5 | G112: 5180 | H112: 11240 | I112: 3 | J112: 2827 | K112: 223 | L112: 1421 | M112: 4471 | N112: 2132 | O112: 0 | P112: 50 | Q112: 2 | R112: 1 | S112: 609 | U112: 586 | V112: 0 | X112: 23 | Y112: 23 | Z112: 0 | AA112: 0 | AB112: 0 | AD112: 46 | AF112: 3810 | AI112: -1061 | AL112: 1688 | AN112: 4399 | AQ112: 962 | AR112: 18.25 | AU112: 5376 | AV112: 11266 | AW112: 3 | AX112: 3114 | AY112: 258 | AZ112: 1281 | BA112: 4653 | BB112: 2423 | BC112: 0 | BD112: 50 | BE112: 3 | BF112: 1 | BG112: 1139 | BI112: 613 | BJ112: 0 | BL112: 526 | BM112: -461 | BN112: 0 | BO112: 0 | BP112: -1 | BQ112: 64 | BS112: 3875 | BY112: 1521 | CA112: 4763 | CF112: 18.25 | CT112: -16 | CU112: -1017 | CV112: 31 | CW112: 52 | CX112: -9
A113: 305 | B113: Kuusamo | C113: 15134 | D113: 20 | G113: 49253 | H113: 141442 | I113: 5 | J113: 40189 | K113: 3843 | L113: 7218 | M113: 51250 | N113: 45725 | O113: 15 | P113: 618 | Q113: 1911 | R113: 240 | S113: 7094 | U113: 7698 | V113: 0 | X113: -604 | Y113: 474 | Z113: 46 | AA113: -45 | AB113: -11 | AD113: -232 | AF113: 21275 | AI113: -9593 | AL113: 29530 | AN113: 54630 | AQ113: 15213 | AR113: 20 | AU113: 50810 | AV113: 143261 | AW113: 9 | AX113: 42693 | AY113: 4396 | AZ113: 6799 | BA113: 53888 | BB113: 51455 | BC113: 17 | BD113: 588 | BE113: 204 | BF113: 86 | BG113: 12331 | BI113: 10096 | BJ113: 0 | BL113: 2235 | BM113: 837 | BN113: 29 | BO113: -75 | BP113: -13 | BQ113: 2955 | BS113: 24173 | BY113: 28823 | CA113: 58817 | CF113: 20 | CT113: -483 | CU113: -18015 | CV113: 1595 | CW113: 699 | CX113: -16
A114: 312 | B114: Kyyjärvi | C114: 1313 | D114: 21.75 | G114: 10030 | H114: 20690 | I114: 0 | J114: 3406 | K114: 597 | L114: 381 | M114: 4384 | N114: 4342 | O114: 8 | P114: 19 | Q114: 440 | R114: 33 | S114: -1441 | U114: 1223 | V114: 196 | X114: -2468 | Y114: 0 | Z114: 0 | AA114: 0 | AB114: 38 | AD114: -2430 | AF114: -4186 | AI114: -537 | AL114: 7067 | AN114: 16990 | AQ114: 1288 | AR114: 22.5 | AU114: 9632 | AV114: 18115 | AW114: 0 | AX114: 3324 | AY114: 927 | AZ114: 405 | BA114: 4656 | BB114: 5130 | BC114: 55 | BD114: 19 | BE114: 221 | BF114: 36 | BG114: 1525 | BI114: 2889 | BJ114: 0 | BL114: -1364 | BM114: -3 | BN114: 0 | BO114: 0 | BP114: 448 | BQ114: -919 | BS114: -5004 | BY114: 7858 | CA114: 19608 | CF114: 22.5 | CT114: -392 | CU114: -956 | CV114: 0 | CW114: 69 | CX114: 43
A115: 316 | B115: Kärkölä | C115: 4368 | D115: 22 | G115: 25747 | H115: 49311 | I115: 8 | J115: 13911 | K115: 616 | L115: 1137 | M115: 15664 | N115: 8661 | O115: 3 | P115: 134 | Q115: 164 | R115: 27 | S115: 948 | U115: 1508 | V115: -26 | X115: -586 | Y115: 0 | Z115: 7 | AA115: 0 | AB115: -8 | AD115: -601 | AF115: 921 | AI115: -6021 | AL115: 8745 | AN115: 18638 | AQ115: 4326 | AR115: 22 | AU115: 25944 | AV115: 48606 | AW115: 2 | AX115: 15411 | AY115: 837 | AZ115: 996 | BA115: 17244 | BB115: 10566 | BC115: 1 | BD115: 45 | BE115: 171 | BF115: 17 | BG115: 5244 | BI115: 1599 | BJ115: 0 | BL115: 3645 | BM115: 0 | BN115: 4 | BO115: 0 | BP115: -5 | BQ115: 3636 | BS115: 4545 | BY115: 7998 | CA115: 17628 | CF115: 22 | CT115: -84 | CU115: -4898 | CV115: 604 | CW115: 99 | CX115: 6
A116: 317 | B116: Kärsämäki | C116: 2576 | D116: 21.5 | G116: 21843 | H116: 38943 | I116: 1 | J116: 5855 | K116: 589 | L116: 586 | M116: 7030 | N116: 11672 | O116: 11 | P116: 119 | Q116: 647 | R116: 33 | S116: 2537 | U116: 1824 | V116: 0 | X116: 713 | Y116: -1 | Z116: 6 | AA116: -1 | AB116: 0 | AD116: 705 | AF116: 6633 | AI116: -5907 | AL116: 12060 | AN116: 20990 | AQ116: 2538 | AR116: 21.5 | AU116: 22652 | AV116: 39672 | AW116: 3 | AX116: 5788 | AY116: 702 | AZ116: 533 | BA116: 7023 | BB116: 12835 | BC116: 12 | BD116: 138 | BE116: 919 | BF116: 20 | BG116: 3574 | BI116: 1864 | BJ116: 0 | BL116: 1710 | BM116: -9 | BN116: 3 | BO116: -2 | BP116: -1 | BQ116: 1695 | BS116: 8303 | BY116: 13742 | CA116: 22270 | CF116: 21.5 | CT116: -135 | CU116: -3609 | CV116: 5 | CW116: 398 | CX116: -51
A117: 398 | B117: Lahti | C117: 119823 | D117: 20.75 | G117: 616971 | H117: 1177824 | I117: -9 | J117: 396744 | K117: 27427 | L117: 40968 | M117: 465139 | N117: 229519 | O117: 511 | P117: 20121 | Q117: 6814 | R117: 4003 | S117: 123508 | U117: 117359 | V117: -414 | X117: 5735 | Y117: -3 | Z117: 5493 | AA117: -2397 | AB117: -894 | AD117: -3052 | AF117: 176963 | AI117: -211482 | AL117: 78157 | AN117: 1192951 | AQ117: 119984 | AR117: 20.75 | AU117: 569747 | AV117: 1144103 | AW117: -763 | AX117: 434333 | AY117: 32227 | AZ117: 38059 | BA117: 504619 | BB117: 281981 | BC117: 415 | BD117: 19266 | BE117: 5559 | BF117: 4448 | BG117: 189342 | BI117: 123654 | BJ117: 18297 | BL117: 83985 | BM117: -138 | BN117: 1471 | BO117: -4688 | BP117: -126 | BQ117: 77562 | BS117: 249993 | BY117: 137405 | CA117: 1243522 | CF117: 20.75 | CT117: -4543 | CU117: -386831 | CV117: 1383 | CW117: 189832 | CX117: 2563
A118: 399 | B118: Laihia | C118: 8017 | D118: 21.75 | G118: 18570 | H118: 62208 | I118: 0 | J118: 26941 | K118: 1015 | L118: 1234 | M118: 29190 | N118: 15591 | O118: 1 | P118: 235 | Q118: 170 | R118: 58 | S118: 2485 | U118: 3188 | V118: 0 | X118: -703 | Y118: 0 | Z118: 0 | AA118: -58 | AB118: 26 | AD118: -735 | AF118: -2864 | AI118: -4518 | AL118: 4327 | AN118: 43163 | AQ118: 7996 | AR118: 21.75 | AU118: 19000 | AV118: 63756 | AW118: 0 | AX118: 28891 | AY118: 1046 | AZ118: 1354 | BA118: 31291 | BB118: 19273 | BC118: 4 | BD118: 211 | BE118: 136 | BF118: 50 | BG118: 5609 | BI118: 3533 | BJ118: 125 | BL118: 2201 | BM118: 0 | BN118: 38 | BO118: -13 | BP118: 23 | BQ118: 2173 | BS118: -841 | BY118: 3955 | CA118: 41379 | CF118: 21.75 | CT118: -207 | CU118: -3792 | CV118: 8 | CW118: 102 | CX118: -9
A119: 400 | B119: Laitila | C119: 8588 | D119: 20.75 | G119: 39072 | H119: 87243 | I119: -72 | J119: 24995 | K119: 1948 | L119: 2063 | M119: 29006 | N119: 20212 | O119: 6 | P119: 249 | Q119: 92 | R119: 127 | S119: 2037 | U119: 4917 | V119: 0 | X119: -2880 | Y119: 0 | Z119: 43 | AA119: 60 | AB119: -103 | AD119: -2966 | AF119: 5194 | AI119: -7243 | AL119: 5020 | AN119: 47681 | AQ119: 8468 | AR119: 20.75 | AU119: 38935 | AV119: 85921 | AW119: 26 | AX119: 27007 | AY119: 2097 | AZ119: 1881 | BA119: 30985 | BB119: 24030 | BC119: 8 | BD119: 260 | BE119: 152 | BF119: 111 | BG119: 7844 | BI119: 4980 | BJ119: 0 | BL119: 2864 | BM119: 0 | BN119: 46 | BO119: 15 | BP119: -114 | BQ119: 2719 | BS119: 8652 | BY119: 4995 | CA119: 46736 | CF119: 20.75 | CT119: -157 | CU119: -8044 | CV119: 53 | CW119: 391 | CX119: 10
A120: 407 | B120: Lapinjärvi | C120: 2606 | D120: 20.5 | G120: 10402 | H120: 26443 | I120: 2 | J120: 7362 | K120: 549 | L120: 545 | M120: 8456 | N120: 7302 | O120: 2 | P120: 117 | Q120: 861 | R120: 41 | S120: 788 | U120: 1502 | V120: 0 | X120: -714 | Y120: 0 | Z120: 0 | AA120: 0 | AB120: -3 | AD120: -717 | AF120: -2890 | AI120: -2168 | AL120: 1785 | AN120: 19582 | AQ120: 2621 | AR120: 21 | AU120: 10842 | AV120: 25768 | AW120: 0 | AX120: 7630 | AY120: 619 | AZ120: 532 | BA120: 8781 | BB120: 8679 | BC120: 4 | BD120: 110 | BE120: 976 | BF120: 44 | BG120: 3322 | BI120: 1556 | BJ120: 0 | BL120: 1766 | BM120: 0 | BN120: 0 | BO120: 0 | BP120: -1 | BQ120: 1765 | BS120: -1124 | BY120: 3570 | CA120: 18290 | CF120: 21 | CT120: 243 | CU120: -1022 | CV120: 26 | CW120: 767 | CX120: 0
A121: 402 | B121: Lapinlahti | C121: 9485 | D121: 21.25 | G121: 35638 | H121: 93365 | I121: 179 | J121: 25409 | K121: 1555 | L121: 2224 | M121: 29188 | N121: 32635 | O121: 23 | P121: 530 | Q121: 918 | R121: 28 | S121: 5542 | U121: 6125 | V121: 0 | X121: -583 | Y121: 1 | Z121: 42 | AA121: -36 | AB121: 22 | AD121: -638 | AF121: -891 | AI121: -7946 | AL121: 4284 | AN121: 56152 | AQ121: 9358 | AR121: 21.25 | AU121: 36319 | AV121: 95404 | AW121: 234 | AX121: 26879 | AY121: 1897 | AZ121: 2055 | BA121: 30831 | BB121: 36638 | BC121: 25 | BD121: 504 | BE121: 879 | BF121: 16 | BG121: 8883 | BI121: 6195 | BJ121: 1 | BL121: 2689 | BM121: 4 | BN121: -9 | BO121: -53 | BP121: 41 | BQ121: 2690 | BS121: 1793 | BY121: 7365 | CA121: 59939 | CF121: 21.25 | CT121: 105 | CU121: -11268 | CV121: 336 | CW121: 559 | CX121: -1
A122: 403 | B122: Lappajärvi | C122: 2996 | D122: 21.5 | G122: 13414 | H122: 34769 | I122: -33 | J122: 7532 | K122: 757 | L122: 1029 | M122: 9318 | N122: 12594 | O122: 4 | P122: 85 | Q122: 221 | R122: 27 | S122: 1012 | U122: 1759 | V122: 0 | X122: -747 | Y122: -3 | Z122: 0 | AA122: 8 | AB122: 19 | AD122: -723 | AF122: 1768 | AI122: -3654 | AL122: 2246 | AN122: 14995 | AQ122: 2925 | AR122: 21.5 | AU122: 13151 | AV122: 34164 | AW122: -37 | AX122: 8124 | AY122: 648 | AZ122: 703 | BA122: 9475 | BB122: 14052 | BC122: 13 | BD122: 108 | BE122: 104 | BF122: 16 | BG122: 2471 | BI122: 1846 | BJ122: 0 | BL122: 625 | BM122: 2 | BN122: 3 | BO122: 0 | BP122: -48 | BQ122: 576 | BS122: 2332 | BY122: 3624 | CA122: 20698 | CF122: 21.5 | CT122: -66 | CU122: -7073 | CV122: 302 | CW122: 15 | CX122: -160
A123: 405 | B123: Lappeenranta | C123: 72634 | D123: 21 | G123: 343788 | H123: 689707 | I123: 176 | J123: 243607 | K123: 22310 | L123: 24771 | M123: 290688 | N123: 124237 | O123: 126 | P123: 4647 | Q123: 640 | R123: 140 | S123: 67207 | U123: 58744 | V123: 3875 | X123: 12338 | Y123: 104 | Z123: 2211 | AA123: -2030 | AB123: -183 | AD123: 8018 | AF123: 97571 | AI123: -70845 | AL123: 59433 | AN123: 495935 | AQ123: 72662 | AR123: 21 | AU123: 353013 | AV123: 725125 | AW123: -479 | AX123: 255268 | AY123: 25511 | AZ123: 24418 | BA123: 305197 | BB123: 159800 | BC123: 112 | BD123: 4551 | BE123: 1515 | BF123: 2409 | BG123: 84363 | BI123: 63812 | BJ123: 501 | BL123: 21052 | BM123: 55 | BN123: 1279 | BO123: -2130 | BP123: -327 | BQ123: 17371 | BS123: 115567 | BY123: 72694 | CA123: 506919 | CF123: 21 | CT123: 1112 | CU123: -88331 | CV123: 1890 | CW123: 2277 | CX123: -113
A124: 408 | B124: Lapua | C124: 14278 | D124: 21.5 | G124: 48069 | H124: 126102 | I124: 14 | J124: 42420 | K124: 2343 | L124: 3014 | M124: 47777 | N124: 36810 | O124: 43 | P124: 1018 | Q124: 564 | R124: 67 | S124: 8185 | U124: 9580 | V124: 0 | X124: -1395 | Y124: 0 | Z124: -1 | AA124: -10 | AB124: 23 | AD124: -1381 | AF124: 14946 | AI124: -21185 | AL124: 12555 | AN124: 112469 | AQ124: 14221 | AR124: 21.5 | AU124: 49018 | AV124: 126866 | AW124: 27 | AX124: 45582 | AY124: 2323 | AZ124: 2774 | BA124: 50679 | BB124: 42767 | BC124: 106 | BD124: 1249 | BE124: 517 | BF124: 197 | BG124: 14802 | BI124: 10450 | BJ124: 0 | BL124: 4352 | BM124: 0 | BN124: 192 | BO124: 78 | BP124: -3 | BQ124: 4235 | BS124: 20341 | BY124: 11639 | CA124: 122668 | CF124: 21.5 | CT124: -392 | CU124: -24745 | CV124: 96 | CW124: 3710 | CX124: 0
A125: 410 | B125: Laukaa | C125: 18903 | D125: 21.5 | G125: 42665 | H125: 149102 | I125: 0 | J125: 58865 | K125: 2511 | L125: 4754 | M125: 66130 | N125: 45075 | O125: 31 | P125: 184 | Q125: 346 | R125: 38 | S125: 6373 | U125: 10269 | V125: 0 | X125: -3896 | Y125: -304 | Z125: 15 | AA125: -182 | AB125: 0 | AD125: -4397 | AF125: -7842 | AI125: -15390 | AL125: 11318 | AN125: 144610 | AQ125: 18823 | AR125: 21.5 | AU125: 42984 | AV125: 150822 | AW125: 0 | AX125: 63721 | AY125: 2857 | AZ125: 5178 | BA125: 71756 | BB125: 54173 | BC125: 26 | BD125: 346 | BE125: 310 | BF125: 64 | BG125: 18017 | BI125: 11840 | BJ125: 0 | BL125: 6177 | BM125: -198 | BN125: 0 | BO125: -96 | BP125: 0 | BQ125: 5883 | BS125: -1626 | BY125: 6188 | CA125: 147343 | CF125: 21.5 | CT125: -1424 | CU125: -28178 | CV125: 674 | CW125: 2123 | CX125: 782
A126: 416 | B126: Lemi | C126: 2971 | D126: 21 | G126: 14146 | H126: 30746 | I126: 2 | J126: 9046 | K126: 421 | L126: 816 | M126: 10283 | N126: 6728 | O126: 1 | P126: 138 | Q126: 27 | R126: 5 | S126: 275 | U126: 1049 | V126: 154 | X126: -620 | Y126: 2 | Z126: 0 | AA126: 0 | AB126: 0 | AD126: -618 | AF126: -2272 | AI126: -229 | AL126: 357 | AN126: 12869 | AQ126: 2964 | AR126: 22 | AU126: 14703 | AV126: 31402 | AW126: 4 | AX126: 9537 | AY126: 458 | AZ126: 843 | BA126: 10838 | BB126: 7920 | BC126: 1 | BD126: 132 | BE126: 22 | BF126: 71 | BG126: 1849 | BI126: 1017 | BJ126: 20 | BL126: 852 | BM126: -1 | BN126: 0 | BO126: -17 | BP126: 0 | BQ126: 834 | BS126: -1474 | BY126: 1064 | CA126: 11770 | CF126: 22 | CT126: -187 | CU126: -542 | CV126: 27 | CW126: 312 | CX126: 0
A127: 418 | B127: Lempäälä | C127: 23523 | D127: 20.5 | G127: 68504 | H127: 176656 | I127: -13 | J127: 82103 | K127: 4275 | L127: 5572 | M127: 91950 | N127: 24037 | O127: 21 | P127: 884 | Q127: 785 | R127: 45 | S127: 12743 | U127: 14761 | V127: 0 | X127: -2018 | Y127: 0 | Z127: 130 | AA127: -105 | AB127: -85 | AD127: -2338 | AF127: 13719 | AI127: -34378 | AL127: 6318 | AN127: 154399 | AQ127: 23828 | AR127: 20.5 | AU127: 69652 | AV127: 182711 | AW127: -11 | AX127: 92572 | AY127: 4756 | AZ127: 5192 | BA127: 102520 | BB127: 33940 | BC127: 34 | BD127: 904 | BE127: 1035 | BF127: 140 | BG127: 23404 | BI127: 15168 | BJ127: 0 | BL127: 8236 | BM127: 0 | BN127: 255 | BO127: -224 | BP127: -287 | BQ127: 7470 | BS127: 21609 | BY127: 17492 | CA127: 168413 | CF127: 20.5 | CT127: -2366 | CU127: -28009 | CV127: 1174 | CW127: 5140 | CX127: -10
A128: 420 | B128: Leppävirta | C128: 9454 | D128: 21 | G128: 35702 | H128: 92644 | I128: 59 | J128: 29588 | K128: 2598 | L128: 2499 | M128: 34685 | N128: 24657 | O128: 49 | P128: 359 | Q128: 802 | R128: 85 | S128: 2970 | U128: 6047 | V128: -426 | X128: -3503 | Y128: -148 | Z128: 11 | AA128: -5 | AB128: -27 | AD128: -3694 | AF128: -92 | AI128: -5306 | AL128: 6641 | AN128: 38177 | AQ128: 9402 | AR128: 21 | AU128: 36084 | AV128: 92760 | AW128: 83 | AX128: 30016 | AY128: 3144 | AZ128: 2340 | BA128: 35500 | BB128: 29177 | BC128: 48 | BD128: 349 | BE128: 719 | BF128: 42 | BG128: 8459 | BI128: 6949 | BJ128: 15 | BL128: 1525 | BM128: 164 | BN128: 7 | BO128: -5 | BP128: -12 | BQ128: 1665 | BS128: 1973 | BY128: 11327 | CA128: 38644 | CF128: 21 | CT128: -117 | CU128: -4717 | CV128: 14 | CW128: 259 | CX128: -3
A129: 421 | B129: Lestijärvi | C129: 719 | D129: 21 | G129: 8727 | H129: 14151 | I129: 27 | J129: 1763 | K129: 384 | L129: 273 | M129: 2420 | N129: 3107 | O129: 5 | P129: 33 | Q129: 6 | R129: 2 | S129: 67 | U129: 811 | V129: 0 | X129: -744 | Y129: -13 | Z129: 0 | AA129: 4 | AB129: -1 | AD129: -754 | AF129: 1278 | AI129: -660 | AL129: 1795 | AN129: 5084 | AQ129: 722 | AR129: 21 | AU129: 8882 | AV129: 14230 | AW129: 27 | AX129: 1853 | AY129: 443 | AZ129: 245 | BA129: 2541 | BB129: 3458 | BC129: 10 | BD129: 32 | BE129: 6 | BF129: 0 | BG129: 663 | BI129: 639 | BJ129: -1 | BL129: 23 | BM129: -8 | BN129: 0 | BO129: -2 | BP129: 0 | BQ129: 13 | BS129: 1290 | BY129: 1877 | CA129: 8905 | CF129: 21 | CT129: -27 | CU129: -4485 | CV129: 4 | CW129: 1 | CX129: 16
A130: 422 | B130: Lieksa | C130: 10884 | D130: 21 | G130: 72866 | H130: 141689 | I130: -3 | J130: 30785 | K130: 4483 | L130: 3277 | M130: 38545 | N130: 37236 | O130: 130 | P130: 438 | Q130: 599 | R130: 30 | S130: 7076 | U130: 6845 | V130: 0 | X130: 231 | Y130: -8 | Z130: 9 | AA130: 29 | AB130: -7 | AD130: 236 | AF130: 33019 | AI130: -10560 | AL130: 13535 | AN130: 37381 | AQ130: 10719 | AR130: 21 | AU130: 73599 | AV130: 141479 | AW130: -41 | AX130: 31798 | AY130: 4644 | AZ130: 2987 | BA130: 39429 | BB130: 41434 | BC130: 159 | BD130: 452 | BE130: 566 | BF130: 36 | BG130: 13031 | BI130: 7346 | BJ130: 0 | BL130: 5685 | BM130: 8 | BN130: 15 | BO130: 73 | BP130: 1 | BQ130: 5752 | BS130: 38897 | BY130: 14807 | CA130: 38453 | CF130: 21 | CT130: 21 | CU130: -12057 | CV130: 70 | CW130: 395 | CX130: -7
A131: 423 | B131: Lieto | C131: 19994 | D131: 19.5 | G131: 52462 | H131: 145349 | I131: 23 | J131: 67828 | K131: 3640 | L131: 3657 | M131: 75125 | N131: 21943 | O131: 13 | P131: 706 | Q131: 78 | R131: 8 | S131: 7893 | U131: 10154 | V131: 0 | X131: -2261 | Y131: 0 | Z131: 0 | AA131: -51 | AB131: 0 | AD131: -2312 | AF131: 3113 | AI131: -9799 | AL131: 10971 | AN131: 92790 | AQ131: 20146 | AR131: 19.5 | AU131: 51388 | AV131: 146427 | AW131: 29 | AX131: 74945 | AY131: 3879 | AZ131: 3894 | BA131: 82718 | BB131: 29886 | BC131: 9 | BD131: 568 | BE131: 71 | BF131: 25 | BG131: 17081 | BI131: 9821 | BJ131: 0 | BL131: 7260 | BM131: 0 | BN131: 0 | BO131: -31 | BP131: -7 | BQ131: 7222 | BS131: 10422 | BY131: 12167 | CA131: 92924 | CF131: 19.5 | CT131: -1922 | CU131: -16208 | CV131: 588 | CW131: 2348 | CX131: 0
A132: 425 | B132: Liminka | C132: 10191 | D132: 21.5 | G132: 25237 | H132: 77325 | I132: 2 | J132: 30159 | K132: 684 | L132: 1255 | M132: 32098 | N132: 24598 | O132: 28 | P132: 273 | Q132: 222 | R132: 7 | S132: 6225 | U132: 6912 | V132: 383 | X132: -304 | Y132: -2 | Z132: 8 | AA132: 0 | AB132: 13 | AD132: -301 | AF132: 30291 | AI132: -9438 | AL132: 9833 | AN132: 51178 | AQ132: 10238 | AR132: 21.5 | AU132: 21911 | AV132: 79332 | AW132: 4 | AX132: 33249 | AY132: 861 | AZ132: 1202 | BA132: 35312 | BB132: 31869 | BC132: 28 | BD132: 266 | BE132: 40 | BF132: 12 | BG132: 9506 | BI132: 6596 | BJ132: 0 | BL132: 2910 | BM132: 47 | BN132: -1 | BO132: -27 | BP132: 4 | BQ132: 2935 | BS132: 33221 | BY132: 6935 | CA132: 48175 | CF132: 21.5 | CT132: -292 | CU132: -11115 | CV132: 107 | CW132: 1323 | CX132: -328
A133: 426 | B133: Liperi | C133: 12084 | D133: 21.5 | G133: 60169 | H133: 125509 | I133: -37 | J133: 35753 | K133: 1338 | L133: 2397 | M133: 39488 | N133: 28499 | O133: 32 | P133: 395 | Q133: 379 | R133: 5 | S133: 3882 | U133: 4710 | V133: 0 | X133: -828 | Y133: -4 | Z133: 12 | AA133: -67 | AB133: 4 | AD133: -907 | AF133: 10762 | AI133: -5552 | AL133: 8744 | AN133: 50434 | AQ133: 11994 | AR133: 21.5 | AU133: 60670 | AV133: 127840 | AW133: -34 | AX133: 37662 | AY133: 1430 | AZ133: 2289 | BA133: 41381 | BB133: 32963 | BC133: 63 | BD133: 418 | BE133: 366 | BF133: 7 | BG133: 7144 | BI133: 5854 | BJ133: 0 | BL133: 1290 | BM133: 4 | BN133: 16 | BO133: -69 | BP133: 11 | BQ133: 1220 | BS133: 12185 | BY133: 12888 | CA133: 58782 | CF133: 21.5 | CT133: -195 | CU133: -11239 | CV133: 549 | CW133: 264 | CX133: -201
A134: 444 | B134: Lohja | C134: 45965 | D134: 20.5 | G134: 177542 | H134: 429891 | I134: 35 | J134: 168400 | K134: 6789 | L134: 13269 | M134: 188458 | N134: 79533 | O134: 119 | P134: 2458 | Q134: 1116 | R134: 660 | S134: 15424 | U134: 24283 | V134: 0 | X134: -8859 | Y134: -40 | Z134: 429 | AA134: -5 | AB134: -22 | AD134: -9355 | AF134: -3088 | AI134: -34203 | AL134: 18493 | AN134: 244962 | AQ134: 45886 | AR134: 20.5 | AU134: 212635 | AV134: 453818 | AW134: -94 | AX134: 177030 | AY134: 7709 | AZ134: 12516 | BA134: 197255 | BB134: 88923 | BC134: 250 | BD134: 2618 | BE134: 2083 | BF134: 793 | BG134: 43822 | BI134: 27688 | BJ134: 0 | BL134: 16134 | BM134: -565 | BN134: 367 | BO134: -2 | BP134: 43 | BQ134: 15243 | BS134: 14780 | BY134: 21064 | CA134: 280279 | CF134: 20.5 | CT134: -3672 | CU134: -62460 | CV134: 256 | CW134: 2647 | CX134: 399
A135: 430 | B135: Loimaa | C135: 15875 | D135: 21 | G135: 71318 | H135: 167845 | I135: 40 | J135: 45814 | K135: 3300 | L135: 4163 | M135: 53277 | N135: 48804 | O135: 5 | P135: 441 | Q135: 80 | R135: 18 | S135: 6326 | U135: 7766 | V135: -827 | X135: -2267 | Y135: 0 | Z135: 181 | AA135: -37 | AB135: -330 | AD135: -2815 | AF135: 3630 | AI135: -5898 | AL135: 12269 | AN135: 58054 | AQ135: 15770 | AR135: 21 | AU135: 70680 | AV135: 163126 | AW135: 50 | AX135: 48377 | AY135: 3724 | AZ135: 3814 | BA135: 55915 | BB135: 55323 | BC135: 4 | BD135: 399 | BE135: 153 | BF135: 23 | BG135: 18577 | BI135: 9066 | BJ135: -6 | BL135: 9505 | BM135: 0 | BN135: 199 | BO135: 55 | BP135: -340 | BQ135: 9021 | BS135: 12729 | BY135: 18833 | CA135: 53607 | CF135: 21 | CT135: -234 | CU135: -6522 | CV135: 122 | CW135: 522 | CX135: 825
A136: 433 | B136: Loppi | C136: 7828 | D136: 21.5 | G136: 24879 | H136: 65892 | I136: -59 | J136: 24605 | K136: 1482 | L136: 2025 | M136: 28112 | N136: 16123 | O136: 6 | P136: 362 | Q136: 43 | R136: 3 | S136: 3915 | U136: 3150 | V136: 0 | X136: 765 | Y136: 2 | Z136: 0 | AA136: 21 | AB136: -1 | AD136: 787 | AF136: 13755 | AI136: -2632 | AL136: 5319 | AN136: 29421 | AQ136: 7853 | AR136: 21.5 | AU136: 25991 | AV136: 66879 | AW136: -50 | AX136: 26358 | AY136: 1742 | AZ136: 1889 | BA136: 29989 | BB136: 18736 | BC136: 13 | BD136: 342 | BE136: 56 | BF136: 10 | BG136: 7478 | BI136: 5233 | BJ136: 0 | BL136: 2245 | BM136: 2 | BN136: 0 | BO136: -6 | BP136: -1 | BQ136: 2240 | BS136: 16077 | BY136: 8830 | CA136: 27336 | CF136: 21.5 | CT136: -164 | CU136: -2696 | CV136: 177 | CW136: 325 | CX136: 4
A137: 434 | B137: Loviisa | C137: 14772 | D137: 19.75 | G137: 55484 | H137: 140789 | I137: 4552 | J137: 45706 | K137: 6689 | L137: 7605 | M137: 60000 | N137: 24859 | O137: 9 | P137: 398 | Q137: 192 | R137: 139 | S137: 3062 | U137: 8703 | V137: -260 | X137: -5901 | Y137: -5 | Z137: 30 | AA137: -11 | AB137: -34 | AD137: -5981 | AF137: 9680 | AI137: -15472 | AL137: 12605 | AN137: 84874 | AQ137: 14745 | AR137: 20.25 | AU137: 56808 | AV137: 140161 | AW137: 3050 | AX137: 50192 | AY137: 3621 | AZ137: 7495 | BA137: 61308 | BB137: 33491 | BC137: 6 | BD137: 381 | BE137: 212 | BF137: 159 | BG137: 14174 | BI137: 8517 | BJ137: -191 | BL137: 5466 | BM137: -5 | BN137: 48 | BO137: 1 | BP137: -18 | BQ137: 5396 | BS137: 13257 | BY137: 27926 | CA137: 105539 | CF137: 20.25 | CT137: -3934 | CU137: -21048 | CV137: 356 | CW137: 4107 | CX137: -28
A138: 435 | B138: Luhanka | C138: 690 | D138: 18.5 | G138: 2553 | H138: 7929 | I138: 0 | J138: 1589 | K138: 284 | L138: 579 | M138: 2452 | N138: 2789 | O138: 11 | P138: 24 | Q138: 31 | R138: 2 | S138: 71 | U138: 361 | V138: -1111 | X138: -1401 | Y138: 0 | Z138: 0 | AA138: 0 | AB138: -2 | AD138: -1403 | AF138: 776 | AI138: -545 | AL138: 1247 | AN138: 3865 | AQ138: 699 | AR138: 18.5 | AU138: 2832 | AV138: 7478 | AW138: 0 | AX138: 1767 | AY138: 348 | AZ138: 535 | BA138: 2650 | BB138: 2954 | BC138: 0 | BD138: 25 | BE138: -6 | BF138: 3 | BG138: 921 | BI138: 349 | BJ138: 0 | BL138: 572 | BM138: 0 | BN138: -2 | BO138: 0 | BP138: 5 | BQ138: 579 | BS138: 1412 | BY138: 1619 | CA138: 4984 | CF138: 18.5 | CT138: -1066 | CU138: -480 | CV138: 0 | CW138: 63 | CX138: 0
A139: 436 | B139: Lumijoki | C139: 2020 | D139: 21 | G139: 4962 | H139: 16175 | I139: 36 | J139: 5255 | K139: 159 | L139: 290 | M139: 5704 | N139: 6737 | O139: 3 | P139: 58 | Q139: 12 | R139: 6 | S139: 1421 | U139: 1025 | V139: 0 | X139: 396 | Y139: -1 | Z139: 6 | AA139: -12 | AB139: 18 | AD139: 395 | AF139: 1542 | AI139: -1154 | AL139: 1729 | AN139: 9239 | AQ139: 2036 | AR139: 21 | AU139: 5179 | AV139: 16518 | AW139: 20 | AX139: 5412 | AY139: 172 | AZ139: 277 | BA139: 5861 | BB139: 7414 | BC139: 4 | BD139: 50 | BE139: 7 | BF139: 2 | BG139: 1904 | BI139: 1620 | BJ139: 0 | BL139: 284 | BM139: 8 | BN139: 9 | BO139: -14 | BP139: 8 | BQ139: 277 | BS139: 1818 | BY139: 1939 | CA139: 8860 | CF139: 21 | CT139: -89 | CU139: -1681 | CV139: 21 | CW139: 263 | CX139: -3
A140: 440 | B140: Luoto | C140: 5417 | D140: 19.5 | G140: 10002 | H140: 37482 | I140: 0 | J140: 13671 | K140: 352 | L140: 1032 | M140: 15055 | N140: 13142 | O140: 118 | P140: 38 | Q140: 329 | R140: 511 | S140: 1329 | U140: 2599 | V140: -2 | X140: -1272 | Y140: 65 | Z140: 13 | AA140: 0 | AB140: 0 | AD140: -1220 | AF140: 16225 | AI140: -2633 | AL140: 13033 | AN140: 43022 | AQ140: 5534 | AR140: 19.5 | AU140: 9982 | AV140: 37979 | AW140: 0 | AX140: 15436 | AY140: 410 | AZ140: 1165 | BA140: 17011 | BB140: 15527 | BC140: 108 | BD140: 38 | BE140: 206 | BF140: 579 | BG140: 4238 | BI140: 2501 | BJ140: 1 | BL140: 1738 | BM140: -87 | BN140: 0 | BO140: 0 | BP140: 0 | BQ140: 1651 | BS140: 17281 | BY140: 13746 | CA140: 45135 | CF140: 19.5 | CT140: 186 | CU140: -6699 | CV140: 482 | CW140: 236 | CX140: 29
A141: 441 | B141: Luumäki | C141: 4636 | D141: 20.5 | G141: 23878 | H141: 52358 | I141: -45 | J141: 12822 | K141: 1513 | L141: 1966 | M141: 16301 | N141: 12390 | O141: 32 | P141: 109 | Q141: 1350 | R141: 82 | S141: 1843 | U141: 3500 | V141: 262 | X141: -1395 | Y141: 7 | Z141: 0 | AA141: -13 | AB141: 31 | AD141: -1370 | AF141: 14473 | AI141: -3545 | AL141: 10399 | AN141: 19676 | AQ141: 4543 | AR141: 20.5 | AU141: 24814 | AV141: 54111 | AW141: -43 | AX141: 13712 | AY141: 2281 | AZ141: 1472 | BA141: 17465 | BB141: 14279 | BC141: 217 | BD141: 120 | BE141: 811 | BF141: 450 | BG141: 2862 | BI141: 3585 | BJ141: 34 | BL141: -689 | BM141: 4 | BN141: 12 | BO141: -13 | BP141: 31 | BQ141: -679 | BS141: 13406 | BY141: 13391 | CA141: 19770 | CF141: 20.5 | CT141: 169 | CU141: -941 | CV141: 74 | CW141: 45 | CX141: 0
A142: 475 | B142: Maalahti | C142: 5475 | D142: 21.5 | G142: 24533 | H142: 58923 | I142: -10 | J142: 16592 | K142: 1085 | L142: 1416 | M142: 19093 | N142: 16116 | O142: 5 | P142: 157 | Q142: 74 | R142: 28 | S142: 1726 | U142: 2978 | V142: 0 | X142: -1252 | Y142: 9 | Z142: 24 | AA142: 4 | AB142: -1 | AD142: -1264 | AF142: 4052 | AI142: -8035 | AL142: 1631 | AN142: 35858 | AQ142: 5451 | AR142: 21.5 | AU142: 24445 | AV142: 57548 | AW142: -15 | AX142: 17682 | AY142: 1147 | AZ142: 1331 | BA142: 20160 | BB142: 18013 | BC142: 9 | BD142: 156 | BE142: 105 | BF142: 27 | BG142: 4955 | BI142: 3195 | BJ142: 1812 | BL142: 3572 | BM142: 0 | BN142: 8 | BO142: -13 | BP142: -6 | BQ142: 3545 | BS142: 6715 | BY142: 4657 | CA142: 36923 | CF142: 21.5 | CT142: -1335 | CU142: -7884 | CV142: 1804 | CW142: 1859 | CX142: -8
A143: 480 | B143: Marttila | C143: 2013 | D143: 20.75 | G143: 6488 | H143: 16995 | I143: 0 | J143: 5592 | K143: 309 | L143: 342 | M143: 6243 | N143: 4534 | O143: 3 | P143: 35 | Q143: 5 | R143: 1 | S143: 670 | U143: 702 | V143: 0 | X143: -32 | Y143: 4 | Z143: 0 | AA143: 0 | AB143: 0 | AD143: -28 | AF143: 3481 | AI143: -618 | AL143: 2204 | AN143: 4084 | AQ143: 1999 | AR143: 20.75 | AU143: 6582 | AV143: 16897 | AW143: 0 | AX143: 6091 | AY143: 316 | AZ143: 347 | BA143: 6754 | BB143: 5035 | BC143: 3 | BD143: 34 | BE143: 5 | BF143: 0 | BG143: 1448 | BI143: 780 | BJ143: 0 | BL143: 668 | BM143: -243 | BN143: 0 | BO143: 0 | BP143: 0 | BQ143: 425 | BS143: 4165 | BY143: 2478 | CA143: 3508 | CF143: 20.75 | CT143: -59 | CU143: -943 | CV143: 13 | CW143: 81 | CX143: 0
A144: 481 | B144: Masku | C144: 9534 | D144: 20.75 | G144: 34500 | H144: 81265 | I144: 13 | J144: 36887 | K144: 1554 | L144: 1888 | M144: 40329 | N144: 8965 | O144: 6 | P144: 207 | Q144: 103 | R144: 12 | S144: 2418 | U144: 3977 | V144: 0 | X144: -1559 | Y144: 0 | Z144: 0 | AA144: 0 | AB144: 0 | AD144: -1559 | AF144: -1221 | AI144: -6224 | AL144: 6347 | AN144: 56308 | AQ144: 9543 | AR144: 20.75 | AU144: 35511 | AV144: 82042 | AW144: 16 | AX144: 39634 | AY144: 1815 | AZ144: 1792 | BA144: 43241 | BB144: 11741 | BC144: 52 | BD144: 202 | BE144: 118 | BF144: 15 | BG144: 8421 | BI144: 4855 | BJ144: 100 | BL144: 3666 | BM144: 0 | BN144: 36 | BO144: 2 | BP144: -4 | BQ144: 3628 | BS144: 2699 | BY144: 7471 | CA144: 50701 | CF144: 20.75 | CT144: -638 | CU144: -1252 | CV144: 239 | CW144: 883 | CX144: 740
A145: 483 | B145: Merijärvi | C145: 1089 | D145: 22 | G145: 4599 | H145: 12031 | I145: 51 | J145: 2126 | K145: 121 | L145: 332 | M145: 2579 | N145: 4484 | O145: 1 | P145: 23 | Q145: 99 | R145: 46 | S145: -117 | U145: 614 | V145: 0 | X145: -731 | Y145: 3 | Z145: 0 | AA145: 0 | AB145: 0 | AD145: -728 | AF145: 1763 | AI145: -513 | AL145: 3187 | AN145: 4762 | AQ145: 1078 | AR145: 22 | AU145: 4705 | AV145: 11282 | AW145: 12 | AX145: 2300 | AY145: 138 | AZ145: 298 | BA145: 2736 | BB145: 4682 | BC145: 1 | BD145: 15 | BE145: 101 | BF145: 40 | BG145: 900 | BI145: 570 | BJ145: 0 | BL145: 330 | BM145: 1 | BN145: 0 | BO145: 0 | BP145: 0 | BQ145: 331 | BS145: 1987 | BY145: 4076 | CA145: 5311 | CF145: 22 | CT145: -9 | CU145: -782 | CV145: 2 | CW145: 156 | CX145: -1
A146: 484 | B146: Merikarvia | C146: 3067 | D146: 20.5 | G146: 11415 | H146: 32354 | I146: 1 | J146: 7459 | K146: 817 | L146: 1010 | M146: 9286 | N146: 11582 | O146: 29 | P146: 15 | Q146: 91 | R146: 3 | S146: 758 | U146: 1698 | V146: 0 | X146: -940 | Y146: -90 | Z146: 1 | AA146: 0 | AB146: 1 | AD146: -1030 | AF146: 3606 | AI146: -2945 | AL146: 2250 | AN146: 4891 | AQ146: 3066 | AR146: 20.5 | AU146: 11104 | AV146: 32293 | AW146: -3 | AX146: 8160 | AY146: 2040 | AZ146: 1097 | BA146: 11297 | BB146: 12762 | BC146: 16 | BD146: 20 | BE146: 24 | BF146: 2 | BG146: 2885 | BI146: 1748 | BJ146: 0 | BL146: 1137 | BM146: -1 | BN146: 1 | BO146: -13 | BP146: 1 | BQ146: 1123 | BS146: 4333 | BY146: 3480 | CA146: 4554 | CF146: 20.5 | CT146: -108 | CU146: -1801 | CV146: 48 | CW146: 2794 | CX146: 9
A147: 489 | B147: Miehikkälä | C147: 1857 | D147: 20.5 | G147: 11533 | H147: 23844 | I147: -4 | J147: 4349 | K147: 777 | L147: 490 | M147: 5616 | N147: 7857 | O147: 16 | P147: 39 | Q147: 23 | R147: 3 | S147: 1421 | U147: 1251 | V147: 0 | X147: 170 | Y147: -5 | Z147: 0 | AA147: -13 | AB147: 0 | AD147: 152 | AF147: 5487 | AI147: -1125 | AL147: 3437 | AN147: 11278 | AQ147: 1868 | AR147: 20.5 | AU147: 12504 | AV147: 24370 | AW147: -4 | AX147: 4551 | AY147: 850 | AZ147: 442 | BA147: 5843 | BB147: 8222 | BC147: 10 | BD147: 38 | BE147: 23 | BF147: 4 | BG147: 2186 | BI147: 1584 | BJ147: 0 | BL147: 602 | BM147: 0 | BN147: 0 | BO147: 15 | BP147: 0 | BQ147: 617 | BS147: 6105 | BY147: 4259 | CA147: 10822 | CF147: 20.5 | CT147: -26 | CU147: -1244 | CV147: 0 | CW147: 28 | CX147: -3
A148: 491 | B148: Mikkeli | C148: 53134 | D148: 20.5 | G148: 277059 | H148: 579313 | I148: -552 | J148: 167523 | K148: 13164 | L148: 19147 | M148: 199834 | N148: 141236 | O148: 750 | P148: 4477 | Q148: 3713 | R148: 3191 | S148: 37349 | U148: 50093 | V148: 0 | X148: -12744 | Y148: 0 | Z148: 969 | AA148: -923 | AB148: 11 | AD148: -14625 | AF148: 20388 | AI148: -88306 | AL148: 28228 | AN148: 581069 | AQ148: 52583 | AR148: 22 | AU148: 265848 | AV148: 579665 | AW148: 295 | AX148: 186073 | AY148: 16974 | AZ148: 19763 | BA148: 222810 | BB148: 165382 | BC148: 595 | BD148: 5064 | BE148: 1647 | BF148: 3173 | BG148: 66300 | BI148: 55903 | BJ148: 0 | BL148: 10397 | BM148: 0 | BN148: 614 | BO148: 71 | BP148: -523 | BQ148: 9331 | BS148: 30249 | BY148: 24844 | CA148: 594556 | CF148: 22 | CT148: -726 | CU148: -95999 | CV148: 2999 | CW148: 2276 | CX148: 483
A149: 494 | B149: Muhos | C149: 8908 | D149: 21.5 | G149: 33022 | H149: 87574 | I149: 41 | J149: 25620 | K149: 782 | L149: 3680 | M149: 30082 | N149: 27687 | O149: 24 | P149: 388 | Q149: 24 | R149: 6 | S149: 3701 | U149: 5095 | V149: 0 | X149: -1394 | Y149: -6 | Z149: 2 | AA149: -2 | AB149: -1 | AD149: -1405 | AF149: 1609 | AI149: -12553 | AL149: 4828 | AN149: 55080 | AQ149: 8903 | AR149: 21 | AU149: 33937 | AV149: 88781 | AW149: 62 | AX149: 26334 | AY149: 816 | AZ149: 3548 | BA149: 30698 | BB149: 31869 | BC149: 25 | BD149: 361 | BE149: 20 | BF149: 12 | BG149: 7456 | BI149: 10149 | BJ149: 0 | BL149: -2693 | BM149: 33 | BN149: 6 | BO149: -8 | BP149: -16 | BQ149: -2690 | BS149: -969 | BY149: 6571 | CA149: 59878 | CF149: 21 | CT149: -70 | CU149: -10683 | CV149: 93 | CW149: 69 | CX149: -34
A150: 495 | B150: Multia | C150: 1566 | D150: 22 | G150: 5936 | H150: 18580 | I150: 0 | J150: 3890 | K150: 1086 | L150: 403 | M150: 5379 | N150: 5834 | O150: 4 | P150: 8 | Q150: 11 | R150: 4 | S150: -1160 | U150: 865 | V150: 0 | X150: -2025 | Y150: -1 | Z150: 0 | AA150: 0 | AB150: -23 | AD150: -2049 | AF150: -851 | AI150: -1117 | AL150: 2068 | AN150: 4275 | AQ150: 1558 | AR150: 22 | AU150: 7831 | AV150: 17969 | AW150: 0 | AX150: 4147 | AY150: 1301 | AZ150: 368 | BA150: 5816 | BB150: 6145 | BC150: 3 | BD150: 10 | BE150: 51 | BF150: 55 | BG150: 1812 | BI150: 843 | BJ150: 0 | BL150: 969 | BM150: 5 | BN150: 0 | BO150: 0 | BP150: -12 | BQ150: 962 | BS150: 64 | BY150: 2238 | CA150: 6038 | CF150: 22 | CT150: -2028 | CU150: -1304 | CV150: 1 | CW150: 137 | CX150: 0
A151: 498 | B151: Muonio | C151: 2308 | D151: 21.5 | G151: 8725 | H151: 26117 | I151: 0 | J151: 6997 | K151: 705 | L151: 948 | M151: 8650 | N151: 9166 | O151: 2 | P151: 50 | Q151: 14 | R151: 14 | S151: 582 | U151: 1405 | V151: 0 | X151: -823 | Y151: 59 | Z151: 0 | AA151: 0 | AB151: 0 | AD151: -764 | AF151: -102 | AI151: -1035 | AL151: 1575 | AN151: 9700 | AQ151: 2297 | AR151: 21.5 | AU151: 9220 | AV151: 26309 | AW151: 0 | AX151: 7985 | AY151: 1054 | AZ151: 894 | BA151: 9933 | BB151: 10220 | BC151: 2 | BD151: 41 | BE151: 11 | BF151: 11 | BG151: 3025 | BI151: 1411 | BJ151: -1 | BL151: 1613 | BM151: 53 | BN151: 0 | BO151: 4 | BP151: 0 | BQ151: 1670 | BS151: 1514 | BY151: 1879 | CA151: 8490 | CF151: 21.5 | CT151: -66 | CU151: -1706 | CV151: 65 | CW151: 22 | CX151: -15
A152: 499 | B152: Mustasaari | C152: 19448 | D152: 20.75 | G152: 60090 | H152: 161850 | I152: 236 | J152: 68348 | K152: 2430 | L152: 4579 | M152: 75357 | N152: 33143 | O152: 4 | P152: 579 | Q152: 268 | R152: 68 | S152: 8147 | U152: 10042 | V152: 0 | X152: -1895 | Y152: 19 | Z152: 11 | AA152: -3 | AB152: 33 | AD152: -1857 | AF152: 6583 | AI152: -25028 | AL152: 6757 | AN152: 113515 | AQ152: 19453 | AR152: 20.75 | AU152: 59934 | AV152: 163901 | AW152: -24 | AX152: 72079 | AY152: 2995 | AZ152: 4339 | BA152: 79413 | BB152: 42211 | BC152: 7 | BD152: 542 | BE152: 423 | BF152: 57 | BG152: 17421 | BI152: 11184 | BJ152: 1572 | BL152: 7809 | BM152: 0 | BN152: 8 | BO152: -23 | BP152: 31 | BQ152: 7809 | BS152: 14389 | BY152: 7177 | CA152: 111956 | CF152: 20.75 | CT152: -2012 | CU152: -21119 | CV152: 839 | CW152: 2108 | CX152: 8
A153: 500 | B153: Muurame | C153: 10164 | D153: 19.5 | G153: 24636 | H153: 73066 | I153: -69 | J153: 35053 | K153: 2139 | L153: 2212 | M153: 39404 | N153: 13387 | O153: 45 | P153: 299 | Q153: 172 | R153: 20 | S153: 4838 | U153: 5831 | V153: 0 | X153: -993 | Y153: 1 | Z153: 51 | AA153: -84 | AB153: 0 | AD153: -1127 | AF153: 3826 | AI153: -6824 | AL153: 2977 | AN153: 51482 | AQ153: 10267 | AR153: 19.5 | AU153: 24926 | AV153: 72962 | AW153: -42 | AX153: 38101 | AY153: 2023 | AZ153: 2136 | BA153: 42260 | BB153: 18196 | BC153: 50 | BD153: 254 | BE153: 132 | BF153: 19 | BG153: 12287 | BI153: 6225 | BJ153: 0 | BL153: 6062 | BM153: -4 | BN153: 122 | BO153: -43 | BP153: 3 | BQ153: 5896 | BS153: 9707 | BY153: 3650 | CA153: 47111 | CF153: 19.5 | CT153: -899 | CU153: -7974 | CV153: 88 | CW153: 1397 | CX153: 0
A154: 503 | B154: Mynämäki | C154: 7654 | D154: 21 | G154: 40317 | H154: 84556 | I154: 38 | J154: 24650 | K154: 1053 | L154: 1593 | M154: 27296 | N154: 15107 | O154: 1 | P154: 175 | Q154: 94 | R154: 18 | S154: -2170 | U154: 9141 | V154: 0 | X154: -11311 | Y154: 0 | Z154: 0 | AA154: 3 | AB154: -12 | AD154: -11320 | AF154: -11481 | AI154: -7888 | AL154: 4504 | AN154: 34954 | AQ154: 7645 | AR154: 21.25 | AU154: 40865 | AV154: 83788 | AW154: 10 | AX154: 25968 | AY154: 1103 | AZ154: 1598 | BA154: 28669 | BB154: 19900 | BC154: 54 | BD154: 189 | BE154: 88 | BF154: 32 | BG154: 5578 | BI154: 3355 | BJ154: 0 | BL154: 2223 | BM154: -30 | BN154: 0 | BO154: 3 | BP154: -131 | BQ154: 2065 | BS154: -6256 | BY154: 5830 | CA154: 41929 | CF154: 21.25 | CT154: -193 | CU154: -8961 | CV154: 43 | CW154: 291 | CX154: 0
A155: 504 | B155: Myrskylä | C155: 1882 | D155: 21.5 | G155: 8678 | H155: 19284 | I155: -5 | J155: 5582 | K155: 441 | L155: 394 | M155: 6417 | N155: 4691 | O155: 0 | P155: 28 | Q155: 297 | R155: 3 | S155: 943 | U155: 609 | V155: 0 | X155: 334 | Y155: 0 | Z155: 0 | AA155: 0 | AB155: -1 | AD155: 333 | AF155: 1919 | AI155: -930 | AL155: 1671 | AN155: 2152 | AQ155: 1871 | AR155: 21.5 | AU155: 8549 | AV155: 19197 | AW155: 9 | AX155: 5743 | AY155: 495 | AZ155: 363 | BA155: 6601 | BB155: 5343 | BC155: 5 | BD155: 22 | BE155: 328 | BF155: 3 | BG155: 1613 | BI155: 643 | BJ155: 9 | BL155: 979 | BM155: 0 | BN155: 0 | BO155: 0 | BP155: -1 | BQ155: 978 | BS155: 2897 | BY155: 1819 | CA155: 5735 | CF155: 21.5 | CT155: -45 | CU155: -6588 | CV155: 225 | CW155: 117 | CX155: 2
A156: 505 | B156: Mäntsälä | C156: 20721 | D156: 20.5 | G156: 142437 | H156: 249308 | I156: 10 | J156: 69917 | K156: 2753 | L156: 6954 | M156: 79624 | N156: 32517 | O156: 117 | P156: 1587 | Q156: 183 | R156: 368 | S156: 7451 | U156: 15081 | V156: 0 | X156: -7630 | Y156: 0 | Z156: 23 | AA156: 256 | AB156: 6 | AD156: -7391 | AF156: 23137 | AI156: -22084 | AL156: 17811 | AN156: 193528 | AQ156: 20783 | AR156: 20.5 | AU156: 135666 | AV156: 240472 | AW156: -2 | AX156: 77048 | AY156: 4349 | AZ156: 6503 | BA156: 87900 | BB156: 42200 | BC156: 223 | BD156: 1072 | BE156: 184 | BF156: 361 | BG156: 24108 | BI156: 21169 | BJ156: 0 | BL156: 2939 | BM156: 0 | BN156: 12 | BO156: 63 | BP156: 42 | BQ156: 3032 | BS156: 26305 | BY156: 27943 | CA156: 198454 | CF156: 20.5 | CT156: -1805 | CU156: -21994 | CV156: 762 | CW156: 2549 | CX156: -215
A157: 508 | B157: Mänttä-Vilppula | C157: 9855 | D157: 22 | G157: 64945 | H157: 130945 | I157: 28 | J157: 34122 | K157: 2046 | L157: 3145 | M157: 39313 | N157: 30354 | O157: 20 | P157: 762 | Q157: 1897 | R157: 177 | S157: 4861 | U157: 5928 | V157: 0 | X157: -1067 | Y157: 0 | Z157: 87 | AA157: 42 | AB157: -166 | AD157: -1278 | AF157: 2028 | AI157: -6566 | AL157: 20367 | AN157: 77848 | AQ157: 9673 | AR157: 22 | AU157: 64574 | AV157: 133393 | AW157: 91 | AX157: 34957 | AY157: 3911 | AZ157: 2848 | BA157: 41716 | BB157: 34465 | BC157: 21 | BD157: 833 | BE157: 480 | BF157: 101 | BG157: 7020 | BI157: 6573 | BJ157: 0 | BL157: 447 | BM157: 0 | BN157: 219 | BO157: 17 | BP157: -369 | BQ157: -124 | BS157: 1411 | BY157: 17436 | CA157: 71020 | CF157: 22 | CT157: 132 | CU157: -8656 | CV157: 129 | CW157: 60 | CX157: 89
A158: 507 | B158: Mäntyharju | C158: 5791 | D158: 19.75 | G158: 33170 | H158: 71517 | I158: 19 | J158: 15855 | K158: 2818 | L158: 2232 | M158: 20905 | N158: 17950 | O158: 7 | P158: 256 | Q158: 393 | R158: 13 | S158: 569 | U158: 3033 | V158: 0 | X158: -2464 | Y158: 3 | Z158: 0 | AA158: 0 | AB158: 0 | AD158: -2461 | AF158: 3682 | AI158: -6316 | AL158: 4984 | AN158: 30628 | AQ158: 5676 | AR158: 20.25 | AU158: 34796 | AV158: 71577 | AW158: 12 | AX158: 16696 | AY158: 2793 | AZ158: 2577 | BA158: 22066 | BB158: 20847 | BC158: 6 | BD158: 245 | BE158: 420 | BF158: 39 | BG158: 6216 | BI158: 3767 | BJ158: -271 | BL158: 2178 | BM158: 0 | BN158: 0 | BO158: 57 | BP158: -1 | BQ158: 2234 | BS158: 6917 | BY158: 4931 | CA158: 32169 | CF158: 20.25 | CT158: -60 | CU158: -7771 | CV158: 529 | CW158: 69 | CX158: -44
A159: 529 | B159: Naantali | C159: 19314 | D159: 19 | G159: 82771 | H159: 170132 | I159: 37 | J159: 74124 | K159: 8840 | L159: 6600 | M159: 89564 | N159: 15447 | O159: 144 | P159: 1015 | Q159: 1388 | R159: 25 | S159: 19393 | U159: 14391 | V159: 413 | X159: 5415 | Y159: 0 | Z159: 339 | AA159: -252 | AB159: 3 | AD159: 4827 | AF159: 62472 | AI159: -17011 | AL159: 9872 | AN159: 65443 | AQ159: 19427 | AR159: 19 | AU159: 80998 | AV159: 170965 | AW159: 47 | AX159: 78673 | AY159: 10309 | AZ159: 6219 | BA159: 95201 | BB159: 22927 | BC159: 214 | BD159: 1069 | BE159: 870 | BF159: 22 | BG159: 28201 | BI159: 14582 | BJ159: 0 | BL159: 13619 | BM159: 0 | BN159: 390 | BO159: -281 | BP159: -18 | BQ159: 12930 | BS159: 75434 | BY159: 19342 | CA159: 64847 | CF159: 19 | CT159: -1874 | CU159: -22156 | CV159: 187 | CW159: 2379 | CX159: -256
A160: 531 | B160: Nakkila | C160: 5329 | D160: 21.25 | G160: 21457 | H160: 52430 | I160: 0 | J160: 17362 | K160: 574 | L160: 1405 | M160: 19341 | N160: 13021 | O160: 2 | P160: 96 | Q160: 106 | R160: 8 | S160: 1482 | U160: 2337 | V160: 0 | X160: -855 | Y160: 0 | Z160: 19 | AA160: -11 | AB160: 5 | AD160: -880 | AF160: 2577 | AI160: -1741 | AL160: 5930 | AN160: 13091 | AQ160: 5256 | AR160: 21.25 | AU160: 21688 | AV160: 53123 | AW160: 0 | AX160: 17726 | AY160: 526 | AZ160: 1390 | BA160: 19642 | BB160: 15657 | BC160: 3 | BD160: 89 | BE160: 97 | BF160: 10 | BG160: 3865 | BI160: 2407 | BJ160: 52 | BL160: 1510 | BM160: 0 | BN160: 17 | BO160: -12 | BP160: 10 | BQ160: 1491 | BS160: 4477 | BY160: 6070 | CA160: 11505 | CF160: 21.25 | CT160: -141 | CU160: -1968 | CV160: 92 | CW160: 285 | CX160: 0
A161: 535 | B161: Nivala | C161: 10639 | D161: 22 | G161: 68936 | H161: 136051 | I161: -37 | J161: 27573 | K161: 1130 | L161: 2476 | M161: 31179 | N161: 41881 | O161: 191 | P161: 677 | Q161: 476 | R161: 656 | S161: 7899 | U161: 6682 | V161: 0 | X161: 1217 | Y161: -164 | Z161: 35 | AA161: 176 | AB161: 1 | AD161: 1195 | AF161: 17333 | AI161: -8291 | AL161: 31589 | AN161: 102674 | AQ161: 10500 | AR161: 22 | AU161: 70446 | AV161: 137959 | AW161: 111 | AX161: 30009 | AY161: 1504 | AZ161: 2291 | BA161: 33804 | BB161: 47277 | BC161: 213 | BD161: 678 | BE161: 591 | BF161: -35 | BG161: 13588 | BI161: 8047 | BJ161: 0 | BL161: 5541 | BM161: -21 | BN161: 98 | BO161: -296 | BP161: -3 | BQ161: 5123 | BS161: 22400 | BY161: 40640 | CA161: 116398 | CF161: 22 | CT161: -91 | CU161: -17389 | CV161: 12 | CW161: 116 | CX161: -346
A162: 536 | B162: Nokia | C162: 33929 | D162: 20.5 | G162: 99426 | H162: 260345 | I162: 86 | J162: 118109 | K162: 8837 | L162: 8942 | M162: 135888 | N162: 38787 | O162: 61 | P162: 1295 | Q162: 1250 | R162: 453 | S162: 15878 | U162: 20062 | V162: 0 | X162: -4184 | Y162: 0 | Z162: 242 | AA162: -79 | AB162: -166 | AD162: -4671 | AF162: 3049 | AI162: -27141 | AL162: 38337 | AN162: 149897 | AQ162: 34476 | AR162: 21 | AU162: 105618 | AV162: 270151 | AW162: 148 | AX162: 130209 | AY162: 9047 | AZ162: 8321 | BA162: 147577 | BB162: 52910 | BC162: 34 | BD162: 1431 | BE162: 1168 | BF162: 224 | BG162: 35406 | BI162: 19542 | BJ162: 0 | BL162: 15864 | BM162: 1 | BN162: 615 | BO162: -209 | BP162: -593 | BQ162: 14448 | BS162: 17497 | BY162: 53012 | CA162: 163236 | CF162: 21 | CT162: -3771 | CU162: -37921 | CV162: 0 | CW162: 3725 | CX162: -2
A163: 538 | B163: Nousiainen | C163: 4715 | D163: 21.5 | G163: 20854 | H163: 46797 | I163: 8 | J163: 16500 | K163: 428 | L163: 858 | M163: 17786 | N163: 8820 | O163: 4 | P163: 88 | Q163: 21 | R163: 71 | S163: 258 | U163: 1683 | V163: 0 | X163: -1425 | Y163: 0 | Z163: 0 | AA163: 0 | AB163: 0 | AD163: -1425 | AF163: -762 | AI163: -3223 | AL163: 1831 | AN163: 14286 | AQ163: 4693 | AR163: 21.5 | AU163: 21316 | AV163: 46552 | AW163: 10 | AX163: 17312 | AY163: 369 | AZ163: 788 | BA163: 18469 | BB163: 11820 | BC163: 28 | BD163: 76 | BE163: 24 | BF163: 74 | BG163: 4965 | BI163: 2084 | BJ163: 0 | BL163: 2881 | BM163: 0 | BN163: 0 | BO163: 1 | BP163: -2 | BQ163: 2880 | BS163: 2119 | BY163: 1863 | CA163: 17972 | CF163: 21.5 | CT163: -129 | CU163: -9378 | CV163: 396 | CW163: 152 | CX163: 0
A164: 541 | B164: Nurmes | C164: 7455 | D164: 20.5 | G164: 51923 | H164: 99689 | I164: -1 | J164: 19247 | K164: 2691 | L164: 1681 | M164: 23619 | N164: 29252 | O164: 68 | P164: 212 | Q164: 376 | R164: 8 | S164: 5733 | U164: 6374 | V164: 0 | X164: -641 | Y164: -40 | Z164: 59 | AA164: -4 | AB164: -16 | AD164: -760 | AF164: 24484 | AI164: -11449 | AL164: 8690 | AN164: 25373 | AQ164: 9501 | AR164: 20.5 | AU164: 68585 | AV164: 131649 | AW164: 0 | AX164: 24487 | AY164: 3458 | AZ164: 1913 | BA164: 29858 | BB164: 43339 | BC164: 125 | BD164: 298 | BE164: 512 | BF164: 19 | BG164: 10447 | BI164: 7252 | BJ164: 0 | BL164: 3195 | BM164: -30 | BN164: 94 | BO164: -1 | BP164: -5 | BQ164: 3065 | BS164: 30576 | BY164: 12594 | CA164: 32089 | CF164: 20.5 | CT164: 409 | CU164: -13088 | CV164: 157 | CW164: 4034 | CX164: -55
A165: 543 | B165: Nurmijärvi | C165: 42993 | D165: 19.5 | G165: 246360 | H165: 451875 | I165: 19 | J165: 166166 | K165: 7631 | L165: 9376 | M165: 183173 | N165: 35375 | O165: 58 | P165: 1429 | Q165: 909 | R165: 253 | S165: 18892 | U165: 28762 | V165: 0 | X165: -9870 | Y165: 0 | Z165: 1379 | AA165: -344 | AB165: 29 | AD165: -11564 | AF165: 73382 | AI165: -69118 | AL165: 53871 | AN165: 320846 | AQ165: 43663 | AR165: 19.75 | AU165: 252262 | AV165: 462371 | AW165: -5 | AX165: 180605 | AY165: 9254 | AZ165: 10772 | BA165: 200631 | BB165: 55124 | BC165: 48 | BD165: 1428 | BE165: 947 | BF165: 688 | BG165: 44520 | BI165: 32495 | BJ165: -178 | BL165: 11847 | BM165: 0 | BN165: 1214 | BO165: -259 | BP165: 39 | BQ165: 10413 | BS165: 84541 | BY165: 58048 | CA165: 323462 | CF165: 19.75 | CT165: -1619 | CU165: -68993 | CV165: 996 | CW165: 15360 | CX165: -92
A166: 545 | B166: Närpiö | C166: 9479 | D166: 21 | G166: 33095 | H166: 88304 | I166: 0 | J166: 24902 | K166: 2682 | L166: 3002 | M166: 30586 | N166: 30358 | O166: 426 | P166: 634 | Q166: 1222 | R166: 391 | S166: 7613 | U166: 5692 | V166: -3 | X166: 1918 | Y166: 0 | Z166: 104 | AA166: -36 | AB166: -6 | AD166: 1772 | AF166: 22183 | AI166: -17077 | AL166: 21864 | AN166: 58549 | AQ166: 9558 | AR166: 21 | AU166: 33415 | AV166: 89484 | AW166: 0 | AX166: 26814 | AY166: 2970 | AZ166: 3183 | BA166: 32967 | BB166: 34845 | BC166: 395 | BD166: 630 | BE166: 725 | BF166: 462 | BG166: 11771 | BI166: 6674 | BJ166: 160 | BL166: 5257 | BM166: 0 | BN166: 64 | BO166: -26 | BP166: -8 | BQ166: 5159 | BS166: 27312 | BY166: 23341 | CA166: 62660 | CF166: 21 | CT166: -303 | CU166: -16664 | CV166: 1672 | CW166: 81 | CX166: 18
A167: 560 | B167: Orimattila | C167: 16003 | D167: 20.75 | G167: 83233 | H167: 167837 | I167: 27 | J167: 48357 | K167: 2368 | L167: 4318 | M167: 55043 | N167: 36336 | O167: 14 | P167: 593 | Q167: 2034 | R167: 19 | S167: 8850 | U167: 9173 | V167: -149 | X167: -472 | Y167: 0 | Z167: 634 | AA167: 1 | AB167: -876 | AD167: -1981 | AF167: 14303 | AI167: -9230 | AL167: 11863 | AN167: 64550 | AQ167: 15882 | AR167: 20.75 | AU167: 79695 | AV167: 167752 | AW167: -8 | AX167: 53137 | AY167: 2686 | AZ167: 4120 | BA167: 59943 | BB167: 43463 | BC167: 10 | BD167: 533 | BE167: 2215 | BF167: 49 | BG167: 16761 | BI167: 10317 | BJ167: 0 | BL167: 6444 | BM167: 0 | BN167: 153 | BO167: -21 | BP167: 102 | BQ167: 6372 | BS167: 21385 | BY167: 21692 | CA167: 74284 | CF167: 20.75 | CT167: -317 | CU167: -19665 | CV167: 101 | CW167: 647 | CX167: -13
A168: 561 | B168: Oripää | C168: 1329 | D168: 21 | G168: 4372 | H168: 12854 | I168: 0 | J168: 3314 | K168: 356 | L168: 317 | M168: 3987 | N168: 4471 | O168: 1 | P168: 2 | Q168: -52 | R168: 1 | S168: 621 | U168: 606 | V168: 0 | X168: 15 | Y168: 15 | Z168: 0 | AA168: 0 | AB168: 0 | AD168: 30 | AF168: -111 | AI168: -285 | AL168: 235 | AN168: 5012 | AQ168: 1334 | AR168: 21 | AU168: 4447 | AV168: 12785 | AW168: 0 | AX168: 3949 | AY168: 519 | AZ168: 381 | BA168: 4849 | BB168: 4929 | BC168: 4 | BD168: 57 | BE168: 2 | BF168: 2 | BG168: 1387 | BI168: 587 | BJ168: 0 | BL168: 800 | BM168: 15 | BN168: 0 | BO168: 0 | BP168: 0 | BQ168: 815 | BS168: 690 | BY168: 393 | CA168: 4190 | CF168: 21 | CT168: -8 | CU168: -582 | CV168: 4 | CW168: 30 | CX168: 0
A169: 562 | B169: Orivesi | C169: 9158 | D169: 22 | G169: 31958 | H169: 85284 | I169: 184 | J169: 28106 | K169: 1892 | L169: 2969 | M169: 32967 | N169: 22208 | O169: 54 | P169: 358 | Q169: 277 | R169: 112 | S169: 2569 | U169: 4570 | V169: 0 | X169: -2001 | Y169: 0 | Z169: 39 | AA169: -35 | AB169: -65 | AD169: -2140 | AF169: 3890 | AI169: -5836 | AL169: 6328 | AN169: 37455 | AQ169: 9008 | AR169: 22 | AU169: 32849 | AV169: 88647 | AW169: 229 | AX169: 30497 | AY169: 2087 | AZ169: 2775 | BA169: 35359 | BB169: 27304 | BC169: 41 | BD169: 333 | BE169: 272 | BF169: 108 | BG169: 6880 | BI169: 4557 | BJ169: 0 | BL169: 2323 | BM169: 0 | BN169: 125 | BO169: -24 | BP169: -236 | BQ169: 1938 | BS169: 5800 | BY169: 9429 | CA169: 36768 | CF169: 22 | CT169: -129 | CU169: -4118 | CV169: 0 | CW169: 30 | CX169: 25
A170: 563 | B170: Oulainen | C170: 7288 | D170: 22 | G170: 30632 | H170: 78789 | I170: 4 | J170: 21172 | K170: 1128 | L170: 2031 | M170: 24331 | N170: 24000 | O170: 3 | P170: 155 | Q170: 1926 | R170: 226 | S170: 2893 | U170: 4233 | V170: 51 | X170: -1289 | Y170: -3 | Z170: 3 | AA170: -1 | AB170: -1 | AD170: -1297 | AF170: 5134 | AI170: -5750 | AL170: 21576 | AN170: 46165 | AQ170: 7155 | AR170: 22 | AU170: 32073 | AV170: 79535 | AW170: 6 | AX170: 22532 | AY170: 1767 | AZ170: 1932 | BA170: 26231 | BB170: 28343 | BC170: 1 | BD170: 43 | BE170: 577 | BF170: 497 | BG170: 7156 | BI170: 4378 | BJ170: 0 | BL170: 2778 | BM170: -22 | BN170: 12 | BO170: -4 | BP170: -2 | BQ170: 2738 | BS170: 7845 | BY170: 23131 | CA170: 50054 | CF170: 22 | CT170: -16 | CU170: -10277 | CV170: 148 | CW170: 124 | CX170: -16
A171: 564 | B171: Oulu | C171: 205489 | D171: 20 | G171: 873882 | H171: 1816904 | I171: 2389 | J171: 665006 | K171: 45173 | L171: 56717 | M171: 766896 | N171: 334591 | O171: 3839 | P171: 14434 | Q171: 10877 | R171: 873 | S171: 185986 | U171: 159878 | V171: 0 | X171: 26108 | Y171: -129 | Z171: 5471 | AA171: -3978 | AB171: -1484 | AD171: 15046 | AF171: 774975 | AI171: -339009 | AL171: 204575 | AN171: 967392 | AQ171: 207327 | AR171: 20 | AU171: 785003 | AV171: 1780733 | AW171: -4496 | AX171: 724511 | AY171: 45547 | AZ171: 54077 | BA171: 824135 | BB171: 411893 | BC171: 2802 | BD171: 20403 | BE171: 2596 | BF171: 7493 | BG171: 210010 | BI171: 171327 | BJ171: 0 | BL171: 38683 | BM171: 684 | BN171: 2459 | BO171: -3519 | BP171: -159 | BQ171: 33230 | BS171: 808022 | BY171: 272705 | CA171: 1229201 | CF171: 20 | CT171: -4364 | CU171: -383565 | CV171: 2651 | CW171: 20736 | CX171: -79
A172: 309 | B172: Outokumpu | C172: 6688 | D172: 21.75 | G172: 53435 | H172: 91937 | I172: 0 | J172: 18390 | K172: 1246 | L172: 1726 | M172: 21362 | N172: 22683 | O172: 160 | P172: 228 | Q172: 64 | R172: 7 | S172: 5299 | U172: 5609 | V172: 0 | X172: -310 | Y172: -3 | Z172: 345 | AA172: 91 | AB172: -7 | AD172: -574 | AF172: 5502 | AI172: -6493 | AL172: 6370 | AN172: 34627 | AQ172: 6552 | AR172: 21.75 | AU172: 52828 | AV172: 93370 | AW172: 0 | AX172: 19234 | AY172: 1433 | AZ172: 1543 | BA172: 22210 | BB172: 25204 | BC172: 173 | BD172: 834 | BE172: 41 | BF172: 16 | BG172: 6236 | BI172: 5125 | BJ172: 73181 | BL172: 74292 | BM172: -50268 | BN172: 5 | BO172: -5 | BP172: -11 | BQ172: 24003 | BS172: 29703 | BY172: 68077 | CA172: 32303 | CF172: 21.75 | CT172: -74387 | CU172: -24589 | CV172: 993 | CW172: 82625 | CX172: 22
A173: 576 | B173: Padasjoki | C173: 2896 | D173: 21 | G173: 21969 | H173: 41109 | I173: 7 | J173: 8126 | K173: 1172 | L173: 1466 | M173: 10764 | N173: 10317 | O173: 149 | P173: 105 | Q173: 132 | R173: 7 | S173: 1633 | U173: 2204 | V173: -31 | X173: -602 | Y173: 0 | Z173: 2 | AA173: 83 | AB173: 7 | AD173: -514 | AF173: 10455 | AI173: -2130 | AL173: 7086 | AN173: 11910 | AQ173: 2861 | AR173: 21 | AU173: 22273 | AV173: 40610 | AW173: 1 | AX173: 8096 | AY173: 1313 | AZ173: 1327 | BA173: 10736 | BB173: 11986 | BC173: 90 | BD173: 99 | BE173: 104 | BF173: 12 | BG173: 4436 | BI173: 2165 | BJ173: 0 | BL173: 2271 | BM173: 0 | BN173: 5 | BO173: 0 | BP173: -43 | BQ173: 2223 | BS173: 12721 | BY173: 10461 | CA173: 11866 | CF173: 21 | CT173: -145 | CU173: -2370 | CV173: 245 | CW173: 163 | CX173: -182
A174: 577 | B174: Paimio | C174: 10850 | D174: 20.75 | G174: 33603 | H174: 93472 | I174: 12 | J174: 37406 | K174: 1345 | L174: 2337 | M174: 41088 | N174: 19857 | O174: 21 | P174: 406 | Q174: 29 | R174: 0 | S174: 3139 | U174: 5151 | V174: 360 | X174: -1652 | Y174: 0 | Z174: 129 | AA174: -27 | AB174: 0 | AD174: -1808 | AF174: -2199 | AI174: -9430 | AL174: 13587 | AN174: 71432 | AQ174: 10922 | AR174: 20.75 | AU174: 34262 | AV174: 95944 | AW174: -43 | AX174: 40486 | AY174: 1342 | AZ174: 2179 | BA174: 44007 | BB174: 24999 | BC174: 22 | BD174: 358 | BE174: 93 | BF174: 52 | BG174: 6960 | BI174: 5652 | BJ174: 1 | BL174: 1309 | BM174: -6 | BN174: 98 | BO174: 200 | BP174: 0 | BQ174: 1405 | BS174: 226 | BY174: 10789 | CA174: 64719 | CF174: 20.75 | CT174: -266 | CU174: -4577 | CV174: 160 | CW174: 423 | CX174: -7
A175: 578 | B175: Paltamo | C175: 3273 | D175: 22 | G175: 25132 | H175: 48050 | I175: -3 | J175: 8812 | K175: 598 | L175: 1278 | M175: 10688 | N175: 12882 | O175: 2 | P175: 153 | Q175: 752 | R175: 121 | S175: 1687 | U175: 2024 | V175: 0 | X175: -337 | Y175: 193 | Z175: 0 | AA175: -36 | AB175: -9 | AD175: -189 | AF175: 138 | AI175: -4738 | AL175: 7524 | AN175: 27425 | AQ175: 3235 | AR175: 22 | AU175: 26366 | AV175: 50191 | AW175: 4 | AX175: 9417 | AY175: 699 | AZ175: 1186 | BA175: 11302 | BB175: 14292 | BC175: 3 | BD175: 269 | BE175: 274 | BF175: 148 | BG175: 1594 | BI175: 2369 | BJ175: 0 | BL175: -775 | BM175: 0 | BN175: 0 | BO175: -25 | BP175: -7 | BQ175: -807 | BS175: -664 | BY175: 8263 | CA175: 28521 | CF175: 22 | CT175: -59 | CU175: -2969 | CV175: 1 | CW175: 109 | CX175: 3
A176: 445 | B176: Parainen | C176: 15132 | D176: 19.75 | G176: 52148 | H176: 145158 | I176: 22 | J176: 54276 | K176: 2304 | L176: 9109 | M176: 65689 | N176: 28656 | O176: 3 | P176: 964 | Q176: 57 | R176: 18 | S176: 1793 | U176: 7243 | V176: 0 | X176: -5450 | Y176: 0 | Z176: 80 | AA176: 47 | AB176: 12 | AD176: -5471 | AF176: 8875 | AI176: -4580 | AL176: 5491 | AN176: 54669 | AQ176: 15105 | AR176: 20 | AU176: 52576 | AV176: 146825 | AW176: 30 | AX176: 57437 | AY176: 2600 | AZ176: 8673 | BA176: 68710 | BB176: 35202 | BC176: 4 | BD176: 959 | BE176: 99 | BF176: 26 | BG176: 8811 | BI176: 7130 | BJ176: -200 | BL176: 1481 | BM176: 0 | BN176: 89 | BO176: 49 | BP176: 4 | BQ176: 1445 | BS176: 10538 | BY176: 7001 | CA176: 51206 | CF176: 20 | CT176: -30 | CU176: -7026 | CV176: 469 | CW176: 644 | CX176: 97
A177: 580 | B177: Parikkala | C177: 4734 | D177: 19.5 | G177: 28034 | H177: 60061 | I177: 4 | J177: 12085 | K177: 1439 | L177: 1322 | M177: 14846 | N177: 17043 | O177: 1 | P177: 17 | Q177: 44 | R177: 5 | S177: 92 | U177: 1750 | V177: 0 | X177: -1658 | Y177: 5 | Z177: 0 | AA177: 0 | AB177: 1 | AD177: -1652 | AF177: 18614 | AI177: -2113 | AL177: 5637 | AN177: 4113 | AQ177: 4655 | AR177: 20.5 | AU177: 29285 | AV177: 63108 | AW177: 18 | AX177: 12889 | AY177: 1545 | AZ177: 1223 | BA177: 15657 | BB177: 19162 | BC177: 0 | BD177: 13 | BE177: 46 | BF177: 134 | BG177: 909 | BI177: 2382 | BJ177: 0 | BL177: -1473 | BM177: 0 | BN177: 0 | BO177: 0 | BP177: 0 | BQ177: -1473 | BS177: 17146 | BY177: 6396 | CA177: 4242 | CF177: 20.5 | CT177: -39 | CU177: -1628 | CV177: 94 | CW177: 122 | CX177: 0
A178: 581 | B178: Parkano | C178: 6404 | D178: 22 | G178: 38657 | H178: 78765 | I178: 33 | J178: 18261 | K178: 2013 | L178: 1902 | M178: 22176 | N178: 20783 | O178: 6 | P178: 314 | Q178: 245 | R178: 501 | S178: 3173 | U178: 3472 | V178: 0 | X178: -299 | Y178: 0 | Z178: 41 | AA178: -10 | AB178: -17 | AD178: -367 | AF178: 11754 | AI178: -5554 | AL178: 5479 | AN178: 32647 | AQ178: 6352 | AR178: 22 | AU178: 41215 | AV178: 80998 | AW178: -115 | AX178: 19782 | AY178: 2249 | AZ178: 1772 | BA178: 23803 | BB178: 21632 | BC178: 5 | BD178: 330 | BE178: 254 | BF178: 600 | BG178: 4822 | BI178: 3873 | BJ178: 0 | BL178: 949 | BM178: 0 | BN178: 96 | BO178: -10 | BP178: -298 | BQ178: 545 | BS178: 12284 | BY178: 7430 | CA178: 35225 | CF178: 22 | CT178: 65 | CU178: -7450 | CV178: 1680 | CW178: 687 | CX178: 23
A179: 599 | B179: Pedersören kunta | C179: 11081 | D179: 20.5 | G179: 28971 | H179: 90557 | I179: 45 | J179: 29339 | K179: 2665 | L179: 2202 | M179: 34206 | N179: 26537 | O179: 17 | P179: 145 | Q179: 166 | R179: 120 | S179: 344 | U179: 3859 | V179: 0 | X179: -3515 | Y179: -160 | Z179: 37 | AA179: -1 | AB179: -1 | AD179: -3714 | AF179: 10022 | AI179: -8299 | AL179: 5183 | AN179: 47672 | AQ179: 11174 | AR179: 21 | AU179: 28505 | AV179: 89060 | AW179: 38 | AX179: 32902 | AY179: 2925 | AZ179: 2170 | BA179: 37997 | BB179: 31119 | BC179: 228 | BD179: 199 | BE179: 176 | BF179: 103 | BG179: 8700 | BI179: 4205 | BJ179: 60 | BL179: 4555 | BM179: -193 | BN179: 16 | BO179: 3 | BP179: -1 | BQ179: 4348 | BS179: 13252 | BY179: 13024 | CA179: 50881 | CF179: 21 | CT179: -267 | CU179: -5773 | CV179: 31 | CW179: 164 | CX179: 115
A180: 583 | B180: Pelkosenniemi | C180: 939 | D180: 22.25 | G180: 5602 | H180: 15099 | I180: 77 | J180: 2688 | K180: 344 | L180: 1989 | M180: 5021 | N180: 4184 | O180: 28 | P180: 24 | Q180: 80 | R180: 5 | S180: -4 | U180: 492 | V180: 0 | X180: -496 | Y180: 0 | Z180: 0 | AA180: 4 | AB180: 11 | AD180: -481 | AF180: 2146 | AI180: -1043 | AL180: 1406 | AN180: 3787 | AQ180: 931 | AR180: 22.25 | AU180: 5791 | AV180: 14848 | AW180: 36 | AX180: 2923 | AY180: 407 | AZ180: 1812 | BA180: 5142 | BB180: 4857 | BC180: 25 | BD180: 26 | BE180: 29 | BF180: 6 | BG180: 966 | BI180: 502 | BJ180: -7 | BL180: 457 | BM180: 0 | BN180: 0 | BO180: -9 | BP180: 6 | BQ180: 454 | BS180: 2724 | BY180: 2781 | CA180: 6624 | CF180: 22.25 | CT180: -409 | CU180: -2053 | CV180: 39 | CW180: 26 | CX180: 83
A181: 854 | B181: Pello | C181: 3373 | D181: 21.25 | G181: 14529 | H181: 42286 | I181: 0 | J181: 9571 | K181: 765 | L181: 719 | M181: 11055 | N181: 16457 | O181: 1 | P181: 62 | Q181: 170 | R181: 52 | S181: -86 | U181: 2023 | V181: 0 | X181: -2109 | Y181: 9 | Z181: 14 | AA181: 0 | AB181: 4 | AD181: -2110 | AF181: 301 | AI181: -1182 | AL181: 2026 | AN181: 11371 | AQ181: 3304 | AR181: 21.25 | AU181: 14854 | AV181: 42355 | AW181: 0 | AX181: 9936 | AY181: 789 | AZ181: 810 | BA181: 11535 | BB181: 18907 | BC181: 7 | BD181: 57 | BE181: 200 | BF181: 15 | BG181: 3076 | BI181: 1948 | BJ181: -2 | BL181: 1126 | BM181: 6 | BN181: 29 | BO181: 0 | BP181: 4 | BQ181: 1107 | BS181: 1402 | BY181: 3102 | CA181: 11173 | CF181: 21.25 | CT181: -97 | CU181: -2201 | CV181: 110 | CW181: 4 | CX181: 37
A182: 584 | B182: Perho | C182: 2759 | D182: 21.5 | G182: 14522 | H182: 34732 | I182: 4 | J182: 6365 | K182: 613 | L182: 737 | M182: 7715 | N182: 13547 | O182: 307 | P182: 107 | Q182: 23 | R182: 151 | S182: 1234 | U182: 1932 | V182: 0 | X182: -698 | Y182: 459 | Z182: 1 | AA182: 0 | AB182: -3 | AD182: -243 | AF182: 4049 | AI182: -1676 | AL182: 7282 | AN182: 21037 | AQ182: 2706 | AR182: 21.5 | AU182: 14581 | AV182: 33757 | AW182: 3 | AX182: 6414 | AY182: 720 | AZ182: 753 | BA182: 7887 | BB182: 14411 | BC182: 579 | BD182: 114 | BE182: 25 | BF182: 255 | BG182: 3353 | BI182: 2409 | BJ182: 0 | BL182: 944 | BM182: 20 | BN182: 0 | BO182: 0 | BP182: -4 | BQ182: 960 | BS182: 5089 | BY182: 8130 | CA182: 21303 | CF182: 21.5 | CT182: -73 | CU182: -3243 | CV182: 62 | CW182: 380 | CX182: 11
A183: 588 | B183: Pertunmaa | C183: 1690 | D183: 21.5 | G183: 10762 | H183: 23014 | I183: 6 | J183: 3876 | K183: 795 | L183: 824 | M183: 5495 | N183: 6142 | O183: 7 | P183: 55 | Q183: 99 | R183: 1 | S183: -167 | U183: 926 | V183: -7 | X183: -1100 | Y183: 0 | Z183: 0 | AA183: -13 | AB183: 0 | AD183: -1113 | AF183: -1707 | AI183: -898 | AL183: 1316 | AN183: 10349 | AQ183: 1654 | AR183: 21.5 | AU183: 10910 | AV183: 23045 | AW183: 4 | AX183: 4418 | AY183: 984 | AZ183: 816 | BA183: 6218 | BB183: 6541 | BC183: 7 | BD183: 53 | BE183: 124 | BF183: 4 | BG183: 694 | BI183: 987 | BJ183: 0 | BL183: -293 | BM183: 0 | BN183: 0 | BO183: -22 | BP183: 0 | BQ183: -315 | BS183: -2022 | BY183: 1625 | CA183: 11022 | CF183: 21.5 | CT183: -28 | CU183: -687 | CV183: 0 | CW183: 37 | CX183: 0
A184: 592 | B184: Petäjävesi | C184: 3841 | D184: 21.75 | G184: 10854 | H184: 35893 | I184: 0 | J184: 10870 | K184: 1161 | L184: 942 | M184: 12973 | N184: 11170 | O184: 2 | P184: 113 | Q184: 223 | R184: 2008 | S184: -2401 | U184: 1656 | V184: 0 | X184: -4057 | Y184: 0 | Z184: 0 | AA184: 0 | AB184: 0 | AD184: -4057 | AF184: 4149 | AI184: -3354 | AL184: 7028 | AN184: 27167 | AQ184: 3772 | AR184: 21.75 | AU184: 10675 | AV184: 35677 | AW184: 0 | AX184: 11436 | AY184: 1362 | AZ184: 976 | BA184: 13774 | BB184: 13578 | BC184: 2 | BD184: 50 | BE184: 214 | BF184: 118 | BG184: 2397 | BI184: 1695 | BJ184: 0 | BL184: 702 | BM184: 0 | BN184: 0 | BO184: 0 | BP184: 0 | BQ184: 702 | BS184: 4588 | BY184: 7853 | CA184: 29523 | CF184: 21.75 | CT184: -1958 | CU184: -2726 | CV184: 15 | CW184: 198 | CX184: 0
A185: 593 | B185: Pieksämäki | C185: 17682 | D185: 22 | G185: 75104 | H185: 181670 | I185: -67 | J185: 56515 | K185: 4472 | L185: 4215 | M185: 65202 | N185: 47399 | O185: 92 | P185: 770 | Q185: 747 | R185: 14 | S185: 5960 | U185: 9232 | V185: 0 | X185: -3272 | Y185: 0 | Z185: 2 | AA185: -92 | AB185: -8 | AD185: -3374 | AF185: -2686 | AI185: -19548 | AL185: 9661 | AN185: 113801 | AQ185: 17375 | AR185: 22 | AU185: 76331 | AV185: 183076 | AW185: 450 | AX185: 58225 | AY185: 5211 | AZ185: 3961 | BA185: 67397 | BB185: 54001 | BC185: 139 | BD185: 751 | BE185: 743 | BF185: 26 | BG185: 14969 | BI185: 9799 | BJ185: 0 | BL185: 5170 | BM185: 0 | BN185: 46 | BO185: 277 | BP185: -103 | BQ185: 5298 | BS185: 2575 | BY185: 10607 | CA185: 117685 | CF185: 22 | CT185: -112 | CU185: -19900 | CV185: 439 | CW185: 2068 | CX185: 58
A186: 595 | B186: Pielavesi | C186: 4391 | D186: 21.75 | G186: 19594 | H186: 52617 | I186: 37 | J186: 10601 | K186: 1438 | L186: 1171 | M186: 13210 | N186: 21426 | O186: 45 | P186: 215 | Q186: 641 | R186: 99 | S186: 2561 | U186: 2682 | V186: 0 | X186: -121 | Y186: 4 | Z186: 8 | AA186: 36 | AB186: -17 | AD186: -106 | AF186: -1180 | AI186: -1940 | AL186: 6438 | AN186: 24744 | AQ186: 4321 | AR186: 21.75 | AU186: 20653 | AV186: 52440 | AW186: 52 | AX186: 10716 | AY186: 1820 | AZ186: 1077 | BA186: 13613 | BB186: 23913 | BC186: 6 | BD186: 201 | BE186: 505 | BF186: 2 | BG186: 6075 | BI186: 2638 | BJ186: -14 | BL186: 3423 | BM186: 3 | BN186: 5 | BO186: -27 | BP186: -8 | BQ186: 3386 | BS186: 2197 | BY186: 9424 | CA186: 24104 | CF186: 21.75 | CT186: 55 | CU186: -1888 | CV186: 81 | CW186: 116 | CX186: 25
A187: 598 | B187: Pietarsaari | C187: 19208 | D187: 21.25 | G187: 135795 | H187: 250767 | I187: -5113 | J187: 66249 | K187: 6167 | L187: 5932 | M187: 78348 | N187: 40432 | O187: 36 | P187: 155 | Q187: 219 | R187: 631 | S187: -188 | U187: 12046 | V187: 50 | X187: -12184 | Y187: 93 | Z187: 216 | AA187: 77 | AB187: -1 | AD187: -12231 | AF187: 83209 | AI187: -15175 | AL187: 6235 | AN187: 123577 | AQ187: 19066 | AR187: 21.25 | AU187: 132040 | AV187: 251867 | AW187: 4630 | AX187: 69956 | AY187: 6912 | AZ187: 5515 | BA187: 82383 | BB187: 48972 | BC187: 179 | BD187: 218 | BE187: 88 | BF187: 626 | BG187: 15581 | BI187: 11523 | BJ187: 166 | BL187: 4224 | BM187: -12 | BN187: 0 | BO187: -115 | BP187: 9 | BQ187: 4106 | BS187: 84811 | BY187: 7728 | CA187: 134143 | CF187: 21.25 | CT187: -5993 | CU187: -17091 | CV187: 670 | CW187: 794 | CX187: 142
A188: 601 | B188: Pihtipudas | C188: 4032 | D188: 21 | G188: 18250 | H188: 47638 | I188: 0 | J188: 9292 | K188: 1562 | L188: 938 | M188: 11792 | N188: 17804 | O188: 299 | P188: 136 | Q188: 84 | R188: 39 | S188: 896 | U188: 2600 | V188: 224 | X188: -1480 | Y188: 0 | Z188: 0 | AA188: 0 | AB188: 0 | AD188: -1480 | AF188: 11186 | AI188: -5230 | AL188: 13381 | AN188: 35195 | AQ188: 3931 | AR188: 21 | AU188: 18423 | AV188: 46889 | AW188: 0 | AX188: 9703 | AY188: 1868 | AZ188: 856 | BA188: 12427 | BB188: 19648 | BC188: 144 | BD188: 158 | BE188: 71 | BF188: 43 | BG188: 3600 | BI188: 2608 | BJ188: -4443 | BL188: -3451 | BM188: 267 | BN188: 0 | BO188: 0 | BP188: 0 | BQ188: -3184 | BS188: 7678 | BY188: 14721 | CA188: 41481 | CF188: 21 | CT188: -49 | CU188: -4760 | CV188: 25 | CW188: 278 | CX188: 500
A189: 604 | B189: Pirkkala | C189: 19623 | D189: 20 | G189: 53886 | H189: 149198 | I189: 20 | J189: 76869 | K189: 3814 | L189: 5384 | M189: 86067 | N189: 12551 | O189: 3 | P189: 358 | Q189: 558 | R189: 175 | S189: 7538 | U189: 9034 | V189: 0 | X189: -1496 | Y189: 0 | Z189: 27 | AA189: -4 | AB189: 50 | AD189: -1477 | AF189: 52592 | AI189: -11257 | AL189: 5983 | AN189: 60930 | AQ189: 19803 | AR189: 20.5 | AU189: 51351 | AV189: 153461 | AW189: 45 | AX189: 86590 | AY189: 4492 | AZ189: 5213 | BA189: 96295 | BB189: 21282 | BC189: 3 | BD189: 748 | BE189: 463 | BF189: 40 | BG189: 15190 | BI189: 12304 | BJ189: 0 | BL189: 2886 | BM189: 0 | BN189: 88 | BO189: -1 | BP189: -71 | BQ189: 2726 | BS189: 55316 | BY189: 10216 | CA189: 65584 | CF189: 20.5 | CT189: -4793 | CU189: -18473 | CV189: 20 | CW189: 4766 | CX189: 4
A190: 607 | B190: Polvijärvi | C190: 4246 | D190: 20.25 | G190: 32875 | H190: 57988 | I190: 0 | J190: 9223 | K190: 1125 | L190: 901 | M190: 11249 | N190: 14662 | O190: 19 | P190: 56 | Q190: 324 | R190: 7 | S190: 1489 | U190: 2335 | V190: 0 | X190: -846 | Y190: 1243 | Z190: 0 | AA190: -3 | AB190: -3 | AD190: 391 | AF190: 20371 | AI190: -3872 | AL190: 5351 | AN190: 4948 | AQ190: 4201 | AR190: 20.25 | AU190: 33298 | AV190: 58614 | AW190: 0 | AX190: 9554 | AY190: 1389 | AZ190: 827 | BA190: 11770 | BB190: 15923 | BC190: 38 | BD190: 68 | BE190: 246 | BF190: -41 | BG190: 2634 | BI190: 3052 | BJ190: 0 | BL190: -418 | BM190: 133 | BN190: 0 | BO190: 0 | BP190: 0 | BQ190: -285 | BS190: 20092 | BY190: 4529 | CA190: 6406 | CF190: 20.25 | CT190: 44 | CU190: -3287 | CV190: 20 | CW190: 87 | CX190: 0
A191: 608 | B191: Pomarkku | C191: 2089 | D191: 21.5 | G191: 11244 | H191: 25341 | I191: -10 | J191: 5032 | K191: 540 | L191: 531 | M191: 6103 | N191: 7834 | O191: 1 | P191: 23 | Q191: 18 | R191: 9 | S191: 771 | U191: 746 | V191: 0 | X191: 25 | Y191: 0 | Z191: 0 | AA191: 5 | AB191: -7 | AD191: 23 | AF191: 2850 | AI191: -937 | AL191: 1088 | AN191: 5377 | AQ191: 2063 | AR191: 21.5 | AU191: 11756 | AV191: 25292 | AW191: 0 | AX191: 5712 | AY191: 640 | AZ191: 512 | BA191: 6864 | BB191: 7740 | BC191: 1 | BD191: 29 | BE191: 14 | BF191: 9 | BG191: 1035 | BI191: 748 | BJ191: 0 | BL191: 287 | BM191: 0 | BN191: 1 | BO191: -5 | BP191: -1 | BQ191: 280 | BS191: 3075 | BY191: 1151 | CA191: 5235 | CF191: 21.5 | CT191: -65 | CU191: -462 | CV191: 6 | CW191: 79 | CX191: 3
A192: 609 | B192: Pori | C192: 83934 | D192: 20.25 | G192: 420987 | H192: 889279 | I192: 582 | J192: 265797 | K192: 16332 | L192: 24428 | M192: 306557 | N192: 216458 | O192: 684 | P192: 5796 | Q192: 2496 | R192: 60 | S192: 58335 | U192: 71876 | V192: 0 | X192: -13541 | Y192: 13 | Z192: 0 | AA192: -3169 | AB192: -2938 | AD192: -19635 | AF192: 33329 | AI192: -118085 | AL192: 34667 | AN192: 554262 | AQ192: 83684 | AR192: 20.25 | AU192: 388076 | AV192: 861717 | AW192: 147 | AX192: 282016 | AY192: 17516 | AZ192: 22582 | BA192: 322114 | BB192: 252813 | BC192: 525 | BD192: 4768 | BE192: 2508 | BF192: 219 | BG192: 97577 | BI192: 69813 | BJ192: 0 | BL192: 27764 | BM192: -60 | BN192: 0 | BO192: -3134 | BP192: -2307 | BQ192: 22263 | BS192: 55141 | BY192: 66204 | CA192: 568432 | CF192: 20.25 | CT192: -8341 | CU192: -108540 | CV192: 1587 | CW192: 21687 | CX192: -311
A193: 611 | B193: Pornainen | C193: 5035 | D193: 20.5 | G193: 27720 | H193: 52424 | I193: 2 | J193: 17786 | K193: 726 | L193: 1170 | M193: 19682 | N193: 6272 | O193: 48 | P193: 142 | Q193: 6 | R193: 44 | S193: 1441 | U193: 2072 | V193: 0 | X193: -631 | Y193: 1 | Z193: 1 | AA193: 0 | AB193: -2 | AD193: -633 | AF193: 10132 | AI193: -2341 | AL193: 6015 | AN193: 13849 | AQ193: 5070 | AR193: 20.5 | AU193: 28488 | AV193: 54412 | AW193: -5 | AX193: 19524 | AY193: 600 | AZ193: 1090 | BA193: 21214 | BB193: 8386 | BC193: 1 | BD193: 97 | BE193: 48 | BF193: 35 | BG193: 3588 | BI193: 2314 | BJ193: 0 | BL193: 1274 | BM193: 1 | BN193: 0 | BO193: 0 | BP193: 0 | BQ193: 1275 | BS193: 11410 | BY193: 7377 | CA193: 11579 | CF193: 20.5 | CT193: -229 | CU193: -2094 | CV193: 72 | CW193: 268 | CX193: 0
A194: 638 | B194: Porvoo | C194: 50380 | D194: 19.75 | G194: 280775 | H194: 521354 | I194: 743 | J194: 192402 | K194: 20364 | L194: 16386 | M194: 229152 | N194: 55627 | O194: 95 | P194: 2377 | Q194: 554 | R194: 555 | S194: 56461 | U194: 49387 | V194: 0 | X194: 7074 | Y194: 2326 | Z194: 25 | AA194: -39 | AB194: 91 | AD194: 9427 | AF194: 58578 | AI194: -65049 | AL194: 46149 | AN194: 371697 | AQ194: 50619 | AR194: 19.75 | AU194: 300144 | AV194: 531691 | AW194: 436 | AX194: 204259 | AY194: 37980 | AZ194: 15679 | BA194: 257918 | BB194: 76473 | BC194: 107 | BD194: 2587 | BE194: 677 | BF194: 673 | BG194: 100804 | BI194: 51147 | BJ194: -899 | BL194: 48758 | BM194: -16103 | BN194: 68 | BO194: 41 | BP194: -795 | BQ194: 31833 | BS194: 93294 | BY194: 98785 | CA194: 348224 | CF194: 19.75 | CT194: -13917 | CU194: -53956 | CV194: 644 | CW194: 31221 | CX194: 192
A195: 614 | B195: Posio | C195: 3183 | D195: 21.75 | G195: 19136 | H195: 43465 | I195: 0 | J195: 7511 | K195: 660 | L195: 1230 | M195: 9401 | N195: 16864 | O195: 1 | P195: 324 | Q195: 104 | R195: 67 | S195: 2226 | U195: 2404 | V195: 0 | X195: -178 | Y195: 2 | Z195: 0 | AA195: 0 | AB195: -1 | AD195: -177 | AF195: 2776 | AI195: -2179 | AL195: 8960 | AN195: 16353 | AQ195: 3117 | AR195: 21.75 | AU195: 18898 | AV195: 44276 | AW195: 0 | AX195: 8303 | AY195: 766 | AZ195: 1145 | BA195: 10214 | BB195: 18030 | BC195: 0 | BD195: 275 | BE195: 156 | BF195: 52 | BG195: 2696 | BI195: 1949 | BJ195: -1 | BL195: 746 | BM195: 0 | BN195: 0 | BO195: 1 | BP195: -1 | BQ195: 746 | BS195: 3562 | BY195: 8545 | CA195: 16536 | CF195: 21.75 | CT195: -109 | CU195: -3712 | CV195: 207 | CW195: 9 | CX195: 0
A196: 615 | B196: Pudasjärvi | C196: 7873 | D196: 20.5 | G196: 63789 | H196: 120896 | I196: 4 | J196: 17561 | K196: 2619 | L196: 2066 | M196: 22246 | N196: 36443 | O196: 317 | P196: 546 | Q196: 941 | R196: 295 | S196: 2663 | U196: 6358 | V196: 0 | X196: -3695 | Y196: 453 | Z196: 40 | AA196: -2 | AB196: -1 | AD196: -3285 | AF196: 5164 | AI196: -15817 | AL196: 18949 | AN196: 61524 | AQ196: 7779 | AR196: 20.5 | AU196: 66557 | AV196: 123221 | AW196: -50 | AX196: 18230 | AY196: 2935 | AZ196: 2088 | BA196: 23253 | BB196: 40466 | BC196: 48 | BD196: 518 | BE196: 1061 | BF196: 801 | BG196: 6795 | BI196: 6389 | BJ196: 0 | BL196: 406 | BM196: 285 | BN196: 0 | BO196: 0 | BP196: -32 | BQ196: 659 | BS196: 5011 | BY196: 21925 | CA196: 75236 | CF196: 20.5 | CT196: -882 | CU196: -17223 | CV196: 448 | CW196: 600 | CX196: 3
A197: 616 | B197: Pukkila | C197: 1860 | D197: 21.5 | G197: 10427 | H197: 21316 | I197: 4 | J197: 5803 | K197: 291 | L197: 407 | M197: 6501 | N197: 3423 | O197: 32 | P197: 56 | Q197: 156 | R197: 3 | S197: -572 | U197: 519 | V197: 0 | X197: -1091 | Y197: 0 | Z197: 0 | AA197: 0 | AB197: -1 | AD197: -1092 | AF197: 1200 | AI197: -322 | AL197: 1365 | AN197: 6079 | AQ197: 1833 | AR197: 21.5 | AU197: 10350 | AV197: 21041 | AW197: 1 | AX197: 6303 | AY197: 298 | AZ197: 396 | BA197: 6997 | BB197: 4363 | BC197: 33 | BD197: 46 | BE197: 167 | BF197: 3 | BG197: 821 | BI197: 527 | BJ197: 13 | BL197: 307 | BM197: 0 | BN197: 0 | BO197: 0 | BP197: -1 | BQ197: 306 | BS197: 1504 | BY197: 1791 | CA197: 6427 | CF197: 21.5 | CT197: -34 | CU197: -732 | CV197: 118 | CW197: 87 | CX197: 2
A198: 619 | B198: Punkalaidun | C198: 2828 | D198: 22 | G198: 11037 | H198: 28752 | I198: 8 | J198: 7721 | K198: 482 | L198: 674 | M198: 8877 | N198: 9921 | O198: 0 | P198: 78 | Q198: 7 | R198: 1 | S198: 1086 | U198: 1500 | V198: 0 | X198: -414 | Y198: 0 | Z198: 0 | AA198: 0 | AB198: 0 | AD198: -414 | AF198: 3867 | AI198: -6568 | AL198: 1912 | AN198: 10826 | AQ198: 2785 | AR198: 22 | AU198: 11215 | AV198: 29002 | AW198: 9 | AX198: 8020 | AY198: 539 | AZ198: 608 | BA198: 9167 | BB198: 11325 | BC198: 0 | BD198: 84 | BE198: 6 | BF198: 1 | BG198: 2636 | BI198: 1957 | BJ198: 0 | BL198: 679 | BM198: 0 | BN198: 0 | BO198: 1 | BP198: -1 | BQ198: 679 | BS198: 4538 | BY198: 3381 | CA198: 10908 | CF198: 22 | CT198: -24 | CU198: -1292 | CV198: 23 | CW198: 62 | CX198: -19
A199: 620 | B199: Puolanka | C199: 2528 | D199: 21.5 | G199: 20975 | H199: 41992 | I199: 0 | J199: 6079 | K199: 1233 | L199: 796 | M199: 8108 | N199: 14183 | O199: 2 | P199: 85 | Q199: 25 | R199: 47 | S199: 1530 | U199: 1598 | V199: 0 | X199: -68 | Y199: 5 | Z199: 0 | AA199: -18 | AB199: -7 | AD199: -88 | AF199: 2091 | AI199: -3112 | AL199: 3098 | AN199: 14200 | AQ199: 2491 | AR199: 21.5 | AU199: 22119 | AV199: 42211 | AW199: 0 | AX199: 6392 | AY199: 1325 | AZ199: 740 | BA199: 8457 | BB199: 15082 | BC199: 3 | BD199: 94 | BE199: 18 | BF199: 125 | BG199: 3249 | BI199: 1865 | BJ199: 0 | BL199: 1384 | BM199: 0 | BN199: 0 | BO199: -5 | BP199: -5 | BQ199: 1374 | BS199: 3006 | BY199: 4000 | CA199: 14545 | CF199: 21.5 | CT199: -69 | CU199: -2612 | CV199: 221 | CW199: 17 | CX199: -11
A200: 623 | B200: Puumala | C200: 2151 | D200: 20 | G200: 14580 | H200: 29698 | I200: 8 | J200: 5888 | K200: 1428 | L200: 1720 | M200: 9036 | N200: 8126 | O200: 6 | P200: 44 | Q200: 105 | R200: 4 | S200: 2445 | U200: 1245 | V200: 0 | X200: 1200 | Y200: -506 | Z200: 0 | AA200: 0 | AB200: 5 | AD200: 699 | AF200: 7503 | AI200: -1481 | AL200: 6578 | AN200: 5388 | AQ200: 2137 | AR200: 19.5 | AU200: 14780 | AV200: 29996 | AW200: 5 | AX200: 5816 | AY200: 1764 | AZ200: 1609 | BA200: 9189 | BB200: 8892 | BC200: 7 | BD200: 37 | BE200: 102 | BF200: 10 | BG200: 2933 | BI200: 1122 | BJ200: 0 | BL200: 1811 | BM200: -27 | BN200: 0 | BO200: 0 | BP200: 2 | BQ200: 1786 | BS200: 9306 | BY200: 7540 | CA200: 4988 | CF200: 19.5 | CT200: -18 | CU200: -1764 | CV200: 99 | CW200: 20 | CX200: 0
... 96 more rows

Sheet väestöennuste
A1: Väestöennuste 2019 kunnittain 2021-2029
A2: TK, Syyskuu 2019
A3: 2021 kuntajako | B3: 3 | C3: 4 | D3: 5 | E3: 6 | F3: 7 | G3: 8 | H3: 9 | I3: 10 | J3: 11 | K3: 12 | L3: 13 | M3: 14
B5: 2019 | C5: 2020 | D5: 2021 | E5: 2022 | F5: 2023 | G5: 2024 | H5: 2025 | I5: 2026 | J5: 2027 | K5: 2028 | L5: 2029 | M5: 2030
A7: Akaa | B7: =pohjatiedot!AQ3 -> 16391 | C7: 16353 | D7: 16229 | E7: 16108 | F7: 15984 | G7: 15861 | H7: 15743 | I7: 15630 | J7: 15523 | K7: 15419 | L7: 15317 | M7: =L7 -> 15317
A8: Alajärvi | B8: =pohjatiedot!AQ4 -> 9419 | C8: 9472 | D8: 9363 | E8: 9256 | F8: 9153 | G8: 9052 | H8: 8952 | I8: 8854 | J8: 8757 | K8: 8659 | L8: 8565 | M8: =L8 -> 8565
A9: Alavieska | B9: =pohjatiedot!AQ5 -> 2517 | C9: 2496 | D9: 2461 | E9: 2428 | F9: 2396 | G9: 2366 | H9: 2338 | I9: 2309 | J9: 2283 | K9: 2257 | L9: 2231 | M9: 2231
A10: Alavus | B10: =pohjatiedot!AQ6 -> 11332 | C10: 11253 | D10: 11118 | E10: 10988 | F10: 10861 | G10: 10736 | H10: 10608 | I10: 10486 | J10: 10365 | K10: 10250 | L10: 10136 | M10: 10136
A11: Asikkala | B11: =pohjatiedot!AQ7 -> 8059 | C11: 8032 | D11: 7980 | E11: 7929 | F11: 7874 | G11: 7819 | H11: 7761 | I11: 7707 | J11: 7653 | K11: 7600 | L11: 7548 | M11: 7548
A12: Askola | B12: =pohjatiedot!AQ8 -> 4878 | C12: 4947 | D12: 4938 | E12: 4924 | F12: 4912 | G12: 4900 | H12: 4889 | I12: 4877 | J12: 4864 | K12: 4846 | L12: 4827 | M12: 4827
A13: Aura | B13: =pohjatiedot!AQ9 -> 3959 | C13: 3973 | D13: 3968 | E13: 3963 | F13: 3959 | G13: 3951 | H13: 3946 | I13: 3940 | J13: 3935 | K13: 3932 | L13: 3925 | M13: 3925
A14: Enonkoski | B14: =pohjatiedot!AQ10 -> 1369 | C14: 1369 | D14: 1352 | E14: 1333 | F14: 1316 | G14: 1300 | H14: 1283 | I14: 1269 | J14: 1254 | K14: 1239 | L14: 1224 | M14: 1224
A15: Enontekiö | B15: =pohjatiedot!AQ11 -> 1808 | C15: 1849 | D15: 1850 | E15: 1850 | F15: 1852 | G15: 1854 | H15: 1855 | I15: 1856 | J15: 1855 | K15: 1853 | L15: 1848 | M15: 1848
A16: Espoo | B16: =pohjatiedot!AQ12 -> 292796 | C16: 292052 | D16: 296067 | E16: 299943 | F16: 303678 | G16: 307254 | H16: 310666 | I16: 313918 | J16: 317005 | K16: 319936 | L16: 322710 | M16: 322710
A17: Eura | B17: =pohjatiedot!AQ13 -> 11483 | C17: 11504 | D17: 11386 | E17: 11267 | F17: 11148 | G17: 11033 | H17: 10918 | I17: 10809 | J17: 10705 | K17: 10602 | L17: 10499 | M17: 10499
A18: Eurajoki | B18: =pohjatiedot!AQ14 -> 9452 | C18: 9505 | D18: 9522 | E18: 9534 | F18: 9539 | G18: 9540 | H18: 9532 | I18: 9516 | J18: 9493 | K18: 9467 | L18: 9439 | M18: 9439
A19: Evijärvi | B19: =pohjatiedot!AQ15 -> 2408 | C19: 2385 | D19: 2342 | E19: 2300 | F19: 2260 | G19: 2223 | H19: 2187 | I19: 2153 | J19: 2118 | K19: 2082 | L19: 2050 | M19: 2050
A20: Forssa | B20: =pohjatiedot!AQ16 -> 16800 | C20: 16759 | D20: 16629 | E20: 16505 | F20: 16384 | G20: 16265 | H20: 16149 | I20: 16036 | J20: 15923 | K20: 15811 | L20: 15703 | M20: 15703
A21: Haapajärvi | B21: =pohjatiedot!AQ17 -> 6896 | C21: 6937 | D21: 6834 | E21: 6734 | F21: 6637 | G21: 6542 | H21: 6449 | I21: 6360 | J21: 6275 | K21: 6192 | L21: 6111 | M21: 6111
A22: Haapavesi | B22: =pohjatiedot!AQ18 -> 6667 | C22: 6691 | D22: 6606 | E22: 6523 | F22: 6438 | G22: 6358 | H22: 6278 | I22: 6203 | J22: 6132 | K22: 6064 | L22: 5997 | M22: 5997
A23: Hailuoto | B23: =pohjatiedot!AQ19 -> 949 | C23: 974 | D23: 976 | E23: 976 | F23: 978 | G23: 979 | H23: 977 | I23: 976 | J23: 974 | K23: 971 | L23: 967 | M23: 967
A24: Halsua | B24: =pohjatiedot!AQ20 -> 1103 | C24: 1125 | D24: 1107 | E24: 1095 | F24: 1082 | G24: 1069 | H24: 1059 | I24: 1049 | J24: 1037 | K24: 1026 | L24: 1018 | M24: 1018
A25: Hamina | B25: =pohjatiedot!AQ21 -> 19877 | C25: 19907 | D25: 19719 | E25: 19537 | F25: 19357 | G25: 19178 | H25: 19004 | I25: 18831 | J25: 18659 | K25: 18485 | L25: 18312 | M25: 18312
A26: Hankasalmi | B26: =pohjatiedot!AQ22 -> 4782 | C26: 4760 | D26: 4680 | E26: 4602 | F26: 4528 | G26: 4457 | H26: 4391 | I26: 4323 | J26: 4256 | K26: 4193 | L26: 4128 | M26: 4128
A27: Hanko | B27: =pohjatiedot!AQ23 -> 8042 | C27: 8056 | D27: 7909 | E27: 7773 | F27: 7643 | G27: 7517 | H27: 7399 | I27: 7286 | J27: 7177 | K27: 7069 | L27: 6964 | M27: 6964
A28: Harjavalta | B28: =pohjatiedot!AQ24 -> 6869 | C28: 6881 | D28: 6812 | E28: 6741 | F28: 6669 | G28: 6600 | H28: 6533 | I28: 6469 | J28: 6407 | K28: 6349 | L28: 6288 | M28: 6288
A29: Hartola | B29: =pohjatiedot!AQ25 -> 2655 | C29: 2658 | D29: 2602 | E29: 2552 | F29: 2504 | G29: 2462 | H29: 2420 | I29: 2383 | J29: 2348 | K29: 2315 | L29: 2285 | M29: 2285
A30: Hattula | B30: =pohjatiedot!AQ26 -> 9389 | C30: 9369 | D30: 9316 | E30: 9263 | F30: 9209 | G30: 9152 | H30: 9095 | I30: 9037 | J30: 8978 | K30: 8919 | L30: 8859 | M30: 8859
A31: Hausjärvi | B31: =pohjatiedot!AQ27 -> 8175 | C31: 8248 | D31: 8166 | E31: 8088 | F31: 8014 | G31: 7938 | H31: 7866 | I31: 7794 | J31: 7728 | K31: 7662 | L31: 7598 | M31: 7598
A32: Heinola | B32: =pohjatiedot!AQ28 -> 18497 | C32: 18423 | D32: 18220 | E32: 18025 | F32: 17839 | G32: 17663 | H32: 17495 | I32: 17334 | J32: 17182 | K32: 17033 | L32: 16888 | M32: 16888
A33: Heinävesi | B33: =pohjatiedot!AQ29 -> 3196 | C33: 3198 | D33: 3135 | E33: 3073 | F33: 3015 | G33: 2963 | H33: 2912 | I33: 2866 | J33: 2820 | K33: 2775 | L33: 2734 | M33: 2734
A34: Helsinki | B34: =pohjatiedot!AQ30 -> 656920 | C34: 662389 | D34: 669339 | E34: 676117 | F34: 682725 | G34: 689164 | H34: 695419 | I34: 701482 | J34: 707342 | K34: 712998 | L34: 718451 | M34: 718451
A35: Hirvensalmi | B35: =pohjatiedot!AQ31 -> 2156 | C35: 2068 | D35: 2029 | E35: 1997 | F35: 1966 | G35: 1937 | H35: 1908 | I35: 1883 | J35: 1859 | K35: 1834 | L35: 1812 | M35: 1812
A36: Hollola | B36: =pohjatiedot!AQ32 -> 23251 | C36: 23388 | D36: 23261 | E36: 23121 | F36: 22972 | G36: 22815 | H36: 22656 | I36: 22498 | J36: 22342 | K36: 22189 | L36: 22036 | M36: 22036
A37: Huittinen | B37: =pohjatiedot!AQ33 -> 9937 | C37: 9898 | D37: 9808 | E37: 9721 | F37: 9639 | G37: 9559 | H37: 9482 | I37: 9404 | J37: 9329 | K37: 9259 | L37: 9188 | M37: 9188
A38: Humppila | B38: =pohjatiedot!AQ34 -> 2174 | C38: 2143 | D38: 2104 | E38: 2066 | F38: 2030 | G38: 1997 | H38: 1965 | I38: 1933 | J38: 1905 | K38: 1877 | L38: 1851 | M38: 1851
A39: Hyrynsalmi | B39: =pohjatiedot!AQ35 -> 2199 | C39: 2177 | D39: 2126 | E39: 2078 | F39: 2036 | G39: 1995 | H39: 1955 | I39: 1919 | J39: 1883 | K39: 1850 | L39: 1819 | M39: 1819
A40: Hyvinkää | B40: =pohjatiedot!AQ36 -> 46576 | C40: 46414 | D40: 46379 | E40: 46350 | F40: 46326 | G40: 46304 | H40: 46281 | I40: 46255 | J40: 46227 | K40: 46199 | L40: 46167 | M40: 46167
A41: Hämeenkyrö | B41: =pohjatiedot!AQ37 -> 10344 | C41: 10421 | D41: 10376 | E41: 10328 | F41: 10286 | G41: 10246 | H41: 10210 | I41: 10174 | J41: 10144 | K41: 10110 | L41: 10077 | M41: 10077
A42: Hämeenlinna | B42: =pohjatiedot!AQ38 -> 67848 | C42: 67210 | D42: 67066 | E42: 66922 | F42: 66779 | G42: 66631 | H42: 66478 | I42: 66320 | J42: 66150 | K42: 65976 | L42: 65796 | M42: 65796
A43: Ii | B43: =pohjatiedot!AQ39 -> 9848 | C43: 9768 | D43: 9711 | E43: 9649 | F43: 9580 | G43: 9508 | H43: 9434 | I43: 9358 | J43: 9282 | K43: 9207 | L43: 9136 | M43: 9136
A44: Iisalmi | B44: =pohjatiedot!AQ40 -> 21124 | C44: 21103 | D44: 20923 | E44: 20752 | F44: 20585 | G44: 20418 | H44: 20254 | I44: 20093 | J44: 19932 | K44: 19771 | L44: 19607 | M44: 19607
A45: Iitti | B45: =pohjatiedot!AQ41 -> 6625 | C45: 6658 | D45: 6611 | E45: 6565 | F45: 6518 | G45: 6474 | H45: 6426 | I45: 6383 | J45: 6338 | K45: 6295 | L45: 6252 | M45: 6252
A46: Ikaalinen | B46: =pohjatiedot!AQ42 -> 6866 | C46: 6853 | D46: 6786 | E46: 6726 | F46: 6668 | G46: 6613 | H46: 6560 | I46: 6510 | J46: 6461 | K46: 6416 | L46: 6367 | M46: 6367
A47: Ilmajoki | B47: =pohjatiedot!AQ43 -> 12294 | C47: 12227 | D47: 12233 | E47: 12235 | F47: 12235 | G47: 12231 | H47: 12225 | I47: 12214 | J47: 12198 | K47: 12179 | L47: 12162 | M47: 12162
A48: Ilomantsi | B48: =pohjatiedot!AQ44 -> 4749 | C48: 4729 | D48: 4614 | E48: 4506 | F48: 4404 | G48: 4306 | H48: 4215 | I48: 4124 | J48: 4041 | K48: 3960 | L48: 3882 | M48: 3882
A49: Imatra | B49: =pohjatiedot!AQ45 -> 26075 | C49: 26329 | D49: 26042 | E49: 25761 | F49: 25484 | G49: 25207 | H49: 24938 | I49: 24671 | J49: 24413 | K49: 24167 | L49: 23922 | M49: 23922
A50: Inari | B50: =pohjatiedot!AQ46 -> 6862 | C50: 6988 | D50: 7018 | E50: 7047 | F50: 7075 | G50: 7099 | H50: 7121 | I50: 7141 | J50: 7159 | K50: 7173 | L50: 7185 | M50: 7185
A51: Inkoo | B51: =pohjatiedot!AQ47 -> 5321 | C51: 5332 | D51: 5301 | E51: 5271 | F51: 5243 | G51: 5215 | H51: 5188 | I51: 5161 | J51: 5137 | K51: 5112 | L51: 5088 | M51: 5088
A52: Isojoki | B52: =pohjatiedot!AQ48 -> 1925 | C52: 1880 | D52: 1837 | E52: 1796 | F52: 1760 | G52: 1726 | H52: 1695 | I52: 1666 | J52: 1639 | K52: 1615 | L52: 1590 | M52: 1590
A53: Isokyrö | B53: =pohjatiedot!AQ49 -> 4471 | C53: 4487 | D53: 4430 | E53: 4375 | F53: 4325 | G53: 4273 | H53: 4220 | I53: 4172 | J53: 4123 | K53: 4075 | L53: 4030 | M53: 4030
A54: Janakkala | B54: =pohjatiedot!AQ50 -> 16237 | C54: 16272 | D54: 16184 | E54: 16100 | F54: 16018 | G54: 15935 | H54: 15853 | I54: 15769 | J54: 15683 | K54: 15595 | L54: 15511 | M54: 15511
A55: Joensuu | B55: =pohjatiedot!AQ51 -> 76935 | C55: 77152 | D55: 77406 | E55: 77637 | F55: 77856 | G55: 78066 | H55: 78265 | I55: 78457 | J55: 78636 | K55: 78805 | L55: 78959 | M55: 78959
A56: Jokioinen | B56: =pohjatiedot!AQ52 -> 5061 | C56: 5045 | D56: 4969 | E56: 4896 | F56: 4824 | G56: 4759 | H56: 4697 | I56: 4639 | J56: 4584 | K56: 4533 | L56: 4484 | M56: 4484
A57: Joroinen | B57: =pohjatiedot!AQ53 -> 4689 | C57: 4671 | D57: 4597 | E57: 4526 | F57: 4456 | G57: 4389 | H57: 4325 | I57: 4262 | J57: 4204 | K57: 4145 | L57: 4088 | M57: 4088
A58: Joutsa | B58: =pohjatiedot!AQ54 -> 4297 | C58: 4313 | D58: 4244 | E58: 4176 | F58: 4109 | G58: 4048 | H58: 3987 | I58: 3927 | J58: 3872 | K58: 3818 | L58: 3765 | M58: 3765
A59: Juuka | B59: =pohjatiedot!AQ55 -> 4527 | C59: 4514 | D59: 4420 | E59: 4331 | F59: 4242 | G59: 4157 | H59: 4075 | I59: 3996 | J59: 3922 | K59: 3852 | L59: 3786 | M59: 3786
A60: Juupajoki | B60: =pohjatiedot!AQ56 -> 1800 | C60: 1825 | D60: 1799 | E60: 1773 | F60: 1750 | G60: 1726 | H60: 1703 | I60: 1682 | J60: 1663 | K60: 1644 | L60: 1629 | M60: 1629
A61: Juva | B61: =pohjatiedot!AQ57 -> 5932 | C61: 6034 | D61: 5943 | E61: 5861 | F61: 5779 | G61: 5701 | H61: 5624 | I61: 5549 | J61: 5476 | K61: 5406 | L61: 5339 | M61: 5339
A62: Jyväskylä | B62: =pohjatiedot!AQ58 -> 143420 | C62: 143423 | D62: 144392 | E62: 145313 | F62: 146204 | G62: 147060 | H62: 147882 | I62: 148658 | J62: 149396 | K62: 150093 | L62: 150752 | M62: 150752
A63: Jämijärvi | B63: =pohjatiedot!AQ59 -> 1707 | C63: 1746 | D63: 1720 | E63: 1697 | F63: 1673 | G63: 1652 | H63: 1632 | I63: 1614 | J63: 1594 | K63: 1577 | L63: 1559 | M63: 1559
A64: Jämsä | B64: =pohjatiedot!AQ60 -> 19887 | C64: 19947 | D64: 19640 | E64: 19351 | F64: 19074 | G64: 18810 | H64: 18557 | I64: 18311 | J64: 18074 | K64: 17842 | L64: 17614 | M64: 17614
A65: Järvenpää | B65: =pohjatiedot!AQ61 -> 44455 | C65: 44418 | D65: 44909 | E65: 45395 | F65: 45864 | G65: 46313 | H65: 46749 | I65: 47167 | J65: 47563 | K65: 47937 | L65: 48289 | M65: 48289
A66: Kaarina | B66: =pohjatiedot!AQ62 -> 34667 | C66: 34004 | D66: 34269 | E66: 34517 | F66: 34747 | G66: 34963 | H66: 35156 | I66: 35335 | J66: 35492 | K66: 35636 | L66: 35760 | M66: 35760
A67: Kaavi | B67: =pohjatiedot!AQ63 -> 2807 | C67: 2873 | D67: 2817 | E67: 2766 | F67: 2715 | G67: 2668 | H67: 2624 | I67: 2582 | J67: 2545 | K67: 2506 | L67: 2471 | M67: 2471
A68: Kajaani | B68: =pohjatiedot!AQ64 -> 36567 | C68: 36481 | D68: 36256 | E68: 36038 | F68: 35823 | G68: 35614 | H68: 35404 | I68: 35191 | J68: 34981 | K68: 34769 | L68: 34562 | M68: 34562
A69: Kalajoki | B69: =pohjatiedot!AQ65 -> 12400 | C69: 12239 | D69: 12161 | E69: 12083 | F69: 12004 | G69: 11924 | H69: 11844 | I69: 11763 | J69: 11684 | K69: 11605 | L69: 11527 | M69: 11527
A70: Kangasala | B70: =pohjatiedot!AQ66 -> 32214 | C70: 32119 | D70: 32321 | E70: 32504 | F70: 32666 | G70: 32812 | H70: 32944 | I70: 33065 | J70: 33173 | K70: 33270 | L70: 33360 | M70: 33360
A71: Kangasniemi | B71: =pohjatiedot!AQ67 -> 5312 | C71: 5300 | D71: 5232 | E71: 5168 | F71: 5106 | G71: 5044 | H71: 4984 | I71: 4926 | J71: 4869 | K71: 4814 | L71: 4761 | M71: 4761
A72: Kankaanpää | B72: =pohjatiedot!AQ68 -> 11163 | C72: 11241 | D72: 11138 | E72: 11046 | F72: 10954 | G72: 10865 | H72: 10778 | I72: 10694 | J72: 10616 | K72: 10539 | L72: 10465 | M72: =L72 -> 10465
A73: Kannonkoski | B73: =pohjatiedot!AQ69 -> 1323 | C73: 1305 | D73: 1285 | E73: 1264 | F73: 1243 | G73: 1223 | H73: 1206 | I73: 1188 | J73: 1173 | K73: 1157 | L73: 1143 | M73: 1143
A74: Kannus | B74: =pohjatiedot!AQ70 -> 5426 | C74: 5402 | D74: 5355 | E74: 5310 | F74: 5268 | G74: 5226 | H74: 5186 | I74: 5148 | J74: 5117 | K74: 5082 | L74: 5049 | M74: 5049
A75: Karijoki | B75: =pohjatiedot!AQ71 -> 1207 | C75: 1199 | D75: 1167 | E75: 1138 | F75: 1110 | G75: 1083 | H75: 1060 | I75: 1037 | J75: 1016 | K75: 999 | L75: 980 | M75: 980
A76: Karkkila | B76: =pohjatiedot!AQ72 -> 8696 | C76: 8639 | D76: 8579 | E76: 8523 | F76: 8469 | G76: 8423 | H76: 8378 | I76: 8336 | J76: 8295 | K76: 8258 | L76: 8224 | M76: 8224
A77: Karstula | B77: =pohjatiedot!AQ73 -> 3858 | C77: 3901 | D77: 3837 | E77: 3773 | F77: 3712 | G77: 3652 | H77: 3597 | I77: 3543 | J77: 3492 | K77: 3443 | L77: 3396 | M77: 3396
A78: Karvia | B78: =pohjatiedot!AQ74 -> 2322 | C78: 2339 | D78: 2317 | E78: 2295 | F78: 2273 | G78: 2253 | H78: 2236 | I78: 2217 | J78: 2203 | K78: 2188 | L78: 2176 | M78: 2176
A79: Kaskinen | B79: =pohjatiedot!AQ75 -> 1278 | C79: 1232 | D79: 1221 | E79: 1209 | F79: 1200 | G79: 1192 | H79: 1184 | I79: 1176 | J79: 1168 | K79: 1161 | L79: 1153 | M79: 1153
A80: Kauhajoki | B80: =pohjatiedot!AQ76 -> 13007 | C80: 13049 | D80: 12896 | E80: 12748 | F80: 12605 | G80: 12466 | H80: 12337 | I80: 12213 | J80: 12087 | K80: 11959 | L80: 11828 | M80: 11828
A81: Kauhava | B81: =pohjatiedot!AQ77 -> 15514 | C81: 15581 | D81: 15377 | E81: 15177 | F81: 14978 | G81: 14788 | H81: 14602 | I81: 14420 | J81: 14247 | K81: 14075 | L81: 13907 | M81: 13907
A82: Kauniainen | B82: =pohjatiedot!AQ78 -> 10178 | C82: 9781 | D82: 9858 | E82: 9936 | F82: 10012 | G82: 10090 | H82: 10166 | I82: 10239 | J82: 10309 | K82: 10382 | L82: 10454 | M82: 10454
A83: Kaustinen | B83: =pohjatiedot!AQ79 -> 4228 | C83: 4247 | D83: 4237 | E83: 4222 | F83: 4208 | G83: 4192 | H83: 4177 | I83: 4158 | J83: 4141 | K83: 4124 | L83: 4104 | M83: 4104
A84: Keitele | B84: =pohjatiedot!AQ80 -> 2155 | C84: 2177 | D84: 2148 | E84: 2118 | F84: 2093 | G84: 2067 | H84: 2040 | I84: 2017 | J84: 1995 | K84: 1971 | L84: 1949 | M84: 1949
A85: Kemi | B85: =pohjatiedot!AQ81 -> 20437 | C85: 20505 | D85: 20272 | E85: 20058 | F85: 19851 | G85: 19653 | H85: 19458 | I85: 19269 | J85: 19082 | K85: 18903 | L85: 18730 | M85: 18730
A86: Kemijärvi | B86: =pohjatiedot!AQ82 -> 7191 | C86: 7105 | D86: 6982 | E86: 6864 | F86: 6755 | G86: 6652 | H86: 6550 | I86: 6455 | J86: 6362 | K86: 6273 | L86: 6186 | M86: 6186
A87: Keminmaa | B87: =pohjatiedot!AQ83 -> 7984 | C87: 7952 | D87: 7869 | E87: 7786 | F87: 7706 | G87: 7629 | H87: 7556 | I87: 7486 | J87: 7418 | K87: 7349 | L87: 7284 | M87: 7284
A88: Kemiönsaari | B88: =pohjatiedot!AQ84 -> 6609 | C88: 6606 | D88: 6552 | E88: 6501 | F88: 6451 | G88: 6405 | H88: 6358 | I88: 6316 | J88: 6275 | K88: 6237 | L88: 6202 | M88: 6202
A89: Kempele | B89: =pohjatiedot!AQ85 -> 18796 | C89: 18380 | D89: 18562 | E89: 18715 | F89: 18847 | G89: 18958 | H89: 19047 | I89: 19120 | J89: 19179 | K89: 19223 | L89: 19251 | M89: 19251
A90: Kerava | B90: =pohjatiedot!AQ86 -> 37105 | C90: 36622 | D90: 36805 | E90: 36988 | F90: 37170 | G90: 37343 | H90: 37511 | I90: 37675 | J90: 37826 | K90: 37969 | L90: 38102 | M90: 38102
A91: Keuruu | B91: =pohjatiedot!AQ87 -> 9486 | C91: 9524 | D91: 9418 | E91: 9320 | F91: 9224 | G91: 9135 | H91: 9046 | I91: 8961 | J91: 8878 | K91: 8794 | L91: 8711 | M91: 8711
A92: Kihniö | B92: =pohjatiedot!AQ88 -> 1822 | C92: 1836 | D92: 1802 | E92: 1766 | F92: 1735 | G92: 1705 | H92: 1678 | I92: 1652 | J92: 1627 | K92: 1603 | L92: 1578 | M92: 1578
A93: Kinnula | B93: =pohjatiedot!AQ89 -> 1597 | C93: 1561 | D93: 1535 | E93: 1510 | F93: 1486 | G93: 1464 | H93: 1441 | I93: 1419 | J93: 1399 | K93: 1379 | L93: 1360 | M93: 1360
A94: Kirkkonummi | B94: =pohjatiedot!AQ90 -> 40082 | C94: 39560 | D94: 39701 | E94: 39836 | F94: 39961 | G94: 40085 | H94: 40205 | I94: 40319 | J94: 40425 | K94: 40530 | L94: 40636 | M94: 40636
A95: Kitee | B95: =pohjatiedot!AQ91 -> 9933 | C95: 10012 | D95: 9850 | E95: 9692 | F95: 9542 | G95: 9400 | H95: 9265 | I95: 9130 | J95: 9000 | K95: 8879 | L95: 8761 | M95: 8761
A96: Kittilä | B96: =pohjatiedot!AQ92 -> 6436 | C96: 6393 | D96: 6378 | E96: 6366 | F96: 6354 | G96: 6342 | H96: 6329 | I96: 6319 | J96: 6310 | K96: 6301 | L96: 6288 | M96: 6288
A97: Kiuruvesi | B97: =pohjatiedot!AQ93 -> 7854 | C97: 7854 | D97: 7714 | E97: 7581 | F97: 7454 | G97: 7331 | H97: 7210 | I97: 7094 | J97: 6983 | K97: 6875 | L97: 6772 | M97: 6772
A98: Kivijärvi | B98: =pohjatiedot!AQ94 -> 1107 | C98: 1034 | D98: 1003 | E98: 977 | F98: 951 | G98: 925 | H98: 901 | I98: 880 | J98: 861 | K98: 841 | L98: 824 | M98: 824
A99: Kokemäki | B99: =pohjatiedot!AQ95 -> 7013 | C99: 7023 | D99: 6930 | E99: 6843 | F99: 6761 | G99: 6681 | H99: 6603 | I99: 6530 | J99: 6459 | K99: 6391 | L99: 6328 | M99: 6328
A100: Kokkola | B100: =pohjatiedot!AQ96 -> 47772 | C100: 47729 | D100: 47752 | E100: 47763 | F100: 47767 | G100: 47764 | H100: 47746 | I100: 47715 | J100: 47671 | K100: 47618 | L100: 47551 | M100: 47551
A101: KOKO MAA (Manner-Suomi) | B101: =pohjatiedot!AQ97 -> 5503664 | C101: 5500619 | D101: 5506386 | E101: 5511772 | F101: 5516715 | G101: 5521162 | H101: 5525035 | I101: 5528282 | J101: 5530869 | K101: 5532706 | L101: 5533828 | M101: 5533828
A102: Kolari | B102: =pohjatiedot!AQ98 -> 3925 | C102: 3788 | D102: 3776 | E102: 3761 | F102: 3747 | G102: 3733 | H102: 3717 | I102: 3699 | J102: 3682 | K102: 3664 | L102: 3648 | M102: 3648
A103: Konnevesi | B103: =pohjatiedot!AQ99 -> 2593 | C103: 2634 | D103: 2605 | E103: 2575 | F103: 2546 | G103: 2518 | H103: 2490 | I103: 2462 | J103: 2436 | K103: 2410 | L103: 2384 | M103: 2384
A104: Kontiolahti | B104: =pohjatiedot!AQ100 -> 14857 | C104: 14980 | D104: 15020 | E104: 15051 | F104: 15072 | G104: 15085 | H104: 15088 | I104: 15081 | J104: 15063 | K104: 15043 | L104: 15013 | M104: 15013
A105: Korsnäs | B105: =pohjatiedot!AQ101 -> 2068 | C105: 2084 | D105: 2069 | E105: 2058 | F105: 2049 | G105: 2040 | H105: 2032 | I105: 2022 | J105: 2014 | K105: 2004 | L105: 1992 | M105: 1992
A106: Koski | B106: =pohjatiedot!AQ102 -> 2292 | C106: 2297 | D106: 2277 | E106: 2258 | F106: 2242 | G106: 2226 | H106: 2212 | I106: 2197 | J106: 2182 | K106: 2167 | L106: 2154 | M106: 2154
A107: Kotka | B107: =pohjatiedot!AQ103 -> 51668 | C107: 51999 | D107: 51584 | E107: 51186 | F107: 50798 | G107: 50423 | H107: 50059 | I107: 49706 | J107: 49360 | K107: 49016 | L107: 48677 | M107: 48677
A108: Kouvola | B108: =pohjatiedot!AQ104 -> 81187 | C108: 81521 | D108: 80732 | E108: 79965 | F108: 79213 | G108: 78476 | H108: 77752 | I108: 77036 | J108: 76340 | K108: 75661 | L108: 74991 | M108: 74991
A109: Kristiinankaupunki | B109: =pohjatiedot!AQ105 -> 6404 | C109: 6422 | D109: 6354 | E109: 6294 | F109: 6239 | G109: 6189 | H109: 6141 | I109: 6096 | J109: 6051 | K109: 6006 | L109: 5960 | M109: 5960
A110: Kruunupyy | B110: =pohjatiedot!AQ106 -> 6416 | C110: 6427 | D110: 6390 | E110: 6353 | F110: 6319 | G110: 6284 | H110: 6249 | I110: 6215 | J110: 6180 | K110: 6145 | L110: 6110 | M110: 6110
A111: Kuhmo | B111: =pohjatiedot!AQ107 -> 8042 | C111: 8028 | D111: 7885 | E111: 7745 | F111: 7605 | G111: 7470 | H111: 7337 | I111: 7205 | J111: 7077 | K111: 6952 | L111: 6832 | M111: 6832
A112: Kuhmoinen | B112: =pohjatiedot!AQ108 -> 2161 | C112: 2169 | D112: 2137 | E112: 2106 | F112: 2079 | G112: 2052 | H112: 2026 | I112: 2001 | J112: 1978 | K112: 1955 | L112: 1934 | M112: 1934
A113: Kuopio | B113: =pohjatiedot!AQ109 -> 120210 | C113: 119490 | D113: 119862 | E113: 120199 | F113: 120514 | G113: 120809 | H113: 121078 | I113: 121330 | J113: 121561 | K113: 121767 | L113: 121944 | M113: 121944
A114: Kuortane | B114: =pohjatiedot!AQ110 -> 3534 | C114: 3478 | D114: 3432 | E114: 3386 | F114: 3342 | G114: 3299 | H114: 3259 | I114: 3217 | J114: 3178 | K114: 3139 | L114: 3102 | M114: 3102
A115: Kurikka | B115: =pohjatiedot!AQ111 -> 20456 | C115: 20393 | D115: 20125 | E115: 19863 | F115: 19611 | G115: 19362 | H115: 19118 | I115: 18880 | J115: 18646 | K115: 18416 | L115: 18187 | M115: 18187
A116: Kustavi | B116: =pohjatiedot!AQ112 -> 962 | C116: 944 | D116: 956 | E116: 967 | F116: 977 | G116: 989 | H116: 997 | I116: 1008 | J116: 1017 | K116: 1026 | L116: 1035 | M116: 1035
A117: Kuusamo | B117: =pohjatiedot!AQ113 -> 15213 | C117: 14841 | D117: 14675 | E117: 14514 | F117: 14357 | G117: 14197 | H117: 14043 | I117: 13893 | J117: 13739 | K117: 13588 | L117: 13437 | M117: 13437
A118: Kyyjärvi | B118: =pohjatiedot!AQ114 -> 1288 | C118: 1304 | D118: 1284 | E118: 1265 | F118: 1247 | G118: 1230 | H118: 1213 | I118: 1196 | J118: 1181 | K118: 1164 | L118: 1148 | M118: 1148
A119: Kärkölä | B119: =pohjatiedot!AQ115 -> 4326 | C119: 4334 | D119: 4284 | E119: 4237 | F119: 4194 | G119: 4154 | H119: 4115 | I119: 4075 | J119: 4037 | K119: 4001 | L119: 3968 | M119: 3968
A120: Kärsämäki | B120: =pohjatiedot!AQ116 -> 2538 | C120: 2557 | D120: 2531 | E120: 2502 | F120: 2476 | G120: 2450 | H120: 2428 | I120: 2405 | J120: 2382 | K120: 2360 | L120: 2336 | M120: 2336
A121: Lahti | B121: =pohjatiedot!AQ117 -> 119984 | C121: 120250 | D121: 120373 | E121: 120477 | F121: 120564 | G121: 120628 | H121: 120665 | I121: 120668 | J121: 120637 | K121: 120575 | L121: 120486 | M121: 120486
A122: Laihia | B122: =pohjatiedot!AQ118 -> 7996 | C122: 8089 | D122: 8092 | E122: 8086 | F122: 8079 | G122: 8065 | H122: 8049 | I122: 8029 | J122: 8007 | K122: 7978 | L122: 7946 | M122: 7946
A123: Laitila | B123: =pohjatiedot!AQ119 -> 8468 | C123: 8663 | D123: 8668 | E123: 8675 | F123: 8678 | G123: 8682 | H123: 8685 | I123: 8687 | J123: 8688 | K123: 8687 | L123: 8687 | M123: 8687
A124: Lapinjärvi | B124: =pohjatiedot!AQ120 -> 2621 | C124: 2606 | D124: 2579 | E124: 2556 | F124: 2534 | G124: 2512 | H124: 2493 | I124: 2474 | J124: 2453 | K124: 2436 | L124: 2417 | M124: 2417
A125: Lapinlahti | B125: =pohjatiedot!AQ121 -> 9358 | C125: 9404 | D125: 9300 | E125: 9200 | F125: 9098 | G125: 8998 | H125: 8897 | I125: 8799 | J125: 8702 | K125: 8605 | L125: 8510 | M125: 8510
A126: Lappajärvi | B126: =pohjatiedot!AQ122 -> 2925 | C126: 2970 | D126: 2921 | E126: 2880 | F126: 2837 | G126: 2799 | H126: 2761 | I126: 2725 | J126: 2687 | K126: 2652 | L126: 2619 | M126: 2619
A127: Lappeenranta | B127: =pohjatiedot!AQ123 -> 72662 | C127: 72466 | D127: 72333 | E127: 72197 | F127: 72073 | G127: 71946 | H127: 71818 | I127: 71679 | J127: 71536 | K127: 71387 | L127: 71231 | M127: 71231
A128: Lapua | B128: =pohjatiedot!AQ124 -> 14221 | C128: 14296 | D128: 14230 | E128: 14163 | F128: 14092 | G128: 14022 | H128: 13955 | I128: 13892 | J128: 13826 | K128: 13762 | L128: 13696 | M128: 13696
A129: Laukaa | B129: =pohjatiedot!AQ125 -> 18823 | C129: 18985 | D129: 18991 | E129: 18983 | F129: 18959 | G129: 18925 | H129: 18880 | I129: 18827 | J129: 18768 | K129: 18704 | L129: 18631 | M129: 18631
A130: Lemi | B130: =pohjatiedot!AQ126 -> 2964 | C130: 3010 | D130: 2991 | E130: 2971 | F130: 2951 | G130: 2929 | H130: 2911 | I130: 2889 | J130: 2866 | K130: 2840 | L130: 2814 | M130: 2814
A131: Lempäälä | B131: =pohjatiedot!AQ127 -> 23828 | C131: 23574 | D131: 23745 | E131: 23906 | F131: 24057 | G131: 24185 | H131: 24296 | I131: 24393 | J131: 24473 | K131: 24544 | L131: 24601 | M131: 24601
A132: Leppävirta | B132: =pohjatiedot!AQ128 -> 9402 | C132: 9446 | D132: 9345 | E132: 9249 | F132: 9156 | G132: 9066 | H132: 8972 | I132: 8881 | J132: 8791 | K132: 8699 | L132: 8610 | M132: 8610
A133: Lestijärvi | B133: =pohjatiedot!AQ129 -> 722 | C133: 700 | D133: 686 | E133: 673 | F133: 661 | G133: 651 | H133: 641 | I133: 632 | J133: 624 | K133: 616 | L133: 609 | M133: 609
A134: Lieksa | B134: =pohjatiedot!AQ130 -> 10719 | C134: 10633 | D134: 10426 | E134: 10231 | F134: 10045 | G134: 9865 | H134: 9695 | I134: 9528 | J134: 9369 | K134: 9212 | L134: 9064 | M134: 9064
A135: Lieto | B135: =pohjatiedot!AQ131 -> 20146 | C135: 20011 | D135: 20094 | E135: 20174 | F135: 20246 | G135: 20312 | H135: 20373 | I135: 20429 | J135: 20478 | K135: 20514 | L135: 20543 | M135: 20543
A136: Liminka | B136: =pohjatiedot!AQ132 -> 10238 | C136: 10386 | D136: 10455 | E136: 10505 | F136: 10539 | G136: 10559 | H136: 10568 | I136: 10573 | J136: 10573 | K136: 10565 | L136: 10553 | M136: =L136 -> 10553
A137: Liperi | B137: =pohjatiedot!AQ133 -> 11994 | C137: 12017 | D137: 11959 | E137: 11900 | F137: 11839 | G137: 11777 | H137: 11714 | I137: 11650 | J137: 11580 | K137: 11507 | L137: 11430 | M137: 11430
A138: Lohja | B138: =pohjatiedot!AQ134 -> 45886 | C138: 45614 | D138: 45289 | E138: 44975 | F138: 44670 | G138: 44372 | H138: 44082 | I138: 43797 | J138: 43526 | K138: 43263 | L138: 43007 | M138: 43007
A139: Loimaa | B139: =pohjatiedot!AQ135 -> 15770 | C139: 15721 | D139: 15584 | E139: 15455 | F139: 15334 | G139: 15215 | H139: 15107 | I139: 14997 | J139: 14893 | K139: 14792 | L139: 14691 | M139: 14691
A140: Loppi | B140: =pohjatiedot!AQ136 -> 7853 | C140: 7713 | D140: 7632 | E140: 7550 | F140: 7465 | G140: 7386 | H140: 7309 | I140: 7234 | J140: 7161 | K140: 7092 | L140: 7026 | M140: 7026
A141: Loviisa | B141: =pohjatiedot!AQ137 -> 14745 | C141: 14590 | D141: 14453 | E141: 14323 | F141: 14200 | G141: 14081 | H141: 13965 | I141: 13852 | J141: 13748 | K141: 13647 | L141: 13552 | M141: 13552
A142: Luhanka | B142: =pohjatiedot!AQ138 -> 699 | C142: 696 | D142: 690 | E142: 687 | F142: 684 | G142: 681 | H142: 678 | I142: 676 | J142: 674 | K142: 670 | L142: 668 | M142: 668
A143: Lumijoki | B143: =pohjatiedot!AQ139 -> 2036 | C143: 2032 | D143: 2020 | E143: 2004 | F143: 1985 | G143: 1966 | H143: 1944 | I143: 1924 | J143: 1902 | K143: 1882 | L143: 1861 | M143: 1861
A144: Luoto | B144: =pohjatiedot!AQ140 -> 5534 | C144: 5448 | D144: 5500 | E144: 5552 | F144: 5599 | G144: 5644 | H144: 5685 | I144: 5725 | J144: 5763 | K144: 5800 | L144: 5835 | M144: 5835
A145: Luumäki | B145: =pohjatiedot!AQ141 -> 4543 | C145: 4530 | D145: 4467 | E145: 4404 | F145: 4343 | G145: 4286 | H145: 4229 | I145: 4174 | J145: 4120 | K145: 4065 | L145: 4016 | M145: 4016
A146: Maalahti | B146: =pohjatiedot!AQ142 -> 5451 | C146: 5428 | D146: 5407 | E146: 5390 | F146: 5374 | G146: 5358 | H146: 5340 | I146: 5323 | J146: 5302 | K146: 5278 | L146: 5250 | M146: 5250
A147: Marttila | B147: =pohjatiedot!AQ143 -> 1999 | C147: 2008 | D147: 2003 | E147: 2000 | F147: 1996 | G147: 1994 | H147: 1991 | I147: 1986 | J147: 1979 | K147: 1973 | L147: 1964 | M147: 1964
A148: Masku | B148: =pohjatiedot!AQ144 -> 9543 | C148: 9462 | D148: 9411 | E148: 9360 | F148: 9307 | G148: 9253 | H148: 9197 | I148: 9142 | J148: 9092 | K148: 9043 | L148: 8993 | M148: 8993
A149: Merijärvi | B149: =pohjatiedot!AQ145 -> 1078 | C149: 1065 | D149: 1048 | E149: 1034 | F149: 1021 | G149: 1006 | H149: 994 | I149: 981 | J149: 969 | K149: 958 | L149: 947 | M149: 947
A150: Merikarvia | B150: =pohjatiedot!AQ146 -> 3066 | C150: 3064 | D150: 3039 | E150: 3013 | F150: 2987 | G150: 2960 | H150: 2934 | I150: 2912 | J150: 2890 | K150: 2866 | L150: 2846 | M150: 2846
A151: Miehikkälä | B151: =pohjatiedot!AQ147 -> 1868 | C151: 1867 | D151: 1834 | E151: 1804 | F151: 1775 | G151: 1748 | H151: 1723 | I151: 1699 | J151: 1676 | K151: 1654 | L151: 1633 | M151: 1633
A152: Mikkeli | B152: =pohjatiedot!AQ148 -> 52583 | C152: 53316 | D152: 53069 | E152: 52820 | F152: 52568 | G152: 52314 | H152: 52056 | I152: 51798 | J152: 51537 | K152: 51276 | L152: 51018 | M152: 51018
A153: Muhos | B153: =pohjatiedot!AQ149 -> 8903 | C153: 8971 | D153: 8946 | E153: 8911 | F153: 8870 | G153: 8827 | H153: 8785 | I153: 8739 | J153: 8693 | K153: 8647 | L153: 8599 | M153: 8599
A154: Multia | B154: =pohjatiedot!AQ150 -> 1558 | C154: 1514 | D154: 1480 | E154: 1451 | F154: 1420 | G154: 1392 | H154: 1365 | I154: 1340 | J154: 1317 | K154: 1295 | L154: 1273 | M154: 1273
A155: Muonio | B155: =pohjatiedot!AQ151 -> 2297 | C155: 2259 | D155: 2241 | E155: 2226 | F155: 2212 | G155: 2198 | H155: 2185 | I155: 2172 | J155: 2159 | K155: 2145 | L155: 2129 | M155: 2129
A156: Mustasaari | B156: =pohjatiedot!AQ152 -> 19453 | C156: 19521 | D156: 19550 | E156: 19567 | F156: 19574 | G156: 19570 | H156: 19560 | I156: 19542 | J156: 19522 | K156: 19493 | L156: 19456 | M156: 19456
A157: Muurame | B157: =pohjatiedot!AQ153 -> 10267 | C157: 10356 | D157: 10431 | E157: 10492 | F157: 10547 | G157: 10596 | H157: 10635 | I157: 10666 | J157: 10689 | K157: 10709 | L157: 10722 | M157: 10722
A158: Mynämäki | B158: =pohjatiedot!AQ154 -> 7645 | C158: 7661 | D158: 7618 | E158: 7576 | F158: 7538 | G158: 7501 | H158: 7465 | I158: 7428 | J158: 7395 | K158: 7363 | L158: 7331 | M158: 7331
A159: Myrskylä | B159: =pohjatiedot!AQ155 -> 1871 | C159: 1898 | D159: 1888 | E159: 1876 | F159: 1865 | G159: 1852 | H159: 1839 | I159: 1828 | J159: 1816 | K159: 1807 | L159: 1798 | M159: 1798
A160: Mäntsälä | B160: =pohjatiedot!AQ156 -> 20783 | C160: 20618 | D160: 20592 | E160: 20572 | F160: 20556 | G160: 20540 | H160: 20524 | I160: 20507 | J160: 20489 | K160: 20470 | L160: 20455 | M160: 20455
A161: Mänttä-Vilppula | B161: =pohjatiedot!AQ157 -> 9673 | C161: 9628 | D161: 9462 | E161: 9309 | F161: 9165 | G161: 9025 | H161: 8893 | I161: 8769 | J161: 8649 | K161: 8531 | L161: 8421 | M161: 8421
A162: Mäntyharju | B162: =pohjatiedot!AQ158 -> 5676 | C162: 5761 | D162: 5687 | E162: 5616 | F162: 5550 | G162: 5488 | H162: 5427 | I162: 5369 | J162: 5313 | K162: 5256 | L162: 5203 | M162: 5203
A163: Naantali | B163: =pohjatiedot!AQ159 -> 19427 | C163: 19381 | D163: 19448 | E163: 19510 | F163: 19570 | G163: 19628 | H163: 19680 | I163: 19727 | J163: 19767 | K163: 19805 | L163: 19839 | M163: 19839
A164: Nakkila | B164: =pohjatiedot!AQ160 -> 5256 | C164: 5335 | D164: 5282 | E164: 5229 | F164: 5176 | G164: 5124 | H164: 5071 | I164: 5017 | J164: 4968 | K164: 4920 | L164: 4870 | M164: 4870
A165: Nivala | B165: =pohjatiedot!AQ161 -> 10500 | C165: 10584 | D165: 10505 | E165: 10425 | F165: 10346 | G165: 10268 | H165: 10189 | I165: 10109 | J165: 10030 | K165: 9947 | L165: 9865 | M165: 9865
A166: Nokia | B166: =pohjatiedot!AQ162 -> 34476 | C166: 33763 | D166: 33866 | E166: 33959 | F166: 34037 | G166: 34100 | H166: 34148 | I166: 34185 | J166: 34207 | K166: 34218 | L166: 34226 | M166: 34226
A167: Nousiainen | B167: =pohjatiedot!AQ163 -> 4693 | C167: 4662 | D167: 4628 | E167: 4597 | F167: 4569 | G167: 4539 | H167: 4509 | I167: 4481 | J167: 4452 | K167: 4424 | L167: 4396 | M167: 4396
A168: Nurmes | B168: =pohjatiedot!AQ164 -> 9501 | C168: 9475 | D168: 9330 | E168: 9190 | F168: 9053 | G168: 8924 | H168: 8799 | I168: 8681 | J168: 8566 | K168: 8454 | L168: 8348 | M168: 8348
A169: Nurmijärvi | B169: =pohjatiedot!AQ165 -> 43663 | C169: 43080 | D169: 43269 | E169: 43447 | F169: 43614 | G169: 43771 | H169: 43917 | I169: 44055 | J169: 44186 | K169: 44305 | L169: 44418 | M169: 44418
A170: Närpiö | B170: =pohjatiedot!AQ166 -> 9558 | C170: 9481 | D170: 9491 | E170: 9504 | F170: 9518 | G170: 9535 | H170: 9551 | I170: 9563 | J170: 9575 | K170: 9584 | L170: 9592 | M170: 9592
A171: Orimattila | B171: =pohjatiedot!AQ167 -> 15882 | C171: 15944 | D171: 15867 | E171: 15789 | F171: 15705 | G171: 15618 | H171: 15529 | I171: 15443 | J171: 15356 | K171: 15269 | L171: 15181 | M171: 15181
A172: Oripää | B172: =pohjatiedot!AQ168 -> 1334 | C172: 1335 | D172: 1321 | E172: 1307 | F172: 1295 | G172: 1282 | H172: 1271 | I172: 1260 | J172: 1252 | K172: 1243 | L172: 1234 | M172: 1234
A173: Orivesi | B173: =pohjatiedot!AQ169 -> 9008 | C173: 9034 | D173: 8951 | E173: 8878 | F173: 8807 | G173: 8738 | H173: 8669 | I173: 8605 | J173: 8544 | K173: 8487 | L173: 8432 | M173: 8432
A174: Oulainen | B174: =pohjatiedot!AQ170 -> 7155 | C174: 7265 | D174: 7185 | E174: 7106 | F174: 7031 | G174: 6956 | H174: 6882 | I174: 6806 | J174: 6733 | K174: 6663 | L174: 6595 | M174: 6595
A175: Oulu | B175: =pohjatiedot!AQ171 -> 207327 | C175: 206723 | D175: 208198 | E175: 209610 | F175: 210946 | G175: 212219 | H175: 213424 | I175: 214562 | J175: 215635 | K175: 216649 | L175: 217591 | M175: 217591
A176: Outokumpu | B176: =pohjatiedot!AQ172 -> 6552 | C176: 6602 | D176: 6506 | E176: 6415 | F176: 6325 | G176: 6238 | H176: 6153 | I176: 6070 | J176: 5988 | K176: 5907 | L176: 5831 | M176: 5831
A177: Padasjoki | B177: =pohjatiedot!AQ173 -> 2861 | C177: 2843 | D177: 2788 | E177: 2736 | F177: 2688 | G177: 2641 | H177: 2597 | I177: 2554 | J177: 2514 | K177: 2474 | L177: 2439 | M177: 2439
A178: Paimio | B178: =pohjatiedot!AQ174 -> 10922 | C178: 10882 | D178: 10906 | E178: 10930 | F178: 10950 | G178: 10971 | H178: 10992 | I178: 11009 | J178: 11023 | K178: 11033 | L178: 11037 | M178: 11037
A179: Paltamo | B179: =pohjatiedot!AQ175 -> 3235 | C179: 3231 | D179: 3180 | E179: 3133 | F179: 3088 | G179: 3045 | H179: 3003 | I179: 2965 | J179: 2929 | K179: 2894 | L179: 2860 | M179: 2860
A180: Parainen | B180: =pohjatiedot!AQ176 -> 15105 | C180: 15041 | D180: 14960 | E180: 14878 | F180: 14801 | G180: 14725 | H180: 14649 | I180: 14572 | J180: 14498 | K180: 14425 | L180: 14350 | M180: 14350
A181: Parikkala | B181: =pohjatiedot!AQ177 -> 4655 | C181: 4601 | D181: 4491 | E181: 4388 | F181: 4289 | G181: 4196 | H181: 4110 | I181: 4025 | J181: 3946 | K181: 3870 | L181: 3796 | M181: 3796
A182: Parkano | B182: =pohjatiedot!AQ178 -> 6352 | C182: 6312 | D182: 6243 | E182: 6176 | F182: 6110 | G182: 6045 | H182: 5980 | I182: 5922 | J182: 5861 | K182: 5803 | L182: 5747 | M182: 5747
A183: Pedersören kunta | B183: =pohjatiedot!AQ179 -> 11174 | C183: 10993 | D183: 10978 | E183: 10964 | F183: 10947 | G183: 10927 | H183: 10907 | I183: 10882 | J183: 10854 | K183: 10824 | L183: 10793 | M183: 10793
A184: Pelkosenniemi | B184: =pohjatiedot!AQ180 -> 931 | C184: 948 | D184: 945 | E184: 941 | F184: 938 | G184: 935 | H184: 932 | I184: 929 | J184: 927 | K184: 924 | L184: 920 | M184: 920
A185: Pello | B185: =pohjatiedot!AQ181 -> 3304 | C185: 3304 | D185: 3242 | E185: 3186 | F185: 3130 | G185: 3077 | H185: 3028 | I185: 2983 | J185: 2941 | K185: 2898 | L185: 2858 | M185: 2858
A186: Perho | B186: =pohjatiedot!AQ182 -> 2706 | C186: 2780 | D186: 2757 | E186: 2733 | F186: 2710 | G186: 2683 | H186: 2658 | I186: 2632 | J186: 2606 | K186: 2580 | L186: 2555 | M186: 2555
A187: Pertunmaa | B187: =pohjatiedot!AQ183 -> 1654 | C187: 1661 | D187: 1640 | E187: 1618 | F187: 1596 | G187: 1576 | H187: 1555 | I187: 1536 | J187: 1519 | K187: 1502 | L187: 1487 | M187: 1487
A188: Petäjävesi | B188: =pohjatiedot!AQ184 -> 3772 | C188: 3801 | D188: 3750 | E188: 3704 | F188: 3658 | G188: 3613 | H188: 3570 | I188: 3527 | J188: 3484 | K188: 3440 | L188: 3396 | M188: 3396
A189: Pieksämäki | B189: =pohjatiedot!AQ185 -> 17375 | C189: 17399 | D189: 17152 | E189: 16919 | F189: 16696 | G189: 16479 | H189: 16272 | I189: 16074 | J189: 15880 | K189: 15693 | L189: 15515 | M189: 15515
A190: Pielavesi | B190: =pohjatiedot!AQ186 -> 4321 | C190: 4367 | D190: 4310 | E190: 4249 | F190: 4188 | G190: 4129 | H190: 4070 | I190: 4012 | J190: 3955 | K190: 3902 | L190: 3849 | M190: 3849
A191: Pietarsaari | B191: =pohjatiedot!AQ187 -> 19066 | C191: 19074 | D191: 18978 | E191: 18880 | F191: 18785 | G191: 18697 | H191: 18606 | I191: 18514 | J191: 18423 | K191: 18335 | L191: 18245 | M191: 18245
A192: Pihtipudas | B192: =pohjatiedot!AQ188 -> 3931 | C192: 3926 | D192: 3867 | E192: 3809 | F192: 3753 | G192: 3698 | H192: 3645 | I192: 3595 | J192: 3546 | K192: 3500 | L192: 3456 | M192: 3456
A193: Pirkkala | B193: =pohjatiedot!AQ189 -> 19803 | C193: 19596 | D193: 19698 | E193: 19793 | F193: 19875 | G193: 19946 | H193: 20008 | I193: 20061 | J193: 20108 | K193: 20146 | L193: 20174 | M193: 20174
A194: Polvijärvi | B194: =pohjatiedot!AQ190 -> 4201 | C194: 4171 | D194: 4110 | E194: 4054 | F194: 4000 | G194: 3949 | H194: 3896 | I194: 3849 | J194: 3801 | K194: 3753 | L194: 3708 | M194: 3708
A195: Pomarkku | B195: =pohjatiedot!AQ191 -> 2063 | C195: 2070 | D195: 2035 | E195: 1998 | F195: 1964 | G195: 1930 | H195: 1900 | I195: 1867 | J195: 1835 | K195: 1806 | L195: 1778 | M195: 1778
A196: Pori | B196: =pohjatiedot!AQ192 -> 83684 | C196: 83638 | D196: 83265 | E196: 82893 | F196: 82529 | G196: 82167 | H196: 81805 | I196: 81441 | J196: 81077 | K196: 80713 | L196: 80348 | M196: 80348
A197: Pornainen | B197: =pohjatiedot!AQ193 -> 5070 | C197: 4996 | D197: 4964 | E197: 4935 | F197: 4905 | G197: 4879 | H197: 4855 | I197: 4838 | J197: 4822 | K197: 4806 | L197: 4795 | M197: 4795
A198: Porvoo | B198: =pohjatiedot!AQ194 -> 50619 | C198: 50366 | D198: 50408 | E198: 50442 | F198: 50469 | G198: 50490 | H198: 50501 | I198: 50508 | J198: 50506 | K198: 50496 | L198: 50479 | M198: 50479
A199: Posio | B199: =pohjatiedot!AQ195 -> 3117 | C199: 3078 | D199: 3005 | E199: 2938 | F199: 2875 | G199: 2815 | H199: 2760 | I199: 2706 | J199: 2654 | K199: 2605 | L199: 2559 | M199: 2559
A200: Pudasjärvi | B200: =pohjatiedot!AQ196 -> 7779 | C200: 7741 | D200: 7623 | E200: 7512 | F200: 7405 | G200: 7300 | H200: 7200 | I200: 7103 | J200: 7013 | K200: 6921 | L200: 6834 | M200: =L200 -> 6834
A201: Pukkila | B201: =pohjatiedot!AQ197 -> 1833 | C201: 1869 | D201: 1857 | E201: 1843 | F201: 1832 | G201: 1819 | H201: 1808 | I201: 1797 | J201: 1789 | K201: 1779 | L201: 1773 | M201: 1773
A202: Punkalaidun | B202: =pohjatiedot!AQ198 -> 2785 | C202: 2786 | D202: 2739 | E202: 2697 | F202: 2655 | G202: 2617 | H202: 2582 | I202: 2549 | J202: 2518 | K202: 2489 | L202: 2460 | M202: 2460
... 98 more rows
